{"text_format":"1","workbook":"xlsx","n_sheets":8,"sheets":["RAPPORT","Invulscherm 1 - Weging","Invulscherm 1b","Invulscherm 2 - Scores","BRONNEN","Blad2","Criteria-Status-Tabel","Blad1"],"not_rendered":{"charts":0,"images":3,"macros":1,"external_links":0,"defined_names":13,"comments":3,"pivot_tables":0},"unopened":[],"bounds":{"document_bytes":16777216,"sheet_cells":100000,"rows_first":2000,"rows_last":500,"rows_between":2000,"halvings":0,"cell_chars":16384,"cell_head_chars":4096},"cells_cut":0,"cells_raw":0,"read":"whole","date_system":"1900"}

{"sheet":"RAPPORT","index":0,"n_rows":106,"n_cols":19,"rows_kept":106,"cut":false,"hidden":false,"merged":[[35,20,36,20],[31,15,31,19],[31,2,31,4],[31,6,31,8],[34,2,34,10],[34,18,34,20],[33,14,33,16],[33,17,33,19],[50,20,51,20],[47,20,48,20],[44,20,45,20],[38,20,39,20],[41,20,42,20],[47,8,48,8],[47,11,48,13],[47,14,48,19],[41,2,42,6],[41,8,42,8],[41,11,42,13],[41,14,42,19],[8,2,8,10],[8,18,8,20],[9,15,9,16],[9,18,9,19],[11,6,12,6],[11,8,12,8],[10,2,10,10],[10,18,10,20],[11,20,12,20],[9,11,9,14],[14,6,15,6],[14,8,15,8],[17,6,18,6],[17,8,18,8],[14,15,15,16],[17,15,18,16],[23,6,24,6],[23,8,24,8],[26,6,27,6],[26,8,27,8],[29,18,29,19],[11,11,12,13],[14,11,15,13],[17,11,18,13],[20,11,21,13],[23,11,24,13],[11,15,12,16],[11,18,12,19],[20,15,21,16],[20,18,21,19],[23,15,24,16],[23,18,24,19],[29,15,29,16],[14,18,15,19],[26,11,27,13],[26,15,27,16],[17,18,18,19],[26,18,27,19],[5,2,5,10],[5,18,5,20],[50,2,51,6],[50,8,51,8],[50,11,51,13],[44,2,45,6],[44,8,45,8],[44,11,45,13],[35,2,36,6],[33,11,33,13],[33,2,33,10],[29,2,29,8],[20,6,21,6],[20,8,21,8],[35,8,36,8],[35,11,36,13],[35,14,36,19],[38,2,39,6],[38,8,39,8],[38,11,39,13],[38,14,39,19],[44,14,45,19],[50,14,51,19],[47,2,48,6],[101,4,101,19],[102,4,102,19],[66,2,66,19],[67,2,67,10],[67,18,67,20],[68,2,69,19],[68,20,69,20],[74,2,75,19],[80,2,81,19],[86,2,87,19],[92,2,93,19],[98,2,99,19],[98,20,99,20],[70,4,70,19],[71,4,71,19],[72,4,72,19],[76,4,76,19],[77,4,77,19],[78,4,78,19],[82,4,82,19],[83,4,83,19],[84,4,84,19],[56,2,57,19],[65,2,65,20],[88,4,88,19],[89,4,89,19],[90,4,90,19],[94,4,94,19],[95,4,95,19],[96,4,96,19],[100,4,100,19]]}
[]
[null,null,"Projectnaam:",null,null,null,"(invullen…)"]
[null,null,"Locatie site:",null,null,null,"(invullen…)"]
[null,null,"Assessor:",null,null,null,"(invullen…)"]
[null,null,"Datum:",null,null,null,"(invullen…)"]
[]
[null,null,"Voorbereidingsfase (%)",null,"Ontwerpfase (%)",null,"Categoriescore (%)",null,"Controle uigevoerd?"]
[null,null,"fase 1",null,"fase 2",null,"fase 2",null,"fase 3",null,"thema's"]
[]
[null,null,null,null,null,null,null,null,null,null,"TYPE:",{"$f":"'Invulscherm 1 - Weging'!F3","v":"PRODUCTIEGERICHT & GEMENGD BEDRIJVENTERREIN"},null,null,null,"WEGING (%)",null,null,"SCORE (%)"]
[]
[null,null,{"$f":"'Invulscherm 1 - Weging'!F7/100","v":9.2000000000000012E-2},null,{"$f":"'Invulscherm 1 - Weging'!I7/100","v":0.10800000000000003},null,{"$f":"'Invulscherm 2 - Scores'!J4/100","v":0},null,null,null,null,"1. MAN - MANAGEMENT",null,null,null,0.2,null,null,{"$f":"G12","v":0}]
[null,null,{"$f":"SUM('Invulscherm 2 - Scores'!J6,'Invulscherm 2 - Scores'!J7,'Invulscherm 2 - Scores'!J8,'Invulscherm 2 - Scores'!J11,'Invulscherm 2 - Scores'!J13,'Invulscherm 2 - Scores'!J14,'Invulscherm 2 - Scores'!J17,'Invulscherm 2 - Scores'!J19,'Invulscherm 2 - Scores'!J22,'Invulscherm 2 - Scores'!J24)/100","v":0},null,{"$f":"SUM('Invulscherm 2 - Scores'!J9,'Invulscherm 2 - Scores'!J12,'Invulscherm 2 - Scores'!J15,'Invulscherm 2 - Scores'!J18,'Invulscherm 2 - Scores'!J20,'Invulscherm 2 - Scores'!J23,'Invulscherm 2 - Scores'!J25,'Invulscherm 2 - Scores'!J26,'Invulscherm 2 - Scores'!J27,'Invulscherm 2 - Scores'!J28,'Invulscherm 2 - Scores'!J29,'Invulscherm 2 - Scores'!J30)/100","v":0}]
[]
[null,null,{"$f":"'Invulscherm 1 - Weging'!F31/100","v":4.8000000000000001E-2},null,{"$f":"'Invulscherm 1 - Weging'!I31/100","v":0.10199999999999999},null,{"$f":"'Invulscherm 2 - Scores'!J31/100","v":0},null,null,null,null,"2. SEW - SOCIAAL & ECONOMISCH WELZIJN",null,null,null,0.15,null,null,{"$f":"G15","v":0}]
[null,null,{"$f":"SUM('Invulscherm 2 - Scores'!J38,'Invulscherm 2 - Scores'!J39,'Invulscherm 2 - Scores'!J41,'Invulscherm 2 - Scores'!J45)/100","v":0},null,{"$f":"SUM('Invulscherm 2 - Scores'!J33,'Invulscherm 2 - Scores'!J34,'Invulscherm 2 - Scores'!J35,'Invulscherm 2 - Scores'!J36,'Invulscherm 2 - Scores'!J42,'Invulscherm 2 - Scores'!J43,'Invulscherm 2 - Scores'!J46)/100","v":0}]
[]
[null,null,{"$f":"'Invulscherm 1 - Weging'!F46/100","v":4.6153846153846149E-2},null,{"$f":"'Invulscherm 1 - Weging'!I46/100","v":0.10384615384615384},null,{"$f":"'Invulscherm 2 - Scores'!J47/100","v":0},null,null,null,null,"3. IOR - INFRASTRUCTUUR & OPENBARE RUIMTE",null,null,null,0.15,null,null,{"$f":"G18","v":0}]
[null,null,{"$f":"SUM('Invulscherm 2 - Scores'!J49,'Invulscherm 2 - Scores'!J51,'Invulscherm 2 - Scores'!J54,'Invulscherm 2 - Scores'!J56)/100","v":0},null,{"$f":"SUM('Invulscherm 2 - Scores'!J50,'Invulscherm 2 - Scores'!J52,'Invulscherm 2 - Scores'!J55,'Invulscherm 2 - Scores'!J57,'Invulscherm 2 - Scores'!J58,'Invulscherm 2 - Scores'!J60,'Invulscherm 2 - Scores'!J61,'Invulscherm 2 - Scores'!J62)/100","v":0}]
[]
[null,null,{"$f":"'Invulscherm 1 - Weging'!F59/100","v":8.0357142857142849E-2},null,{"$f":"'Invulscherm 1 - Weging'!I59/100","v":6.9642857142857131E-2},null,{"$f":"'Invulscherm 2 - Scores'!J63/100","v":0},null,null,null,null,"4. BRE - BRONNEN & ENERGIE",null,null,null,0.15,null,null,{"$f":"G21","v":0}]
[null,null,{"$f":"SUM('Invulscherm 2 - Scores'!J65,'Invulscherm 2 - Scores'!J67,'Invulscherm 2 - Scores'!J69,'Invulscherm 2 - Scores'!J71,'Invulscherm 2 - Scores'!J74,'Invulscherm 2 - Scores'!J77)/100","v":0},null,{"$f":"SUM('Invulscherm 2 - Scores'!J66,'Invulscherm 2 - Scores'!J68,'Invulscherm 2 - Scores'!J70,'Invulscherm 2 - Scores'!J72,'Invulscherm 2 - Scores'!J75,'Invulscherm 2 - Scores'!J78)/100","v":0}]
[]
[null,null,{"$f":"'Invulscherm 1 - Weging'!F70/100","v":8.4210526315789472E-2},null,{"$f":"'Invulscherm 1 - Weging'!I70/100","v":0.11578947368421051},null,{"$f":"'Invulscherm 2 - Scores'!J79/100","v":0},null,null,null,null,"5. EDL - ECOLOGIE & DUURZAAM LANDGEBRUIK",null,null,null,0.2,null,null,{"$f":"G24","v":0}]
[null,null,{"$f":"SUM('Invulscherm 2 - Scores'!J81,'Invulscherm 2 - Scores'!J84,'Invulscherm 2 - Scores'!J86,'Invulscherm 2 - Scores'!J88,'Invulscherm 2 - Scores'!J91,'Invulscherm 2 - Scores'!J94,'Invulscherm 2 - Scores'!J96,'Invulscherm 2 - Scores'!J100)/100","v":0},null,{"$f":"SUM('Invulscherm 2 - Scores'!J102,'Invulscherm 2 - Scores'!J101,'Invulscherm 2 - Scores'!J98,'Invulscherm 2 - Scores'!J97,'Invulscherm 2 - Scores'!J95,'Invulscherm 2 - Scores'!J92,'Invulscherm 2 - Scores'!J90,'Invulscherm 2 - Scores'!J89,'Invulscherm 2 - Scores'!J87,'Invulscherm 2 - Scores'!J85,'Invulscherm 2 - Scores'!J82)/100","v":0}]
[]
[null,null,{"$f":"'Invulscherm 1 - Weging'!F87/100","v":8.4146341463414626E-2},null,{"$f":"'Invulscherm 1 - Weging'!I87/100","v":6.5853658536585355E-2},null,{"$f":"'Invulscherm 2 - Scores'!J103/100","v":0},null,null,null,null,"6. TRA - TRANSPORT",null,null,null,0.15,null,null,{"$f":"G27","v":0}]
[null,null,{"$f":"SUM('Invulscherm 2 - Scores'!J105,'Invulscherm 2 - Scores'!J107,'Invulscherm 2 - Scores'!J110,'Invulscherm 2 - Scores'!J113,'Invulscherm 2 - Scores'!J115,'Invulscherm 2 - Scores'!J117,'Invulscherm 2 - Scores'!J120,'Invulscherm 2 - Scores'!J122,'Invulscherm 2 - Scores'!J124,'Invulscherm 2 - Scores'!J126)/100","v":0},null,{"$f":"SUM('Invulscherm 2 - Scores'!J106,'Invulscherm 2 - Scores'!J108,'Invulscherm 2 - Scores'!J111,'Invulscherm 2 - Scores'!J114,'Invulscherm 2 - Scores'!J116,'Invulscherm 2 - Scores'!J118,'Invulscherm 2 - Scores'!J121,'Invulscherm 2 - Scores'!J123,'Invulscherm 2 - Scores'!J127)/100","v":0}]
[]
[null,null,null,null,null,null,null,null,null,null,"totale indicatieve score",null,null,null,null,1,null,null,{"$f":"SUM(S12,S15,S18,S21,S24,S27)","v":0}]
[]
[null,null,"Indicatie classificatie:",null,null,null,null,null,null,null,null,null,null,null,null,{"$f":"IF(S30<0.3,\"-\",IF(AND(0.3<S30,S30<0.45),\"*\",IF(AND(0.45<S30,S30<0.55),\"**\",IF(AND(0.55<S30,S30<0.7),\"***\",IF(AND(0.7<S30,S30<0.85),\"****\",\"*****\")))))","v":"-"}]
[]
[null,null,"Toelichting classificatie:"]
[]
[null,null,"UITMUNTEND",null,null,null,null,null,"≥ 85%",null,null,"* * * * * "]
[]
[]
[null,null,"UITSTEKEND",null,null,null,null,null,"≥ 70%",null,null,"* * * *"]
[]
[]
[null,null,"ZEER GOED",null,null,null,null,null,"≥ 55%",null,null,"* * *"]
[]
[]
[null,null,"GOED",null,null,null,null,null,"≥ 45%",null,null,"* *"]
[]
[]
[null,null,"GESLAAGD",null,null,null,null,null,"≥ 30%",null,null,"*"]
[]
[]
[null,null,"ONVOLDOENDE",null,null,null,null,null,"< 30%"]
[]
[]
[]
[]
[]
[]
[]
[]
[]
[]
[null,null,"Projectnaam:",null,null,null,{"$f":"G2","v":"(invullen…)"}]
[null,null,"Locatie site:",null,null,null,{"$f":"G3","v":"(invullen…)"}]
[null,null,"Assessor:",null,null,null,"(invullen…)"]
[null,null,"Datum:",null,null,null,"(invullen…)"]
[null,null,"Per thema kunnen maximaal 3 wijzigingen doorgevoerd worden. Indien in het 'invulblad 1' wijzigingen zijn aangebracht dan is de onderbouwing hieronder weergegeven. Wijzigingen (inclusief toelichting) worden afgekeurd bij certificering, als deze niet bijdragen aan het verduurzamen van de economische site / bedrijventerrein. "]
[null,null,"Toelichting op wijzigingen 'Invulscherm 1'"]
[]
[null,null,"1. MAN - MANAGEMENT"]
[]
[null,null,"Wijziging 1:",null,{"$f":"'Invulscherm 1b'!E8:T8","v":"(invullen…)"}]
[null,null,"Wijziging 2:",null,{"$f":"'Invulscherm 1b'!E9:T9","v":"(invullen…)"}]
[null,null,"Wijziging 3:",null,{"$f":"'Invulscherm 1b'!E10:T10","v":"(invullen…)"}]
[]
[null,null,"2. SEW - SOCIAAL & ECONOMISCH WELZIJN"]
[]
[null,null,"Wijziging 1:",null,{"$f":"'Invulscherm 1b'!E14:T14","v":"(invullen…)"}]
[null,null,"Wijziging 2:",null,{"$f":"'Invulscherm 1b'!E15:T15","v":"(invullen…)"}]
[null,null,"Wijziging 3:",null,{"$f":"'Invulscherm 1b'!E16:T16","v":"(invullen…)"}]
[]
[null,null,"3. IOR - INFRASTRUCTUUR & OPENBARE RUIMTE"]
[]
[null,null,"Wijziging 1:",null,{"$f":"'Invulscherm 1b'!E20:T20","v":"(invullen…)"}]
[null,null,"Wijziging 2:",null,{"$f":"'Invulscherm 1b'!E21:T21","v":"(invullen…)"}]
[null,null,"Wijziging 3:",null,{"$f":"'Invulscherm 1b'!E22:T22","v":"(invullen…)"}]
[]
[null,null,"4. BRE - BRONNEN & ENERGIE"]
[]
[null,null,"Wijziging 1:",null,{"$f":"'Invulscherm 1b'!E26:T26","v":"(invullen…)"}]
[null,null,"Wijziging 2:",null,{"$f":"'Invulscherm 1b'!E27:T27","v":"(invullen…)"}]
[null,null,"Wijziging 3:",null,{"$f":"'Invulscherm 1b'!E28:T28","v":"(invullen…)"}]
[]
[null,null,"5. EDL - ECOLOGIE & DUURZAAM LANDGEBRUIK"]
[]
[null,null,"Wijziging 1:",null,{"$f":"'Invulscherm 1b'!E32","v":"(invullen…)"}]
[null,null,"Wijziging 2:",null,{"$f":"'Invulscherm 1b'!E33","v":"(invullen…)"}]
[null,null,"Wijziging 3:",null,{"$f":"'Invulscherm 1b'!E34:T34","v":"(invullen…)"}]
[]
[null,null,"6. TRA - TRANSPORT"]
[]
[null,null,"Wijziging 1:",null,{"$f":"'Invulscherm 1b'!E38:T38","v":"(invullen…)"}]
[null,null,"Wijziging 2:",null,{"$f":"'Invulscherm 1b'!E39:T39","v":"(invullen…)"}]
[null,null,"Wijziging 3:",null,{"$f":"'Invulscherm 1b'!E40:T40","v":"(invullen…)"}]
[]
[]
[null,null,"Beoordeling"]

{"sheet":"Invulscherm 1 - Weging","index":1,"n_rows":125,"n_cols":23,"rows_kept":125,"cut":false,"hidden":false,"merged":[[57,9,58,9],[57,0,58,0],[57,1,58,2],[57,3,57,8],[29,0,30,0],[29,1,30,2],[29,9,30,9],[29,3,29,8],[44,3,44,8],[87,9,102,9],[2,0,2,1],[3,0,3,1],[59,9,67,9],[3,3,3,5],[3,6,3,8],[2,3,2,4],[70,9,81,9],[5,3,5,8],[5,0,6,0],[5,1,6,2],[5,9,6,9],[44,0,45,0],[68,0,69,0],[44,1,45,2],[44,9,45,9],[68,1,69,2],[68,3,68,8],[68,9,69,9],[85,0,86,0],[85,1,86,2],[85,3,85,8],[85,9,86,9]]}
[]
[null,null,null,null,null,null,null,null,{"$f":"IF(S15=1,\"Nieuw Terrein\",\"Bestaand Terrein\")","v":"Nieuw Terrein"}]
["Maak keuze:",null,null,null,null,{"$f":"IF(S14=1,\"PRODUCTIEGERICHT & GEMENGD BEDRIJVENTERREIN\",IF(S14=2,\"KANTOOR TERREIN\",IF(S14=3,\"VRIJETIJDSGERICHT BEDRIJVENTERREIN\",IF(S14=4,\"LOGISTIEK TERREIN\"))))","v":"PRODUCTIEGERICHT & GEMENGD BEDRIJVENTERREIN"},null,null,{"$f":"IF(S15=1,\"(nieuw)\",\"(bestaand)\")","v":"(nieuw)"},null,null,null,null,"Bestaande Sites Certificaat"]
["Maak keuze:",null,null,"1-Voorbereidingsfase",null,null,"2-Ontwerpfase",null,null,"Categorie weging",null,null,null,"Checklist Bestaande Sites"]
[null,null,null,"Geef accent","Status","Weging","Geef accent","Status","Weging",null,null,null,null,"Weging",null,null,null,null,null,null,"Beschikbaar","Beschikbaar"]
["MAN","1. MANAGEMENT (20%)",null,{"$f":"IF(SUM(Q9:R29)=0,\"U heeft nog geen wijzigingen in dit thema doorgevoerd\",IF(SUM(Q9:R29)=1,\"Let op! U kunt nog 2 wijziging binnen dit thema doorvoeren\",IF(SUM(Q9:R29)=2,\"Let op! U kunt nog 1 wijziging voor dit thema doorvoeren\",IF(SUM(Q9:R29)=3,\"LET OP! U mag geen wijzigingen meer doorvoeren binnen dit thema\",\"STOP! U heeft te veel wijzigingen doorgevoerd. Klik op de knop 'basiswaarden' om te resetten\"))))","v":"U heeft nog geen wijzigingen in dit thema doorgevoerd"},null,null,null,null,null,{"$f":"SUM(I7+F7)","v":20.000000000000004}]
[null,null,null,null,null,{"$f":"SUM(F9:F23)","v":9.2000000000000011},null,null,{"$f":"SUM(I12:I29)","v":10.800000000000002},null,null,null,null,null,null,null,null,null,"1 - Productiegericht & gemengd bedrijventerrein"," (i.e. traditionele transport en distributie, industrie, afvalverwerking, recycling)",11,9]
["MAN1","Markt",null,null,null,null,null,null,null,null,null,null,null,null,null,null,null,null,"2 - Kantoor terrein"," (i.e. kantoren- en dienstenzones, kantoren publieksgericht)"]
["MAN1.1",null,"Marktanalyse (marktvraag & welke eisen stelt markt aan de locatie)",null,{"$f":"IF(K9=1,\"minder belangrijk\",IF(K9=2,\"relevant\",IF(K9=3,\"extra belangrijk\")))","v":"extra belangrijk"},{"$f":"IF(K9=1,U9,IF(K9=2,U9*2,IF(K9=3,U9*3)))","v":1.2000000000000002},null,null,null,null,{"$f":"IFERROR(IF(OR(INDEX('Criteria-Status-Tabel'!$A$5:$K$128,MATCH(\"1-\"&'Invulscherm 1 - Weging'!$A9,'Criteria-Status-Tabel'!$A$5:$A$128,0),MATCH(10*$S$15+$S$14,'Criteria-Status-Tabel'!$A$5:$K$5,0))=\"relevant\",INDEX('Criteria-Status-Tabel'!$A$5:$K$128,MATCH(\"1-\"&'Invulscherm 1 - Weging'!$A9,'Criteria-Status-Tabel'!$A$5:$A$128,0),MATCH(10*$S$15+$S$14,'Criteria-Status-Tabel'!$A$5:$K$5,0))=\"verplicht\")=TRUE,2,IF(INDEX('Criteria-Status-Tabel'!$A$5:$K$128,MATCH(\"1-\"&'Invulscherm 1 - Weging'!$A9,'Criteria-Status-Tabel'!$A$5:$A$128,0),MATCH(10*$S$15+$S$14,'Criteria-Status-Tabel'!$A$5:$K$5,0))=\"extra belangrijk\",3,1)),\"1\")","v":3},null,null,null,{"$f":"IFERROR(IF(OR(INDEX('Criteria-Status-Tabel'!$A$5:$K$128,MATCH(\"1-\"&'Invulscherm 1 - Weging'!$A9,'Criteria-Status-Tabel'!$A$5:$A$128,0),MATCH(10*$S$15+$S$14,'Criteria-Status-Tabel'!$A$5:$K$5,0))=\"relevant\",INDEX('Criteria-Status-Tabel'!$A$5:$K$128,MATCH(\"1-\"&'Invulscherm 1 - Weging'!$A9,'Criteria-Status-Tabel'!$A$5:$A$128,0),MATCH(10*$S$15+$S$14,'Criteria-Status-Tabel'!$A$5:$K$5,0))=\"verplicht\")=TRUE,2,IF(INDEX('Criteria-Status-Tabel'!$A$5:$K$128,MATCH(\"1-\"&'Invulscherm 1 - Weging'!$A9,'Criteria-Status-Tabel'!$A$5:$A$128,0),MATCH(10*$S$15+$S$14,'Criteria-Status-Tabel'!$A$5:$K$5,0))=\"extra belangrijk\",3,1)),\"1\")","v":3},null,{"$f":"IF(K9<>O9,1,0)","v":0},{"$f":"IF(L9<>P9,1,0)","v":0},"3 - Vrijetijdsgericht bedrijventerrein"," (i.e. kleinhandel, leisure (sportstadia, beurzen))",{"$f":"SUM($U$7+$V$7)/SUM($K$9:$L$29)","v":0.4},null,"Alleen uit bij 'bestaande terreinen'"]
["MAN1.2",null,"Effect marktanalyse op ruimtelijk ontwerp",null,{"$f":"IF(K10=1,\"minder belangrijk\",IF(K10=2,\"relevant\",IF(K10=3,\"extra belangrijk\")))","v":"extra belangrijk"},{"$f":"IF(K10=1,U10,IF(K10=2,U10*2,IF(K10=3,U10*3)))","v":1.2000000000000002},null,null,null,null,{"$f":"IFERROR(IF(OR(INDEX('Criteria-Status-Tabel'!$A$5:$K$128,MATCH(\"1-\"&'Invulscherm 1 - Weging'!$A10,'Criteria-Status-Tabel'!$A$5:$A$128,0),MATCH(10*$S$15+$S$14,'Criteria-Status-Tabel'!$A$5:$K$5,0))=\"relevant\",INDEX('Criteria-Status-Tabel'!$A$5:$K$128,MATCH(\"1-\"&'Invulscherm 1 - Weging'!$A10,'Criteria-Status-Tabel'!$A$5:$A$128,0),MATCH(10*$S$15+$S$14,'Criteria-Status-Tabel'!$A$5:$K$5,0))=\"verplicht\")=TRUE,2,IF(INDEX('Criteria-Status-Tabel'!$A$5:$K$128,MATCH(\"1-\"&'Invulscherm 1 - Weging'!$A10,'Criteria-Status-Tabel'!$A$5:$A$128,0),MATCH(10*$S$15+$S$14,'Criteria-Status-Tabel'!$A$5:$K$5,0))=\"extra belangrijk\",3,1)),\"1\")","v":3},null,null,null,{"$f":"IFERROR(IF(OR(INDEX('Criteria-Status-Tabel'!$A$5:$K$128,MATCH(\"1-\"&'Invulscherm 1 - Weging'!$A10,'Criteria-Status-Tabel'!$A$5:$A$128,0),MATCH(10*$S$15+$S$14,'Criteria-Status-Tabel'!$A$5:$K$5,0))=\"relevant\",INDEX('Criteria-Status-Tabel'!$A$5:$K$128,MATCH(\"1-\"&'Invulscherm 1 - Weging'!$A10,'Criteria-Status-Tabel'!$A$5:$A$128,0),MATCH(10*$S$15+$S$14,'Criteria-Status-Tabel'!$A$5:$K$5,0))=\"verplicht\")=TRUE,2,IF(INDEX('Criteria-Status-Tabel'!$A$5:$K$128,MATCH(\"1-\"&'Invulscherm 1 - Weging'!$A10,'Criteria-Status-Tabel'!$A$5:$A$128,0),MATCH(10*$S$15+$S$14,'Criteria-Status-Tabel'!$A$5:$K$5,0))=\"extra belangrijk\",3,1)),\"1\")","v":3},null,0,0,"4 - Logistiek terrein"," (Standaar weging - geen eenduidig profiel)",{"$f":"SUM($U$7+$V$7)/SUM($K$9:$L$29)","v":0.4},null,"Alleen uit bij 'bestaande terreinen'"]
["MAN1.3",null,"Maatschappelijk kosten baten (MKBA)",null,"extra belangrijk",{"$f":"IF(K11=1,U11,IF(K11=2,U11*2,IF(K11=3,U11*3)))","v":1.2000000000000002},null,null,null,null,{"$f":"IFERROR(IF(OR(INDEX('Criteria-Status-Tabel'!$A$5:$K$128,MATCH(\"1-\"&'Invulscherm 1 - Weging'!$A11,'Criteria-Status-Tabel'!$A$5:$A$128,0),MATCH(10*$S$15+$S$14,'Criteria-Status-Tabel'!$A$5:$K$5,0))=\"relevant\",INDEX('Criteria-Status-Tabel'!$A$5:$K$128,MATCH(\"1-\"&'Invulscherm 1 - Weging'!$A11,'Criteria-Status-Tabel'!$A$5:$A$128,0),MATCH(10*$S$15+$S$14,'Criteria-Status-Tabel'!$A$5:$K$5,0))=\"verplicht\")=TRUE,2,IF(INDEX('Criteria-Status-Tabel'!$A$5:$K$128,MATCH(\"1-\"&'Invulscherm 1 - Weging'!$A11,'Criteria-Status-Tabel'!$A$5:$A$128,0),MATCH(10*$S$15+$S$14,'Criteria-Status-Tabel'!$A$5:$K$5,0))=\"extra belangrijk\",3,1)),\"1\")","v":3},null,null,null,{"$f":"IFERROR(IF(OR(INDEX('Criteria-Status-Tabel'!$A$5:$K$128,MATCH(\"1-\"&'Invulscherm 1 - Weging'!$A11,'Criteria-Status-Tabel'!$A$5:$A$128,0),MATCH(10*$S$15+$S$14,'Criteria-Status-Tabel'!$A$5:$K$5,0))=\"relevant\",INDEX('Criteria-Status-Tabel'!$A$5:$K$128,MATCH(\"1-\"&'Invulscherm 1 - Weging'!$A11,'Criteria-Status-Tabel'!$A$5:$A$128,0),MATCH(10*$S$15+$S$14,'Criteria-Status-Tabel'!$A$5:$K$5,0))=\"verplicht\")=TRUE,2,IF(INDEX('Criteria-Status-Tabel'!$A$5:$K$128,MATCH(\"1-\"&'Invulscherm 1 - Weging'!$A11,'Criteria-Status-Tabel'!$A$5:$A$128,0),MATCH(10*$S$15+$S$14,'Criteria-Status-Tabel'!$A$5:$K$5,0))=\"extra belangrijk\",3,1)),\"1\")","v":3},null,0,0,"1 - Nieuw bedrijventerrein"," (i.e. geen eenduidig profiel)",{"$f":"SUM($U$7+$V$7)/SUM($K$9:$L$29)","v":0.4},null,"Alleen uit bij 'bestaande terreinen'"]
["MAN1.4",null,"Maatschappelijk Verantwoord Ondernemen (MVO)",null,null,null,null,{"$f":"IF(L12=1,\"minder belangrijk\",IF(L12=2,\"relevant\",IF(L12=3,\"extra belangrijk\")))","v":"relevant"},{"$f":"IF(L12=1,V12,IF(L12=2,V12*2,IF(L12=3,V12*3)))","v":0.8},null,null,{"$f":"IFERROR(IF(OR(INDEX('Criteria-Status-Tabel'!$A$5:$K$128,MATCH(\"2-\"&'Invulscherm 1 - Weging'!$A12,'Criteria-Status-Tabel'!$A$5:$A$128,0),MATCH(10*$S$15+$S$14,'Criteria-Status-Tabel'!$A$5:$K$5,0))=\"relevant\",INDEX('Criteria-Status-Tabel'!$A$5:$K$128,MATCH(\"2-\"&'Invulscherm 1 - Weging'!$A12,'Criteria-Status-Tabel'!$A$5:$A$128,0),MATCH(10*$S$15+$S$14,'Criteria-Status-Tabel'!$A$5:$K$5,0))=\"verplicht\")=TRUE,2,IF(INDEX('Criteria-Status-Tabel'!$A$5:$K$128,MATCH(\"2-\"&'Invulscherm 1 - Weging'!$A12,'Criteria-Status-Tabel'!$A$5:$A$128,0),MATCH(10*$S$15+$S$14,'Criteria-Status-Tabel'!$A$5:$K$5,0))=\"extra belangrijk\",3,1)),\"1\")","v":2},null,null,null,{"$f":"IFERROR(IF(OR(INDEX('Criteria-Status-Tabel'!$A$5:$K$128,MATCH(\"2-\"&'Invulscherm 1 - Weging'!$A12,'Criteria-Status-Tabel'!$A$5:$A$128,0),MATCH(10*$S$15+$S$14,'Criteria-Status-Tabel'!$A$5:$K$5,0))=\"relevant\",INDEX('Criteria-Status-Tabel'!$A$5:$K$128,MATCH(\"2-\"&'Invulscherm 1 - Weging'!$A12,'Criteria-Status-Tabel'!$A$5:$A$128,0),MATCH(10*$S$15+$S$14,'Criteria-Status-Tabel'!$A$5:$K$5,0))=\"verplicht\")=TRUE,2,IF(INDEX('Criteria-Status-Tabel'!$A$5:$K$128,MATCH(\"2-\"&'Invulscherm 1 - Weging'!$A12,'Criteria-Status-Tabel'!$A$5:$A$128,0),MATCH(10*$S$15+$S$14,'Criteria-Status-Tabel'!$A$5:$K$5,0))=\"extra belangrijk\",3,1)),\"1\")","v":2},0,0,"2 - Bestaand bedrijventerrein",null,null,{"$f":"SUM($U$7+$V$7)/SUM($K$9:$L$29)","v":0.4}]
["MAN2","Proces",null,null,null,null,null,null,null,null,null,null,null,null,null,null,0,0,"3 - Bestaande economische sites"]
["MAN2.1",null,"Procesaanpak",null,{"$f":"IF(K14=2,\"verplicht\",\"extra belangrijk\")","v":"verplicht"},{"$f":"IF(K14=2,SUM(U14+U14),(U14*3))","v":0.8},null,{"$f":"IF(L14=1,\"minder belangrijk\",IF(L14=2,\"relevant\",IF(L14=3,\"extra belangrijk\")))","v":"relevant"},{"$f":"IF(L14=1,V14,IF(L14=2,V14*2,IF(L14=3,V14*3)))","v":0.8},null,{"$f":"IFERROR(IF(OR(INDEX('Criteria-Status-Tabel'!$A$5:$K$128,MATCH(\"1-\"&'Invulscherm 1 - Weging'!$A14,'Criteria-Status-Tabel'!$A$5:$A$128,0),MATCH(10*$S$15+$S$14,'Criteria-Status-Tabel'!$A$5:$K$5,0))=\"relevant\",INDEX('Criteria-Status-Tabel'!$A$5:$K$128,MATCH(\"1-\"&'Invulscherm 1 - Weging'!$A14,'Criteria-Status-Tabel'!$A$5:$A$128,0),MATCH(10*$S$15+$S$14,'Criteria-Status-Tabel'!$A$5:$K$5,0))=\"verplicht\")=TRUE,2,IF(INDEX('Criteria-Status-Tabel'!$A$5:$K$128,MATCH(\"1-\"&'Invulscherm 1 - Weging'!$A14,'Criteria-Status-Tabel'!$A$5:$A$128,0),MATCH(10*$S$15+$S$14,'Criteria-Status-Tabel'!$A$5:$K$5,0))=\"extra belangrijk\",3,1)),\"1\")","v":2},{"$f":"IFERROR(IF(OR(INDEX('Criteria-Status-Tabel'!$A$5:$K$128,MATCH(\"2-\"&'Invulscherm 1 - Weging'!$A14,'Criteria-Status-Tabel'!$A$5:$A$128,0),MATCH(10*$S$15+$S$14,'Criteria-Status-Tabel'!$A$5:$K$5,0))=\"relevant\",INDEX('Criteria-Status-Tabel'!$A$5:$K$128,MATCH(\"2-\"&'Invulscherm 1 - Weging'!$A14,'Criteria-Status-Tabel'!$A$5:$A$128,0),MATCH(10*$S$15+$S$14,'Criteria-Status-Tabel'!$A$5:$K$5,0))=\"verplicht\")=TRUE,2,IF(INDEX('Criteria-Status-Tabel'!$A$5:$K$128,MATCH(\"2-\"&'Invulscherm 1 - Weging'!$A14,'Criteria-Status-Tabel'!$A$5:$A$128,0),MATCH(10*$S$15+$S$14,'Criteria-Status-Tabel'!$A$5:$K$5,0))=\"extra belangrijk\",3,1)),\"1\")","v":2},null,null,{"$f":"IFERROR(IF(OR(INDEX('Criteria-Status-Tabel'!$A$5:$K$128,MATCH(\"1-\"&'Invulscherm 1 - Weging'!$A14,'Criteria-Status-Tabel'!$A$5:$A$128,0),MATCH(10*$S$15+$S$14,'Criteria-Status-Tabel'!$A$5:$K$5,0))=\"relevant\",INDEX('Criteria-Status-Tabel'!$A$5:$K$128,MATCH(\"1-\"&'Invulscherm 1 - Weging'!$A14,'Criteria-Status-Tabel'!$A$5:$A$128,0),MATCH(10*$S$15+$S$14,'Criteria-Status-Tabel'!$A$5:$K$5,0))=\"verplicht\")=TRUE,2,IF(INDEX('Criteria-Status-Tabel'!$A$5:$K$128,MATCH(\"1-\"&'Invulscherm 1 - Weging'!$A14,'Criteria-Status-Tabel'!$A$5:$A$128,0),MATCH(10*$S$15+$S$14,'Criteria-Status-Tabel'!$A$5:$K$5,0))=\"extra belangrijk\",3,1)),\"1\")","v":2},{"$f":"IFERROR(IF(OR(INDEX('Criteria-Status-Tabel'!$A$5:$K$128,MATCH(\"2-\"&'Invulscherm 1 - Weging'!$A14,'Criteria-Status-Tabel'!$A$5:$A$128,0),MATCH(10*$S$15+$S$14,'Criteria-Status-Tabel'!$A$5:$K$5,0))=\"relevant\",INDEX('Criteria-Status-Tabel'!$A$5:$K$128,MATCH(\"2-\"&'Invulscherm 1 - Weging'!$A14,'Criteria-Status-Tabel'!$A$5:$A$128,0),MATCH(10*$S$15+$S$14,'Criteria-Status-Tabel'!$A$5:$K$5,0))=\"verplicht\")=TRUE,2,IF(INDEX('Criteria-Status-Tabel'!$A$5:$K$128,MATCH(\"2-\"&'Invulscherm 1 - Weging'!$A14,'Criteria-Status-Tabel'!$A$5:$A$128,0),MATCH(10*$S$15+$S$14,'Criteria-Status-Tabel'!$A$5:$K$5,0))=\"extra belangrijk\",3,1)),\"1\")","v":2},0,0,1,null,{"$f":"SUM($U$7+$V$7)/SUM($K$9:$L$29)","v":0.4},{"$f":"SUM($U$7+$V$7)/SUM($K$9:$L$29)","v":0.4}]
["MAN2.2",null,"Uitgifteproces",null,{"$f":"IF(K15=1,\"minder belangrijk\",IF(K15=2,\"relevant\",IF(K15=3,\"extra belangrijk\")))","v":"relevant"},{"$f":"IF(K15=1,U15,IF(K15=2,U15*2,IF(K15=3,U15*3)))","v":0.8},null,null,null,null,{"$f":"IFERROR(IF(OR(INDEX('Criteria-Status-Tabel'!$A$5:$K$128,MATCH(\"1-\"&'Invulscherm 1 - Weging'!$A15,'Criteria-Status-Tabel'!$A$5:$A$128,0),MATCH(10*$S$15+$S$14,'Criteria-Status-Tabel'!$A$5:$K$5,0))=\"relevant\",INDEX('Criteria-Status-Tabel'!$A$5:$K$128,MATCH(\"1-\"&'Invulscherm 1 - Weging'!$A15,'Criteria-Status-Tabel'!$A$5:$A$128,0),MATCH(10*$S$15+$S$14,'Criteria-Status-Tabel'!$A$5:$K$5,0))=\"verplicht\")=TRUE,2,IF(INDEX('Criteria-Status-Tabel'!$A$5:$K$128,MATCH(\"1-\"&'Invulscherm 1 - Weging'!$A15,'Criteria-Status-Tabel'!$A$5:$A$128,0),MATCH(10*$S$15+$S$14,'Criteria-Status-Tabel'!$A$5:$K$5,0))=\"extra belangrijk\",3,1)),\"1\")","v":2},null,null,null,{"$f":"IFERROR(IF(OR(INDEX('Criteria-Status-Tabel'!$A$5:$K$128,MATCH(\"1-\"&'Invulscherm 1 - Weging'!$A15,'Criteria-Status-Tabel'!$A$5:$A$128,0),MATCH(10*$S$15+$S$14,'Criteria-Status-Tabel'!$A$5:$K$5,0))=\"relevant\",INDEX('Criteria-Status-Tabel'!$A$5:$K$128,MATCH(\"1-\"&'Invulscherm 1 - Weging'!$A15,'Criteria-Status-Tabel'!$A$5:$A$128,0),MATCH(10*$S$15+$S$14,'Criteria-Status-Tabel'!$A$5:$K$5,0))=\"verplicht\")=TRUE,2,IF(INDEX('Criteria-Status-Tabel'!$A$5:$K$128,MATCH(\"1-\"&'Invulscherm 1 - Weging'!$A15,'Criteria-Status-Tabel'!$A$5:$A$128,0),MATCH(10*$S$15+$S$14,'Criteria-Status-Tabel'!$A$5:$K$5,0))=\"extra belangrijk\",3,1)),\"1\")","v":2},null,0,0,1,null,{"$f":"SUM($U$7+$V$7)/SUM($K$9:$L$29)","v":0.4},null,"Alleen uit bij 'bestaande terreinen'"]
["MAN2.3",null,"Gebiedsvisie & duurzaamheidsambitie",null,{"$f":"IF(K16=2,\"verplicht\",\"extra belangrijk\")","v":"verplicht"},{"$f":"IF(K16=2,SUM(U16+U16),(U16*3))","v":0.8},null,{"$f":"IF(L16=2,\"verplicht\",\"extra belangrijk\")","v":"verplicht"},{"$f":"IF(L16=1,V16,IF(L16=2,V16*2,IF(L16=3,V16*3)))","v":0.8},null,{"$f":"IFERROR(IF(OR(INDEX('Criteria-Status-Tabel'!$A$5:$K$128,MATCH(\"1-\"&'Invulscherm 1 - Weging'!$A16,'Criteria-Status-Tabel'!$A$5:$A$128,0),MATCH(10*$S$15+$S$14,'Criteria-Status-Tabel'!$A$5:$K$5,0))=\"relevant\",INDEX('Criteria-Status-Tabel'!$A$5:$K$128,MATCH(\"1-\"&'Invulscherm 1 - Weging'!$A16,'Criteria-Status-Tabel'!$A$5:$A$128,0),MATCH(10*$S$15+$S$14,'Criteria-Status-Tabel'!$A$5:$K$5,0))=\"verplicht\")=TRUE,2,IF(INDEX('Criteria-Status-Tabel'!$A$5:$K$128,MATCH(\"1-\"&'Invulscherm 1 - Weging'!$A16,'Criteria-Status-Tabel'!$A$5:$A$128,0),MATCH(10*$S$15+$S$14,'Criteria-Status-Tabel'!$A$5:$K$5,0))=\"extra belangrijk\",3,1)),\"1\")","v":2},{"$f":"IFERROR(IF(OR(INDEX('Criteria-Status-Tabel'!$A$5:$K$128,MATCH(\"2-\"&'Invulscherm 1 - Weging'!$A16,'Criteria-Status-Tabel'!$A$5:$A$128,0),MATCH(10*$S$15+$S$14,'Criteria-Status-Tabel'!$A$5:$K$5,0))=\"relevant\",INDEX('Criteria-Status-Tabel'!$A$5:$K$128,MATCH(\"2-\"&'Invulscherm 1 - Weging'!$A16,'Criteria-Status-Tabel'!$A$5:$A$128,0),MATCH(10*$S$15+$S$14,'Criteria-Status-Tabel'!$A$5:$K$5,0))=\"verplicht\")=TRUE,2,IF(INDEX('Criteria-Status-Tabel'!$A$5:$K$128,MATCH(\"2-\"&'Invulscherm 1 - Weging'!$A16,'Criteria-Status-Tabel'!$A$5:$A$128,0),MATCH(10*$S$15+$S$14,'Criteria-Status-Tabel'!$A$5:$K$5,0))=\"extra belangrijk\",3,1)),\"1\")","v":2},null,null,{"$f":"IFERROR(IF(OR(INDEX('Criteria-Status-Tabel'!$A$5:$K$128,MATCH(\"1-\"&'Invulscherm 1 - Weging'!$A16,'Criteria-Status-Tabel'!$A$5:$A$128,0),MATCH(10*$S$15+$S$14,'Criteria-Status-Tabel'!$A$5:$K$5,0))=\"relevant\",INDEX('Criteria-Status-Tabel'!$A$5:$K$128,MATCH(\"1-\"&'Invulscherm 1 - Weging'!$A16,'Criteria-Status-Tabel'!$A$5:$A$128,0),MATCH(10*$S$15+$S$14,'Criteria-Status-Tabel'!$A$5:$K$5,0))=\"verplicht\")=TRUE,2,IF(INDEX('Criteria-Status-Tabel'!$A$5:$K$128,MATCH(\"1-\"&'Invulscherm 1 - Weging'!$A16,'Criteria-Status-Tabel'!$A$5:$A$128,0),MATCH(10*$S$15+$S$14,'Criteria-Status-Tabel'!$A$5:$K$5,0))=\"extra belangrijk\",3,1)),\"1\")","v":2},{"$f":"IFERROR(IF(OR(INDEX('Criteria-Status-Tabel'!$A$5:$K$128,MATCH(\"2-\"&'Invulscherm 1 - Weging'!$A16,'Criteria-Status-Tabel'!$A$5:$A$128,0),MATCH(10*$S$15+$S$14,'Criteria-Status-Tabel'!$A$5:$K$5,0))=\"relevant\",INDEX('Criteria-Status-Tabel'!$A$5:$K$128,MATCH(\"2-\"&'Invulscherm 1 - Weging'!$A16,'Criteria-Status-Tabel'!$A$5:$A$128,0),MATCH(10*$S$15+$S$14,'Criteria-Status-Tabel'!$A$5:$K$5,0))=\"verplicht\")=TRUE,2,IF(INDEX('Criteria-Status-Tabel'!$A$5:$K$128,MATCH(\"2-\"&'Invulscherm 1 - Weging'!$A16,'Criteria-Status-Tabel'!$A$5:$A$128,0),MATCH(10*$S$15+$S$14,'Criteria-Status-Tabel'!$A$5:$K$5,0))=\"extra belangrijk\",3,1)),\"1\")","v":2},0,0,null,null,{"$f":"SUM($U$7+$V$7)/SUM($K$9:$L$29)","v":0.4},{"$f":"SUM($U$7+$V$7)/SUM($K$9:$L$29)","v":0.4}]
["MAN3","Draagvlak / Stakeholder management",null,null,null,null,null,null,null,null,null,null,null,null,null,null,0,0]
["MAN3.1",null,"Stakeholder analyse + herziening ontwerp",null,{"$f":"IF(K18=2,\"verplicht\",\"extra belangrijk\")","v":"verplicht"},{"$f":"IF(K18=2,SUM(U18+U18),(U18*3))","v":0.8},null,{"$f":"IF(L18=1,\"minder belangrijk\",IF(L18=2,\"relevant\",IF(L18=3,\"extra belangrijk\")))","v":"relevant"},{"$f":"IF(L18=1,V18,IF(L18=2,V18*2,IF(L18=3,V18*3)))","v":0.8},null,{"$f":"IFERROR(IF(OR(INDEX('Criteria-Status-Tabel'!$A$5:$K$128,MATCH(\"1-\"&'Invulscherm 1 - Weging'!$A18,'Criteria-Status-Tabel'!$A$5:$A$128,0),MATCH(10*$S$15+$S$14,'Criteria-Status-Tabel'!$A$5:$K$5,0))=\"relevant\",INDEX('Criteria-Status-Tabel'!$A$5:$K$128,MATCH(\"1-\"&'Invulscherm 1 - Weging'!$A18,'Criteria-Status-Tabel'!$A$5:$A$128,0),MATCH(10*$S$15+$S$14,'Criteria-Status-Tabel'!$A$5:$K$5,0))=\"verplicht\")=TRUE,2,IF(INDEX('Criteria-Status-Tabel'!$A$5:$K$128,MATCH(\"1-\"&'Invulscherm 1 - Weging'!$A18,'Criteria-Status-Tabel'!$A$5:$A$128,0),MATCH(10*$S$15+$S$14,'Criteria-Status-Tabel'!$A$5:$K$5,0))=\"extra belangrijk\",3,1)),\"1\")","v":2},{"$f":"IFERROR(IF(OR(INDEX('Criteria-Status-Tabel'!$A$5:$K$128,MATCH(\"2-\"&'Invulscherm 1 - Weging'!$A18,'Criteria-Status-Tabel'!$A$5:$A$128,0),MATCH(10*$S$15+$S$14,'Criteria-Status-Tabel'!$A$5:$K$5,0))=\"relevant\",INDEX('Criteria-Status-Tabel'!$A$5:$K$128,MATCH(\"2-\"&'Invulscherm 1 - Weging'!$A18,'Criteria-Status-Tabel'!$A$5:$A$128,0),MATCH(10*$S$15+$S$14,'Criteria-Status-Tabel'!$A$5:$K$5,0))=\"verplicht\")=TRUE,2,IF(INDEX('Criteria-Status-Tabel'!$A$5:$K$128,MATCH(\"2-\"&'Invulscherm 1 - Weging'!$A18,'Criteria-Status-Tabel'!$A$5:$A$128,0),MATCH(10*$S$15+$S$14,'Criteria-Status-Tabel'!$A$5:$K$5,0))=\"extra belangrijk\",3,1)),\"1\")","v":2},null,null,{"$f":"IFERROR(IF(OR(INDEX('Criteria-Status-Tabel'!$A$5:$K$128,MATCH(\"1-\"&'Invulscherm 1 - Weging'!$A18,'Criteria-Status-Tabel'!$A$5:$A$128,0),MATCH(10*$S$15+$S$14,'Criteria-Status-Tabel'!$A$5:$K$5,0))=\"relevant\",INDEX('Criteria-Status-Tabel'!$A$5:$K$128,MATCH(\"1-\"&'Invulscherm 1 - Weging'!$A18,'Criteria-Status-Tabel'!$A$5:$A$128,0),MATCH(10*$S$15+$S$14,'Criteria-Status-Tabel'!$A$5:$K$5,0))=\"verplicht\")=TRUE,2,IF(INDEX('Criteria-Status-Tabel'!$A$5:$K$128,MATCH(\"1-\"&'Invulscherm 1 - Weging'!$A18,'Criteria-Status-Tabel'!$A$5:$A$128,0),MATCH(10*$S$15+$S$14,'Criteria-Status-Tabel'!$A$5:$K$5,0))=\"extra belangrijk\",3,1)),\"1\")","v":2},{"$f":"IFERROR(IF(OR(INDEX('Criteria-Status-Tabel'!$A$5:$K$128,MATCH(\"2-\"&'Invulscherm 1 - Weging'!$A18,'Criteria-Status-Tabel'!$A$5:$A$128,0),MATCH(10*$S$15+$S$14,'Criteria-Status-Tabel'!$A$5:$K$5,0))=\"relevant\",INDEX('Criteria-Status-Tabel'!$A$5:$K$128,MATCH(\"2-\"&'Invulscherm 1 - Weging'!$A18,'Criteria-Status-Tabel'!$A$5:$A$128,0),MATCH(10*$S$15+$S$14,'Criteria-Status-Tabel'!$A$5:$K$5,0))=\"verplicht\")=TRUE,2,IF(INDEX('Criteria-Status-Tabel'!$A$5:$K$128,MATCH(\"2-\"&'Invulscherm 1 - Weging'!$A18,'Criteria-Status-Tabel'!$A$5:$A$128,0),MATCH(10*$S$15+$S$14,'Criteria-Status-Tabel'!$A$5:$K$5,0))=\"extra belangrijk\",3,1)),\"1\")","v":2},0,0,null,null,{"$f":"SUM($U$7+$V$7)/SUM($K$9:$L$29)","v":0.4},{"$f":"SUM($U$7+$V$7)/SUM($K$9:$L$29)","v":0.4}]
["MAN3.2",null,"Klantwensen en garanderen van betrokkenheid",null,{"$f":"IF(K19=2,\"verplicht\",\"extra belangrijk\")","v":"verplicht"},{"$f":"IF(K19=2,SUM(U19+U19),(U19*3))","v":0.8},null,{"$f":"IF(L19=2,\"verplicht\",\"extra belangrijk\")","v":"verplicht"},{"$f":"IF(L19=1,V19,IF(L19=2,V19*2,IF(L19=3,V19*3)))","v":0.8},null,{"$f":"IFERROR(IF(OR(INDEX('Criteria-Status-Tabel'!$A$5:$K$128,MATCH(\"1-\"&'Invulscherm 1 - Weging'!$A19,'Criteria-Status-Tabel'!$A$5:$A$128,0),MATCH(10*$S$15+$S$14,'Criteria-Status-Tabel'!$A$5:$K$5,0))=\"relevant\",INDEX('Criteria-Status-Tabel'!$A$5:$K$128,MATCH(\"1-\"&'Invulscherm 1 - Weging'!$A19,'Criteria-Status-Tabel'!$A$5:$A$128,0),MATCH(10*$S$15+$S$14,'Criteria-Status-Tabel'!$A$5:$K$5,0))=\"verplicht\")=TRUE,2,IF(INDEX('Criteria-Status-Tabel'!$A$5:$K$128,MATCH(\"1-\"&'Invulscherm 1 - Weging'!$A19,'Criteria-Status-Tabel'!$A$5:$A$128,0),MATCH(10*$S$15+$S$14,'Criteria-Status-Tabel'!$A$5:$K$5,0))=\"extra belangrijk\",3,1)),\"1\")","v":2},{"$f":"IFERROR(IF(OR(INDEX('Criteria-Status-Tabel'!$A$5:$K$128,MATCH(\"2-\"&'Invulscherm 1 - Weging'!$A19,'Criteria-Status-Tabel'!$A$5:$A$128,0),MATCH(10*$S$15+$S$14,'Criteria-Status-Tabel'!$A$5:$K$5,0))=\"relevant\",INDEX('Criteria-Status-Tabel'!$A$5:$K$128,MATCH(\"2-\"&'Invulscherm 1 - Weging'!$A19,'Criteria-Status-Tabel'!$A$5:$A$128,0),MATCH(10*$S$15+$S$14,'Criteria-Status-Tabel'!$A$5:$K$5,0))=\"verplicht\")=TRUE,2,IF(INDEX('Criteria-Status-Tabel'!$A$5:$K$128,MATCH(\"2-\"&'Invulscherm 1 - Weging'!$A19,'Criteria-Status-Tabel'!$A$5:$A$128,0),MATCH(10*$S$15+$S$14,'Criteria-Status-Tabel'!$A$5:$K$5,0))=\"extra belangrijk\",3,1)),\"1\")","v":2},null,null,{"$f":"IFERROR(IF(OR(INDEX('Criteria-Status-Tabel'!$A$5:$K$128,MATCH(\"1-\"&'Invulscherm 1 - Weging'!$A19,'Criteria-Status-Tabel'!$A$5:$A$128,0),MATCH(10*$S$15+$S$14,'Criteria-Status-Tabel'!$A$5:$K$5,0))=\"relevant\",INDEX('Criteria-Status-Tabel'!$A$5:$K$128,MATCH(\"1-\"&'Invulscherm 1 - Weging'!$A19,'Criteria-Status-Tabel'!$A$5:$A$128,0),MATCH(10*$S$15+$S$14,'Criteria-Status-Tabel'!$A$5:$K$5,0))=\"verplicht\")=TRUE,2,IF(INDEX('Criteria-Status-Tabel'!$A$5:$K$128,MATCH(\"1-\"&'Invulscherm 1 - Weging'!$A19,'Criteria-Status-Tabel'!$A$5:$A$128,0),MATCH(10*$S$15+$S$14,'Criteria-Status-Tabel'!$A$5:$K$5,0))=\"extra belangrijk\",3,1)),\"1\")","v":2},{"$f":"IFERROR(IF(OR(INDEX('Criteria-Status-Tabel'!$A$5:$K$128,MATCH(\"2-\"&'Invulscherm 1 - Weging'!$A19,'Criteria-Status-Tabel'!$A$5:$A$128,0),MATCH(10*$S$15+$S$14,'Criteria-Status-Tabel'!$A$5:$K$5,0))=\"relevant\",INDEX('Criteria-Status-Tabel'!$A$5:$K$128,MATCH(\"2-\"&'Invulscherm 1 - Weging'!$A19,'Criteria-Status-Tabel'!$A$5:$A$128,0),MATCH(10*$S$15+$S$14,'Criteria-Status-Tabel'!$A$5:$K$5,0))=\"verplicht\")=TRUE,2,IF(INDEX('Criteria-Status-Tabel'!$A$5:$K$128,MATCH(\"2-\"&'Invulscherm 1 - Weging'!$A19,'Criteria-Status-Tabel'!$A$5:$A$128,0),MATCH(10*$S$15+$S$14,'Criteria-Status-Tabel'!$A$5:$K$5,0))=\"extra belangrijk\",3,1)),\"1\")","v":2},0,0,null,null,{"$f":"SUM($U$7+$V$7)/SUM($K$9:$L$29)","v":0.4},{"$f":"SUM($U$7+$V$7)/SUM($K$9:$L$29)","v":0.4}]
["MAN4","Parkmanagement ",null,null,null,null,null,null,null,null,null,null,null,null,null,null,0,0]
["MAN4.1",null,"Collectieve financiering",null,{"$f":"IF(K21=1,\"minder belangrijk\",IF(K21=2,\"relevant\",IF(K21=3,\"extra belangrijk\")))","v":"relevant"},{"$f":"IF(K21=1,U21,IF(K21=2,U21*2,IF(K21=3,U21*3)))","v":0.8},null,null,null,null,{"$f":"IFERROR(IF(OR(INDEX('Criteria-Status-Tabel'!$A$5:$K$128,MATCH(\"1-\"&'Invulscherm 1 - Weging'!$A21,'Criteria-Status-Tabel'!$A$5:$A$128,0),MATCH(10*$S$15+$S$14,'Criteria-Status-Tabel'!$A$5:$K$5,0))=\"relevant\",INDEX('Criteria-Status-Tabel'!$A$5:$K$128,MATCH(\"1-\"&'Invulscherm 1 - Weging'!$A21,'Criteria-Status-Tabel'!$A$5:$A$128,0),MATCH(10*$S$15+$S$14,'Criteria-Status-Tabel'!$A$5:$K$5,0))=\"verplicht\")=TRUE,2,IF(INDEX('Criteria-Status-Tabel'!$A$5:$K$128,MATCH(\"1-\"&'Invulscherm 1 - Weging'!$A21,'Criteria-Status-Tabel'!$A$5:$A$128,0),MATCH(10*$S$15+$S$14,'Criteria-Status-Tabel'!$A$5:$K$5,0))=\"extra belangrijk\",3,1)),\"1\")","v":2},null,null,null,{"$f":"IFERROR(IF(OR(INDEX('Criteria-Status-Tabel'!$A$5:$K$128,MATCH(\"1-\"&'Invulscherm 1 - Weging'!$A21,'Criteria-Status-Tabel'!$A$5:$A$128,0),MATCH(10*$S$15+$S$14,'Criteria-Status-Tabel'!$A$5:$K$5,0))=\"relevant\",INDEX('Criteria-Status-Tabel'!$A$5:$K$128,MATCH(\"1-\"&'Invulscherm 1 - Weging'!$A21,'Criteria-Status-Tabel'!$A$5:$A$128,0),MATCH(10*$S$15+$S$14,'Criteria-Status-Tabel'!$A$5:$K$5,0))=\"verplicht\")=TRUE,2,IF(INDEX('Criteria-Status-Tabel'!$A$5:$K$128,MATCH(\"1-\"&'Invulscherm 1 - Weging'!$A21,'Criteria-Status-Tabel'!$A$5:$A$128,0),MATCH(10*$S$15+$S$14,'Criteria-Status-Tabel'!$A$5:$K$5,0))=\"extra belangrijk\",3,1)),\"1\")","v":2},null,0,0,null,null,{"$f":"SUM($U$7+$V$7)/SUM($K$9:$L$29)","v":0.4}]
["MAN4.2",null,"Collectieve energie inkoop",null,null,null,null,{"$f":"IF(L22=1,\"minder belangrijk\",IF(L22=2,\"relevant\",IF(L22=3,\"extra belangrijk\")))","v":"extra belangrijk"},{"$f":"IF(L22=1,V22,IF(L22=2,V22*2,IF(L22=3,V22*3)))","v":1.2000000000000002},null,null,{"$f":"IFERROR(IF(OR(INDEX('Criteria-Status-Tabel'!$A$5:$K$128,MATCH(\"2-\"&'Invulscherm 1 - Weging'!$A22,'Criteria-Status-Tabel'!$A$5:$A$128,0),MATCH(10*$S$15+$S$14,'Criteria-Status-Tabel'!$A$5:$K$5,0))=\"relevant\",INDEX('Criteria-Status-Tabel'!$A$5:$K$128,MATCH(\"2-\"&'Invulscherm 1 - Weging'!$A22,'Criteria-Status-Tabel'!$A$5:$A$128,0),MATCH(10*$S$15+$S$14,'Criteria-Status-Tabel'!$A$5:$K$5,0))=\"verplicht\")=TRUE,2,IF(INDEX('Criteria-Status-Tabel'!$A$5:$K$128,MATCH(\"2-\"&'Invulscherm 1 - Weging'!$A22,'Criteria-Status-Tabel'!$A$5:$A$128,0),MATCH(10*$S$15+$S$14,'Criteria-Status-Tabel'!$A$5:$K$5,0))=\"extra belangrijk\",3,1)),\"1\")","v":3},null,null,null,{"$f":"IFERROR(IF(OR(INDEX('Criteria-Status-Tabel'!$A$5:$K$128,MATCH(\"2-\"&'Invulscherm 1 - Weging'!$A22,'Criteria-Status-Tabel'!$A$5:$A$128,0),MATCH(10*$S$15+$S$14,'Criteria-Status-Tabel'!$A$5:$K$5,0))=\"relevant\",INDEX('Criteria-Status-Tabel'!$A$5:$K$128,MATCH(\"2-\"&'Invulscherm 1 - Weging'!$A22,'Criteria-Status-Tabel'!$A$5:$A$128,0),MATCH(10*$S$15+$S$14,'Criteria-Status-Tabel'!$A$5:$K$5,0))=\"verplicht\")=TRUE,2,IF(INDEX('Criteria-Status-Tabel'!$A$5:$K$128,MATCH(\"2-\"&'Invulscherm 1 - Weging'!$A22,'Criteria-Status-Tabel'!$A$5:$A$128,0),MATCH(10*$S$15+$S$14,'Criteria-Status-Tabel'!$A$5:$K$5,0))=\"extra belangrijk\",3,1)),\"1\")","v":3},0,0,null,null,null,{"$f":"SUM($U$7+$V$7)/SUM($K$9:$L$29)","v":0.4}]
["MAN4.3",null,"Collectief afvalmanagement",null,{"$f":"IF(K23=2,\"verplicht\",\"extra belangrijk\")","v":"verplicht"},{"$f":"IF(K23=2,SUM(U23+U23),(U23*3))","v":0.8},null,null,null,null,{"$f":"IFERROR(IF(OR(INDEX('Criteria-Status-Tabel'!$A$5:$K$128,MATCH(\"1-\"&'Invulscherm 1 - Weging'!$A23,'Criteria-Status-Tabel'!$A$5:$A$128,0),MATCH(10*$S$15+$S$14,'Criteria-Status-Tabel'!$A$5:$K$5,0))=\"relevant\",INDEX('Criteria-Status-Tabel'!$A$5:$K$128,MATCH(\"1-\"&'Invulscherm 1 - Weging'!$A23,'Criteria-Status-Tabel'!$A$5:$A$128,0),MATCH(10*$S$15+$S$14,'Criteria-Status-Tabel'!$A$5:$K$5,0))=\"verplicht\")=TRUE,2,IF(INDEX('Criteria-Status-Tabel'!$A$5:$K$128,MATCH(\"1-\"&'Invulscherm 1 - Weging'!$A23,'Criteria-Status-Tabel'!$A$5:$A$128,0),MATCH(10*$S$15+$S$14,'Criteria-Status-Tabel'!$A$5:$K$5,0))=\"extra belangrijk\",3,1)),\"1\")","v":2},{"$f":"IFERROR(IF(OR(INDEX('Criteria-Status-Tabel'!$A$5:$K$128,MATCH(\"2-\"&'Invulscherm 1 - Weging'!$A23,'Criteria-Status-Tabel'!$A$5:$A$128,0),MATCH(10*$S$15+$S$14,'Criteria-Status-Tabel'!$A$5:$K$5,0))=\"relevant\",INDEX('Criteria-Status-Tabel'!$A$5:$K$128,MATCH(\"2-\"&'Invulscherm 1 - Weging'!$A23,'Criteria-Status-Tabel'!$A$5:$A$128,0),MATCH(10*$S$15+$S$14,'Criteria-Status-Tabel'!$A$5:$K$5,0))=\"verplicht\")=TRUE,2,IF(INDEX('Criteria-Status-Tabel'!$A$5:$K$128,MATCH(\"2-\"&'Invulscherm 1 - Weging'!$A23,'Criteria-Status-Tabel'!$A$5:$A$128,0),MATCH(10*$S$15+$S$14,'Criteria-Status-Tabel'!$A$5:$K$5,0))=\"extra belangrijk\",3,1)),\"1\")","v":"1"},null,null,{"$f":"IFERROR(IF(OR(INDEX('Criteria-Status-Tabel'!$A$5:$K$128,MATCH(\"1-\"&'Invulscherm 1 - Weging'!$A23,'Criteria-Status-Tabel'!$A$5:$A$128,0),MATCH(10*$S$15+$S$14,'Criteria-Status-Tabel'!$A$5:$K$5,0))=\"relevant\",INDEX('Criteria-Status-Tabel'!$A$5:$K$128,MATCH(\"1-\"&'Invulscherm 1 - Weging'!$A23,'Criteria-Status-Tabel'!$A$5:$A$128,0),MATCH(10*$S$15+$S$14,'Criteria-Status-Tabel'!$A$5:$K$5,0))=\"verplicht\")=TRUE,2,IF(INDEX('Criteria-Status-Tabel'!$A$5:$K$128,MATCH(\"1-\"&'Invulscherm 1 - Weging'!$A23,'Criteria-Status-Tabel'!$A$5:$A$128,0),MATCH(10*$S$15+$S$14,'Criteria-Status-Tabel'!$A$5:$K$5,0))=\"extra belangrijk\",3,1)),\"1\")","v":2},{"$f":"IFERROR(IF(OR(INDEX('Criteria-Status-Tabel'!$A$5:$K$128,MATCH(\"2-\"&'Invulscherm 1 - Weging'!$A23,'Criteria-Status-Tabel'!$A$5:$A$128,0),MATCH(10*$S$15+$S$14,'Criteria-Status-Tabel'!$A$5:$K$5,0))=\"relevant\",INDEX('Criteria-Status-Tabel'!$A$5:$K$128,MATCH(\"2-\"&'Invulscherm 1 - Weging'!$A23,'Criteria-Status-Tabel'!$A$5:$A$128,0),MATCH(10*$S$15+$S$14,'Criteria-Status-Tabel'!$A$5:$K$5,0))=\"verplicht\")=TRUE,2,IF(INDEX('Criteria-Status-Tabel'!$A$5:$K$128,MATCH(\"2-\"&'Invulscherm 1 - Weging'!$A23,'Criteria-Status-Tabel'!$A$5:$A$128,0),MATCH(10*$S$15+$S$14,'Criteria-Status-Tabel'!$A$5:$K$5,0))=\"extra belangrijk\",3,1)),\"1\")","v":"1"},0,0,null,null,{"$f":"SUM($U$7+$V$7)/SUM($K$9:$L$29)","v":0.4}]
["MAN4.4",null,"Collectief beheer van groen",null,null,null,null,{"$f":"IF(L24=1,\"minder belangrijk\",IF(L24=2,\"relevant\",IF(L24=3,\"extra belangrijk\")))","v":"extra belangrijk"},{"$f":"IF(L24=1,V24,IF(L24=2,V24*2,IF(L24=3,V24*3)))","v":1.2000000000000002},null,null,{"$f":"IFERROR(IF(OR(INDEX('Criteria-Status-Tabel'!$A$5:$K$128,MATCH(\"2-\"&'Invulscherm 1 - Weging'!$A24,'Criteria-Status-Tabel'!$A$5:$A$128,0),MATCH(10*$S$15+$S$14,'Criteria-Status-Tabel'!$A$5:$K$5,0))=\"relevant\",INDEX('Criteria-Status-Tabel'!$A$5:$K$128,MATCH(\"2-\"&'Invulscherm 1 - Weging'!$A24,'Criteria-Status-Tabel'!$A$5:$A$128,0),MATCH(10*$S$15+$S$14,'Criteria-Status-Tabel'!$A$5:$K$5,0))=\"verplicht\")=TRUE,2,IF(INDEX('Criteria-Status-Tabel'!$A$5:$K$128,MATCH(\"2-\"&'Invulscherm 1 - Weging'!$A24,'Criteria-Status-Tabel'!$A$5:$A$128,0),MATCH(10*$S$15+$S$14,'Criteria-Status-Tabel'!$A$5:$K$5,0))=\"extra belangrijk\",3,1)),\"1\")","v":3},null,null,null,{"$f":"IFERROR(IF(OR(INDEX('Criteria-Status-Tabel'!$A$5:$K$128,MATCH(\"2-\"&'Invulscherm 1 - Weging'!$A24,'Criteria-Status-Tabel'!$A$5:$A$128,0),MATCH(10*$S$15+$S$14,'Criteria-Status-Tabel'!$A$5:$K$5,0))=\"relevant\",INDEX('Criteria-Status-Tabel'!$A$5:$K$128,MATCH(\"2-\"&'Invulscherm 1 - Weging'!$A24,'Criteria-Status-Tabel'!$A$5:$A$128,0),MATCH(10*$S$15+$S$14,'Criteria-Status-Tabel'!$A$5:$K$5,0))=\"verplicht\")=TRUE,2,IF(INDEX('Criteria-Status-Tabel'!$A$5:$K$128,MATCH(\"2-\"&'Invulscherm 1 - Weging'!$A24,'Criteria-Status-Tabel'!$A$5:$A$128,0),MATCH(10*$S$15+$S$14,'Criteria-Status-Tabel'!$A$5:$K$5,0))=\"extra belangrijk\",3,1)),\"1\")","v":3},0,0,null,null,null,{"$f":"SUM($U$7+$V$7)/SUM($K$9:$L$29)","v":0.4}]
["MAN4.5",null,"Collectieve mobiliteit",null,null,null,null,"extra belangrijk",1.2000000000000002,null,null,{"$f":"IFERROR(IF(OR(INDEX('Criteria-Status-Tabel'!$A$5:$K$128,MATCH(\"2-\"&'Invulscherm 1 - Weging'!$A25,'Criteria-Status-Tabel'!$A$5:$A$128,0),MATCH(10*$S$15+$S$14,'Criteria-Status-Tabel'!$A$5:$K$5,0))=\"relevant\",INDEX('Criteria-Status-Tabel'!$A$5:$K$128,MATCH(\"2-\"&'Invulscherm 1 - Weging'!$A25,'Criteria-Status-Tabel'!$A$5:$A$128,0),MATCH(10*$S$15+$S$14,'Criteria-Status-Tabel'!$A$5:$K$5,0))=\"verplicht\")=TRUE,2,IF(INDEX('Criteria-Status-Tabel'!$A$5:$K$128,MATCH(\"2-\"&'Invulscherm 1 - Weging'!$A25,'Criteria-Status-Tabel'!$A$5:$A$128,0),MATCH(10*$S$15+$S$14,'Criteria-Status-Tabel'!$A$5:$K$5,0))=\"extra belangrijk\",3,1)),\"1\")","v":3},null,null,null,{"$f":"IFERROR(IF(OR(INDEX('Criteria-Status-Tabel'!$A$5:$K$128,MATCH(\"2-\"&'Invulscherm 1 - Weging'!$A25,'Criteria-Status-Tabel'!$A$5:$A$128,0),MATCH(10*$S$15+$S$14,'Criteria-Status-Tabel'!$A$5:$K$5,0))=\"relevant\",INDEX('Criteria-Status-Tabel'!$A$5:$K$128,MATCH(\"2-\"&'Invulscherm 1 - Weging'!$A25,'Criteria-Status-Tabel'!$A$5:$A$128,0),MATCH(10*$S$15+$S$14,'Criteria-Status-Tabel'!$A$5:$K$5,0))=\"verplicht\")=TRUE,2,IF(INDEX('Criteria-Status-Tabel'!$A$5:$K$128,MATCH(\"2-\"&'Invulscherm 1 - Weging'!$A25,'Criteria-Status-Tabel'!$A$5:$A$128,0),MATCH(10*$S$15+$S$14,'Criteria-Status-Tabel'!$A$5:$K$5,0))=\"extra belangrijk\",3,1)),\"1\")","v":3},0,0,null,null,null,0.4]
["MAN4.6",null,"Beveiliging",null,null,null,null,"relevant",0.8,null,null,{"$f":"IFERROR(IF(OR(INDEX('Criteria-Status-Tabel'!$A$5:$K$128,MATCH(\"2-\"&'Invulscherm 1 - Weging'!$A26,'Criteria-Status-Tabel'!$A$5:$A$128,0),MATCH(10*$S$15+$S$14,'Criteria-Status-Tabel'!$A$5:$K$5,0))=\"relevant\",INDEX('Criteria-Status-Tabel'!$A$5:$K$128,MATCH(\"2-\"&'Invulscherm 1 - Weging'!$A26,'Criteria-Status-Tabel'!$A$5:$A$128,0),MATCH(10*$S$15+$S$14,'Criteria-Status-Tabel'!$A$5:$K$5,0))=\"verplicht\")=TRUE,2,IF(INDEX('Criteria-Status-Tabel'!$A$5:$K$128,MATCH(\"2-\"&'Invulscherm 1 - Weging'!$A26,'Criteria-Status-Tabel'!$A$5:$A$128,0),MATCH(10*$S$15+$S$14,'Criteria-Status-Tabel'!$A$5:$K$5,0))=\"extra belangrijk\",3,1)),\"1\")","v":2},null,null,null,{"$f":"IFERROR(IF(OR(INDEX('Criteria-Status-Tabel'!$A$5:$K$128,MATCH(\"2-\"&'Invulscherm 1 - Weging'!$A26,'Criteria-Status-Tabel'!$A$5:$A$128,0),MATCH(10*$S$15+$S$14,'Criteria-Status-Tabel'!$A$5:$K$5,0))=\"relevant\",INDEX('Criteria-Status-Tabel'!$A$5:$K$128,MATCH(\"2-\"&'Invulscherm 1 - Weging'!$A26,'Criteria-Status-Tabel'!$A$5:$A$128,0),MATCH(10*$S$15+$S$14,'Criteria-Status-Tabel'!$A$5:$K$5,0))=\"verplicht\")=TRUE,2,IF(INDEX('Criteria-Status-Tabel'!$A$5:$K$128,MATCH(\"2-\"&'Invulscherm 1 - Weging'!$A26,'Criteria-Status-Tabel'!$A$5:$A$128,0),MATCH(10*$S$15+$S$14,'Criteria-Status-Tabel'!$A$5:$K$5,0))=\"extra belangrijk\",3,1)),\"1\")","v":2},0,0,null,null,null,0.4]
["MAN4.7",null,"Delen/Lenen/ Ruilen",null,null,null,null,"relevant",0.8,null,null,{"$f":"IFERROR(IF(OR(INDEX('Criteria-Status-Tabel'!$A$5:$K$128,MATCH(\"2-\"&'Invulscherm 1 - Weging'!$A27,'Criteria-Status-Tabel'!$A$5:$A$128,0),MATCH(10*$S$15+$S$14,'Criteria-Status-Tabel'!$A$5:$K$5,0))=\"relevant\",INDEX('Criteria-Status-Tabel'!$A$5:$K$128,MATCH(\"2-\"&'Invulscherm 1 - Weging'!$A27,'Criteria-Status-Tabel'!$A$5:$A$128,0),MATCH(10*$S$15+$S$14,'Criteria-Status-Tabel'!$A$5:$K$5,0))=\"verplicht\")=TRUE,2,IF(INDEX('Criteria-Status-Tabel'!$A$5:$K$128,MATCH(\"2-\"&'Invulscherm 1 - Weging'!$A27,'Criteria-Status-Tabel'!$A$5:$A$128,0),MATCH(10*$S$15+$S$14,'Criteria-Status-Tabel'!$A$5:$K$5,0))=\"extra belangrijk\",3,1)),\"1\")","v":2},null,null,null,{"$f":"IFERROR(IF(OR(INDEX('Criteria-Status-Tabel'!$A$5:$K$128,MATCH(\"2-\"&'Invulscherm 1 - Weging'!$A27,'Criteria-Status-Tabel'!$A$5:$A$128,0),MATCH(10*$S$15+$S$14,'Criteria-Status-Tabel'!$A$5:$K$5,0))=\"relevant\",INDEX('Criteria-Status-Tabel'!$A$5:$K$128,MATCH(\"2-\"&'Invulscherm 1 - Weging'!$A27,'Criteria-Status-Tabel'!$A$5:$A$128,0),MATCH(10*$S$15+$S$14,'Criteria-Status-Tabel'!$A$5:$K$5,0))=\"verplicht\")=TRUE,2,IF(INDEX('Criteria-Status-Tabel'!$A$5:$K$128,MATCH(\"2-\"&'Invulscherm 1 - Weging'!$A27,'Criteria-Status-Tabel'!$A$5:$A$128,0),MATCH(10*$S$15+$S$14,'Criteria-Status-Tabel'!$A$5:$K$5,0))=\"extra belangrijk\",3,1)),\"1\")","v":2},0,0,null,null,null,0.4]
["MAN4.8",null,"Lokaal voedsel",null,null,null,null,"relevant",0.8,null,null,{"$f":"IFERROR(IF(OR(INDEX('Criteria-Status-Tabel'!$A$5:$K$128,MATCH(\"2-\"&'Invulscherm 1 - Weging'!$A28,'Criteria-Status-Tabel'!$A$5:$A$128,0),MATCH(10*$S$15+$S$14,'Criteria-Status-Tabel'!$A$5:$K$5,0))=\"relevant\",INDEX('Criteria-Status-Tabel'!$A$5:$K$128,MATCH(\"2-\"&'Invulscherm 1 - Weging'!$A28,'Criteria-Status-Tabel'!$A$5:$A$128,0),MATCH(10*$S$15+$S$14,'Criteria-Status-Tabel'!$A$5:$K$5,0))=\"verplicht\")=TRUE,2,IF(INDEX('Criteria-Status-Tabel'!$A$5:$K$128,MATCH(\"2-\"&'Invulscherm 1 - Weging'!$A28,'Criteria-Status-Tabel'!$A$5:$A$128,0),MATCH(10*$S$15+$S$14,'Criteria-Status-Tabel'!$A$5:$K$5,0))=\"extra belangrijk\",3,1)),\"1\")","v":2},null,null,null,{"$f":"IFERROR(IF(OR(INDEX('Criteria-Status-Tabel'!$A$5:$K$128,MATCH(\"2-\"&'Invulscherm 1 - Weging'!$A28,'Criteria-Status-Tabel'!$A$5:$A$128,0),MATCH(10*$S$15+$S$14,'Criteria-Status-Tabel'!$A$5:$K$5,0))=\"relevant\",INDEX('Criteria-Status-Tabel'!$A$5:$K$128,MATCH(\"2-\"&'Invulscherm 1 - Weging'!$A28,'Criteria-Status-Tabel'!$A$5:$A$128,0),MATCH(10*$S$15+$S$14,'Criteria-Status-Tabel'!$A$5:$K$5,0))=\"verplicht\")=TRUE,2,IF(INDEX('Criteria-Status-Tabel'!$A$5:$K$128,MATCH(\"2-\"&'Invulscherm 1 - Weging'!$A28,'Criteria-Status-Tabel'!$A$5:$A$128,0),MATCH(10*$S$15+$S$14,'Criteria-Status-Tabel'!$A$5:$K$5,0))=\"extra belangrijk\",3,1)),\"1\")","v":2},0,0,null,null,null,0.4]
["MAN4.9",null,"Overgang van ontwikkelaar naar beheerder",null,null,null,null,"relevant",0.8,null,null,{"$f":"IFERROR(IF(OR(INDEX('Criteria-Status-Tabel'!$A$5:$K$128,MATCH(\"2-\"&'Invulscherm 1 - Weging'!$A29,'Criteria-Status-Tabel'!$A$5:$A$128,0),MATCH(10*$S$15+$S$14,'Criteria-Status-Tabel'!$A$5:$K$5,0))=\"relevant\",INDEX('Criteria-Status-Tabel'!$A$5:$K$128,MATCH(\"2-\"&'Invulscherm 1 - Weging'!$A29,'Criteria-Status-Tabel'!$A$5:$A$128,0),MATCH(10*$S$15+$S$14,'Criteria-Status-Tabel'!$A$5:$K$5,0))=\"verplicht\")=TRUE,2,IF(INDEX('Criteria-Status-Tabel'!$A$5:$K$128,MATCH(\"2-\"&'Invulscherm 1 - Weging'!$A29,'Criteria-Status-Tabel'!$A$5:$A$128,0),MATCH(10*$S$15+$S$14,'Criteria-Status-Tabel'!$A$5:$K$5,0))=\"extra belangrijk\",3,1)),\"1\")","v":2},null,null,null,{"$f":"IFERROR(IF(OR(INDEX('Criteria-Status-Tabel'!$A$5:$K$128,MATCH(\"2-\"&'Invulscherm 1 - Weging'!$A29,'Criteria-Status-Tabel'!$A$5:$A$128,0),MATCH(10*$S$15+$S$14,'Criteria-Status-Tabel'!$A$5:$K$5,0))=\"relevant\",INDEX('Criteria-Status-Tabel'!$A$5:$K$128,MATCH(\"2-\"&'Invulscherm 1 - Weging'!$A29,'Criteria-Status-Tabel'!$A$5:$A$128,0),MATCH(10*$S$15+$S$14,'Criteria-Status-Tabel'!$A$5:$K$5,0))=\"verplicht\")=TRUE,2,IF(INDEX('Criteria-Status-Tabel'!$A$5:$K$128,MATCH(\"2-\"&'Invulscherm 1 - Weging'!$A29,'Criteria-Status-Tabel'!$A$5:$A$128,0),MATCH(10*$S$15+$S$14,'Criteria-Status-Tabel'!$A$5:$K$5,0))=\"extra belangrijk\",3,1)),\"1\")","v":2},0,0,"",null,null,0.4]
["SEW","2. SOCIAAL & ECONOMISCH WELZIJN (15%)",null,{"$f":"IF(SUM(Q33:R44)=0,\"U heeft nog geen wijzigingen in dit thema doorgevoerd\",IF(SUM(Q33:R44)=1,\"Let op! U kunt nog 2 wijziging binnen dit thema doorvoeren\",IF(SUM(Q33:R44)=2,\"Let op! U kunt nog 1 wijziging voor dit thema doorvoeren\",IF(SUM(Q33:R44)=3,\"LET OP! U mag geen wijzigingen meer doorvoeren binnen dit thema\",\"STOP! U heeft te veel wijzigingen doorgevoerd. Klik op de knop 'basiswaarden' om te resetten\"))))","v":"U heeft nog geen wijzigingen in dit thema doorgevoerd"},null,null,null,null,null,{"$f":"SUM(I31+F31)","v":15}]
[null,null,null,null,null,{"$f":"SUM(F33:F44)","v":4.8},null,null,{"$f":"SUM(I33:I44)","v":10.199999999999999},null,null,null,null,null,null,null,{"$f":"IF(K31<>O31,1,0)","v":0},{"$f":"IF(L31<>P31,1,0)","v":0},null,null,7,8]
["SEW1.1","Fysisch Milieu & Gezondheid",null,null,null,null,null,null,null,null,null,null,null,null,null,null,0,0]
["SEW1.1",null,"Geluidsoverlast ",null,null,null,null,{"$f":"IF(L33=2,\"verplicht\",\"extra belangrijk\")","v":"extra belangrijk"},{"$f":"IF(L33=1,V33,IF(L33=2,V33*2,IF(L33=3,V33*3)))","v":1.7999999999999998},null,null,{"$f":"IFERROR(IF(OR(INDEX('Criteria-Status-Tabel'!$A$5:$K$128,MATCH(\"2-\"&'Invulscherm 1 - Weging'!$A33,'Criteria-Status-Tabel'!$A$5:$A$128,0),MATCH(10*$S$15+$S$14,'Criteria-Status-Tabel'!$A$5:$K$5,0))=\"relevant\",INDEX('Criteria-Status-Tabel'!$A$5:$K$128,MATCH(\"2-\"&'Invulscherm 1 - Weging'!$A33,'Criteria-Status-Tabel'!$A$5:$A$128,0),MATCH(10*$S$15+$S$14,'Criteria-Status-Tabel'!$A$5:$K$5,0))=\"verplicht\")=TRUE,2,IF(INDEX('Criteria-Status-Tabel'!$A$5:$K$128,MATCH(\"2-\"&'Invulscherm 1 - Weging'!$A33,'Criteria-Status-Tabel'!$A$5:$A$128,0),MATCH(10*$S$15+$S$14,'Criteria-Status-Tabel'!$A$5:$K$5,0))=\"extra belangrijk\",3,1)),\"1\")","v":3},null,null,null,{"$f":"IFERROR(IF(OR(INDEX('Criteria-Status-Tabel'!$A$5:$K$128,MATCH(\"2-\"&'Invulscherm 1 - Weging'!$A33,'Criteria-Status-Tabel'!$A$5:$A$128,0),MATCH(10*$S$15+$S$14,'Criteria-Status-Tabel'!$A$5:$K$5,0))=\"relevant\",INDEX('Criteria-Status-Tabel'!$A$5:$K$128,MATCH(\"2-\"&'Invulscherm 1 - Weging'!$A33,'Criteria-Status-Tabel'!$A$5:$A$128,0),MATCH(10*$S$15+$S$14,'Criteria-Status-Tabel'!$A$5:$K$5,0))=\"verplicht\")=TRUE,2,IF(INDEX('Criteria-Status-Tabel'!$A$5:$K$128,MATCH(\"2-\"&'Invulscherm 1 - Weging'!$A33,'Criteria-Status-Tabel'!$A$5:$A$128,0),MATCH(10*$S$15+$S$14,'Criteria-Status-Tabel'!$A$5:$K$5,0))=\"extra belangrijk\",3,1)),\"1\")","v":3},0,0,null,null,null,{"$f":"SUM($U$31+$V$31)/SUM($K$33:$L$44)","v":0.6}]
["SEW1.2",null,"Lichthinder",null,null,null,null,{"$f":"IF(L34=1,\"minder belangrijk\",IF(L34=2,\"relevant\",IF(L34=3,\"extra belangrijk\")))","v":"relevant"},{"$f":"IF(L34=1,V34,IF(L34=2,V34*2,IF(L34=3,V34*3)))","v":1.2},null,null,{"$f":"IFERROR(IF(OR(INDEX('Criteria-Status-Tabel'!$A$5:$K$128,MATCH(\"2-\"&'Invulscherm 1 - Weging'!$A34,'Criteria-Status-Tabel'!$A$5:$A$128,0),MATCH(10*$S$15+$S$14,'Criteria-Status-Tabel'!$A$5:$K$5,0))=\"relevant\",INDEX('Criteria-Status-Tabel'!$A$5:$K$128,MATCH(\"2-\"&'Invulscherm 1 - Weging'!$A34,'Criteria-Status-Tabel'!$A$5:$A$128,0),MATCH(10*$S$15+$S$14,'Criteria-Status-Tabel'!$A$5:$K$5,0))=\"verplicht\")=TRUE,2,IF(INDEX('Criteria-Status-Tabel'!$A$5:$K$128,MATCH(\"2-\"&'Invulscherm 1 - Weging'!$A34,'Criteria-Status-Tabel'!$A$5:$A$128,0),MATCH(10*$S$15+$S$14,'Criteria-Status-Tabel'!$A$5:$K$5,0))=\"extra belangrijk\",3,1)),\"1\")","v":2},null,null,null,{"$f":"IFERROR(IF(OR(INDEX('Criteria-Status-Tabel'!$A$5:$K$128,MATCH(\"2-\"&'Invulscherm 1 - Weging'!$A34,'Criteria-Status-Tabel'!$A$5:$A$128,0),MATCH(10*$S$15+$S$14,'Criteria-Status-Tabel'!$A$5:$K$5,0))=\"relevant\",INDEX('Criteria-Status-Tabel'!$A$5:$K$128,MATCH(\"2-\"&'Invulscherm 1 - Weging'!$A34,'Criteria-Status-Tabel'!$A$5:$A$128,0),MATCH(10*$S$15+$S$14,'Criteria-Status-Tabel'!$A$5:$K$5,0))=\"verplicht\")=TRUE,2,IF(INDEX('Criteria-Status-Tabel'!$A$5:$K$128,MATCH(\"2-\"&'Invulscherm 1 - Weging'!$A34,'Criteria-Status-Tabel'!$A$5:$A$128,0),MATCH(10*$S$15+$S$14,'Criteria-Status-Tabel'!$A$5:$K$5,0))=\"extra belangrijk\",3,1)),\"1\")","v":2},0,0,null,null,null,{"$f":"SUM($U$31+$V$31)/SUM($K$33:$L$44)","v":0.6},"Alleen uit bij 'bestaande terreinen' of als aangetoond kan worden"]
["SEW1.3",null,"Luchtkwaliteit",null,null,null,null,"extra belangrijk",{"$f":"IF(L35=1,V35,IF(L35=2,V35*2,IF(L35=3,V35*3)))","v":1.7999999999999998},null,null,{"$f":"IFERROR(IF(OR(INDEX('Criteria-Status-Tabel'!$A$5:$K$128,MATCH(\"2-\"&'Invulscherm 1 - Weging'!$A35,'Criteria-Status-Tabel'!$A$5:$A$128,0),MATCH(10*$S$15+$S$14,'Criteria-Status-Tabel'!$A$5:$K$5,0))=\"relevant\",INDEX('Criteria-Status-Tabel'!$A$5:$K$128,MATCH(\"2-\"&'Invulscherm 1 - Weging'!$A35,'Criteria-Status-Tabel'!$A$5:$A$128,0),MATCH(10*$S$15+$S$14,'Criteria-Status-Tabel'!$A$5:$K$5,0))=\"verplicht\")=TRUE,2,IF(INDEX('Criteria-Status-Tabel'!$A$5:$K$128,MATCH(\"2-\"&'Invulscherm 1 - Weging'!$A35,'Criteria-Status-Tabel'!$A$5:$A$128,0),MATCH(10*$S$15+$S$14,'Criteria-Status-Tabel'!$A$5:$K$5,0))=\"extra belangrijk\",3,1)),\"1\")","v":3},null,null,null,{"$f":"IFERROR(IF(OR(INDEX('Criteria-Status-Tabel'!$A$5:$K$128,MATCH(\"2-\"&'Invulscherm 1 - Weging'!$A35,'Criteria-Status-Tabel'!$A$5:$A$128,0),MATCH(10*$S$15+$S$14,'Criteria-Status-Tabel'!$A$5:$K$5,0))=\"relevant\",INDEX('Criteria-Status-Tabel'!$A$5:$K$128,MATCH(\"2-\"&'Invulscherm 1 - Weging'!$A35,'Criteria-Status-Tabel'!$A$5:$A$128,0),MATCH(10*$S$15+$S$14,'Criteria-Status-Tabel'!$A$5:$K$5,0))=\"verplicht\")=TRUE,2,IF(INDEX('Criteria-Status-Tabel'!$A$5:$K$128,MATCH(\"2-\"&'Invulscherm 1 - Weging'!$A35,'Criteria-Status-Tabel'!$A$5:$A$128,0),MATCH(10*$S$15+$S$14,'Criteria-Status-Tabel'!$A$5:$K$5,0))=\"extra belangrijk\",3,1)),\"1\")","v":3},0,0,null,null,null,{"$f":"SUM($U$31+$V$31)/SUM($K$33:$L$44)","v":0.6}]
["SEW1.4",null,"Geuroverlast",null,null,null,null,"extra belangrijk",{"$f":"IF(L36=1,V36,IF(L36=2,V36*2,IF(L36=3,V36*3)))","v":1.7999999999999998},null,null,{"$f":"IFERROR(IF(OR(INDEX('Criteria-Status-Tabel'!$A$5:$K$128,MATCH(\"2-\"&'Invulscherm 1 - Weging'!$A36,'Criteria-Status-Tabel'!$A$5:$A$128,0),MATCH(10*$S$15+$S$14,'Criteria-Status-Tabel'!$A$5:$K$5,0))=\"relevant\",INDEX('Criteria-Status-Tabel'!$A$5:$K$128,MATCH(\"2-\"&'Invulscherm 1 - Weging'!$A36,'Criteria-Status-Tabel'!$A$5:$A$128,0),MATCH(10*$S$15+$S$14,'Criteria-Status-Tabel'!$A$5:$K$5,0))=\"verplicht\")=TRUE,2,IF(INDEX('Criteria-Status-Tabel'!$A$5:$K$128,MATCH(\"2-\"&'Invulscherm 1 - Weging'!$A36,'Criteria-Status-Tabel'!$A$5:$A$128,0),MATCH(10*$S$15+$S$14,'Criteria-Status-Tabel'!$A$5:$K$5,0))=\"extra belangrijk\",3,1)),\"1\")","v":3},null,null,null,{"$f":"IFERROR(IF(OR(INDEX('Criteria-Status-Tabel'!$A$5:$K$128,MATCH(\"2-\"&'Invulscherm 1 - Weging'!$A36,'Criteria-Status-Tabel'!$A$5:$A$128,0),MATCH(10*$S$15+$S$14,'Criteria-Status-Tabel'!$A$5:$K$5,0))=\"relevant\",INDEX('Criteria-Status-Tabel'!$A$5:$K$128,MATCH(\"2-\"&'Invulscherm 1 - Weging'!$A36,'Criteria-Status-Tabel'!$A$5:$A$128,0),MATCH(10*$S$15+$S$14,'Criteria-Status-Tabel'!$A$5:$K$5,0))=\"verplicht\")=TRUE,2,IF(INDEX('Criteria-Status-Tabel'!$A$5:$K$128,MATCH(\"2-\"&'Invulscherm 1 - Weging'!$A36,'Criteria-Status-Tabel'!$A$5:$A$128,0),MATCH(10*$S$15+$S$14,'Criteria-Status-Tabel'!$A$5:$K$5,0))=\"extra belangrijk\",3,1)),\"1\")","v":3},0,0,null,null,null,{"$f":"SUM($U$31+$V$31)/SUM($K$33:$L$44)","v":0.6}]
["SEW2","Lokale economie",null,null,null,null,null,null,null,null,null,null,null,null,null,null,0,0]
["SEW2.1",null,"Economische impactstudie / werkgelegenheid",null,{"$f":"IF(K38=2,\"verplicht\",\"extra belangrijk\")","v":"verplicht"},{"$f":"IF(K38=1,U38,IF(K38=2,U38*2,IF(K38=3,U38*3)))","v":1.2},null,null,null,null,{"$f":"IFERROR(IF(OR(INDEX('Criteria-Status-Tabel'!$A$5:$K$128,MATCH(\"1-\"&'Invulscherm 1 - Weging'!$A38,'Criteria-Status-Tabel'!$A$5:$A$128,0),MATCH(10*$S$15+$S$14,'Criteria-Status-Tabel'!$A$5:$K$5,0))=\"relevant\",INDEX('Criteria-Status-Tabel'!$A$5:$K$128,MATCH(\"1-\"&'Invulscherm 1 - Weging'!$A38,'Criteria-Status-Tabel'!$A$5:$A$128,0),MATCH(10*$S$15+$S$14,'Criteria-Status-Tabel'!$A$5:$K$5,0))=\"verplicht\")=TRUE,2,IF(INDEX('Criteria-Status-Tabel'!$A$5:$K$128,MATCH(\"1-\"&'Invulscherm 1 - Weging'!$A38,'Criteria-Status-Tabel'!$A$5:$A$128,0),MATCH(10*$S$15+$S$14,'Criteria-Status-Tabel'!$A$5:$K$5,0))=\"extra belangrijk\",3,1)),\"1\")","v":2},null,null,null,{"$f":"IFERROR(IF(OR(INDEX('Criteria-Status-Tabel'!$A$5:$K$128,MATCH(\"1-\"&'Invulscherm 1 - Weging'!$A38,'Criteria-Status-Tabel'!$A$5:$A$128,0),MATCH(10*$S$15+$S$14,'Criteria-Status-Tabel'!$A$5:$K$5,0))=\"relevant\",INDEX('Criteria-Status-Tabel'!$A$5:$K$128,MATCH(\"1-\"&'Invulscherm 1 - Weging'!$A38,'Criteria-Status-Tabel'!$A$5:$A$128,0),MATCH(10*$S$15+$S$14,'Criteria-Status-Tabel'!$A$5:$K$5,0))=\"verplicht\")=TRUE,2,IF(INDEX('Criteria-Status-Tabel'!$A$5:$K$128,MATCH(\"1-\"&'Invulscherm 1 - Weging'!$A38,'Criteria-Status-Tabel'!$A$5:$A$128,0),MATCH(10*$S$15+$S$14,'Criteria-Status-Tabel'!$A$5:$K$5,0))=\"extra belangrijk\",3,1)),\"1\")","v":2},null,0,0,null,null,{"$f":"SUM($U$31+$V$31)/SUM($K$33:$L$44)","v":0.6}]
["SEW2.2",null,"Lokale werkgelegenheid",null,{"$f":"IF(K39=1,\"minder belangrijk\",IF(K39=2,\"relevant\",IF(K39=3,\"extra belangrijk\")))","v":"relevant"},{"$f":"IF(K39=1,U39,IF(K39=2,U39*2,IF(K39=3,U39*3)))","v":1.2},null,null,null,null,{"$f":"IFERROR(IF(OR(INDEX('Criteria-Status-Tabel'!$A$5:$K$128,MATCH(\"1-\"&'Invulscherm 1 - Weging'!$A39,'Criteria-Status-Tabel'!$A$5:$A$128,0),MATCH(10*$S$15+$S$14,'Criteria-Status-Tabel'!$A$5:$K$5,0))=\"relevant\",INDEX('Criteria-Status-Tabel'!$A$5:$K$128,MATCH(\"1-\"&'Invulscherm 1 - Weging'!$A39,'Criteria-Status-Tabel'!$A$5:$A$128,0),MATCH(10*$S$15+$S$14,'Criteria-Status-Tabel'!$A$5:$K$5,0))=\"verplicht\")=TRUE,2,IF(INDEX('Criteria-Status-Tabel'!$A$5:$K$128,MATCH(\"1-\"&'Invulscherm 1 - Weging'!$A39,'Criteria-Status-Tabel'!$A$5:$A$128,0),MATCH(10*$S$15+$S$14,'Criteria-Status-Tabel'!$A$5:$K$5,0))=\"extra belangrijk\",3,1)),\"1\")","v":2},null,null,null,{"$f":"IFERROR(IF(OR(INDEX('Criteria-Status-Tabel'!$A$5:$K$128,MATCH(\"1-\"&'Invulscherm 1 - Weging'!$A39,'Criteria-Status-Tabel'!$A$5:$A$128,0),MATCH(10*$S$15+$S$14,'Criteria-Status-Tabel'!$A$5:$K$5,0))=\"relevant\",INDEX('Criteria-Status-Tabel'!$A$5:$K$128,MATCH(\"1-\"&'Invulscherm 1 - Weging'!$A39,'Criteria-Status-Tabel'!$A$5:$A$128,0),MATCH(10*$S$15+$S$14,'Criteria-Status-Tabel'!$A$5:$K$5,0))=\"verplicht\")=TRUE,2,IF(INDEX('Criteria-Status-Tabel'!$A$5:$K$128,MATCH(\"1-\"&'Invulscherm 1 - Weging'!$A39,'Criteria-Status-Tabel'!$A$5:$A$128,0),MATCH(10*$S$15+$S$14,'Criteria-Status-Tabel'!$A$5:$K$5,0))=\"extra belangrijk\",3,1)),\"1\")","v":2},null,0,0,null,null,{"$f":"SUM($U$31+$V$31)/SUM($K$33:$L$44)","v":0.6},null,"Alleen uit bij 'bestaande terreinen' of als aangetoond kan worden"]
["SEW3","Sociale veiligheid",null,null,null,null,null,null,null,null,null,null,null,null,null,null,0,0]
["SEW3.1",null,"Nood- en hulpdiensten",null,{"$f":"IF(K41=2,\"verplicht\",\"extra belangrijk\")","v":"verplicht"},{"$f":"IF(K41=1,U41,IF(K41=2,U41*2,IF(K41=3,U41*3)))","v":1.2},null,{"$f":"IF(L41=1,\"minder belangrijk\",IF(L41=2,\"relevant\",IF(L41=3,\"extra belangrijk\")))","v":"relevant"},{"$f":"IF(L41=1,V41,IF(L41=2,V41*2,IF(L41=3,V41*3)))","v":1.2},null,{"$f":"IFERROR(IF(OR(INDEX('Criteria-Status-Tabel'!$A$5:$K$128,MATCH(\"1-\"&'Invulscherm 1 - Weging'!$A41,'Criteria-Status-Tabel'!$A$5:$A$128,0),MATCH(10*$S$15+$S$14,'Criteria-Status-Tabel'!$A$5:$K$5,0))=\"relevant\",INDEX('Criteria-Status-Tabel'!$A$5:$K$128,MATCH(\"1-\"&'Invulscherm 1 - Weging'!$A41,'Criteria-Status-Tabel'!$A$5:$A$128,0),MATCH(10*$S$15+$S$14,'Criteria-Status-Tabel'!$A$5:$K$5,0))=\"verplicht\")=TRUE,2,IF(INDEX('Criteria-Status-Tabel'!$A$5:$K$128,MATCH(\"1-\"&'Invulscherm 1 - Weging'!$A41,'Criteria-Status-Tabel'!$A$5:$A$128,0),MATCH(10*$S$15+$S$14,'Criteria-Status-Tabel'!$A$5:$K$5,0))=\"extra belangrijk\",3,1)),\"1\")","v":2},{"$f":"IFERROR(IF(OR(INDEX('Criteria-Status-Tabel'!$A$5:$K$128,MATCH(\"2-\"&'Invulscherm 1 - Weging'!$A41,'Criteria-Status-Tabel'!$A$5:$A$128,0),MATCH(10*$S$15+$S$14,'Criteria-Status-Tabel'!$A$5:$K$5,0))=\"relevant\",INDEX('Criteria-Status-Tabel'!$A$5:$K$128,MATCH(\"2-\"&'Invulscherm 1 - Weging'!$A41,'Criteria-Status-Tabel'!$A$5:$A$128,0),MATCH(10*$S$15+$S$14,'Criteria-Status-Tabel'!$A$5:$K$5,0))=\"verplicht\")=TRUE,2,IF(INDEX('Criteria-Status-Tabel'!$A$5:$K$128,MATCH(\"2-\"&'Invulscherm 1 - Weging'!$A41,'Criteria-Status-Tabel'!$A$5:$A$128,0),MATCH(10*$S$15+$S$14,'Criteria-Status-Tabel'!$A$5:$K$5,0))=\"extra belangrijk\",3,1)),\"1\")","v":2},null,null,{"$f":"IFERROR(IF(OR(INDEX('Criteria-Status-Tabel'!$A$5:$K$128,MATCH(\"1-\"&'Invulscherm 1 - Weging'!$A41,'Criteria-Status-Tabel'!$A$5:$A$128,0),MATCH(10*$S$15+$S$14,'Criteria-Status-Tabel'!$A$5:$K$5,0))=\"relevant\",INDEX('Criteria-Status-Tabel'!$A$5:$K$128,MATCH(\"1-\"&'Invulscherm 1 - Weging'!$A41,'Criteria-Status-Tabel'!$A$5:$A$128,0),MATCH(10*$S$15+$S$14,'Criteria-Status-Tabel'!$A$5:$K$5,0))=\"verplicht\")=TRUE,2,IF(INDEX('Criteria-Status-Tabel'!$A$5:$K$128,MATCH(\"1-\"&'Invulscherm 1 - Weging'!$A41,'Criteria-Status-Tabel'!$A$5:$A$128,0),MATCH(10*$S$15+$S$14,'Criteria-Status-Tabel'!$A$5:$K$5,0))=\"extra belangrijk\",3,1)),\"1\")","v":2},{"$f":"IFERROR(IF(OR(INDEX('Criteria-Status-Tabel'!$A$5:$K$128,MATCH(\"2-\"&'Invulscherm 1 - Weging'!$A41,'Criteria-Status-Tabel'!$A$5:$A$128,0),MATCH(10*$S$15+$S$14,'Criteria-Status-Tabel'!$A$5:$K$5,0))=\"relevant\",INDEX('Criteria-Status-Tabel'!$A$5:$K$128,MATCH(\"2-\"&'Invulscherm 1 - Weging'!$A41,'Criteria-Status-Tabel'!$A$5:$A$128,0),MATCH(10*$S$15+$S$14,'Criteria-Status-Tabel'!$A$5:$K$5,0))=\"verplicht\")=TRUE,2,IF(INDEX('Criteria-Status-Tabel'!$A$5:$K$128,MATCH(\"2-\"&'Invulscherm 1 - Weging'!$A41,'Criteria-Status-Tabel'!$A$5:$A$128,0),MATCH(10*$S$15+$S$14,'Criteria-Status-Tabel'!$A$5:$K$5,0))=\"extra belangrijk\",3,1)),\"1\")","v":2},0,0,null,null,{"$f":"SUM($U$31+$V$31)/SUM($K$33:$L$44)","v":0.6},{"$f":"SUM($U$31+$V$31)/SUM($K$33:$L$44)","v":0.6},"Alleen uit bij 'bestaande terreinen' of als aangetoond kan worden"]
["SEW3.2",null,"Sociale controle",null,null,null,null,"relevant",{"$f":"IF(L42=1,V42,IF(L42=2,V42*2,IF(L42=3,V42*3)))","v":1.2},null,null,{"$f":"IFERROR(IF(OR(INDEX('Criteria-Status-Tabel'!$A$5:$K$128,MATCH(\"2-\"&'Invulscherm 1 - Weging'!$A42,'Criteria-Status-Tabel'!$A$5:$A$128,0),MATCH(10*$S$15+$S$14,'Criteria-Status-Tabel'!$A$5:$K$5,0))=\"relevant\",INDEX('Criteria-Status-Tabel'!$A$5:$K$128,MATCH(\"2-\"&'Invulscherm 1 - Weging'!$A42,'Criteria-Status-Tabel'!$A$5:$A$128,0),MATCH(10*$S$15+$S$14,'Criteria-Status-Tabel'!$A$5:$K$5,0))=\"verplicht\")=TRUE,2,IF(INDEX('Criteria-Status-Tabel'!$A$5:$K$128,MATCH(\"2-\"&'Invulscherm 1 - Weging'!$A42,'Criteria-Status-Tabel'!$A$5:$A$128,0),MATCH(10*$S$15+$S$14,'Criteria-Status-Tabel'!$A$5:$K$5,0))=\"extra belangrijk\",3,1)),\"1\")","v":2},null,null,null,{"$f":"IFERROR(IF(OR(INDEX('Criteria-Status-Tabel'!$A$5:$K$128,MATCH(\"2-\"&'Invulscherm 1 - Weging'!$A42,'Criteria-Status-Tabel'!$A$5:$A$128,0),MATCH(10*$S$15+$S$14,'Criteria-Status-Tabel'!$A$5:$K$5,0))=\"relevant\",INDEX('Criteria-Status-Tabel'!$A$5:$K$128,MATCH(\"2-\"&'Invulscherm 1 - Weging'!$A42,'Criteria-Status-Tabel'!$A$5:$A$128,0),MATCH(10*$S$15+$S$14,'Criteria-Status-Tabel'!$A$5:$K$5,0))=\"verplicht\")=TRUE,2,IF(INDEX('Criteria-Status-Tabel'!$A$5:$K$128,MATCH(\"2-\"&'Invulscherm 1 - Weging'!$A42,'Criteria-Status-Tabel'!$A$5:$A$128,0),MATCH(10*$S$15+$S$14,'Criteria-Status-Tabel'!$A$5:$K$5,0))=\"extra belangrijk\",3,1)),\"1\")","v":2},0,0,null,null,null,{"$f":"SUM($U$31+$V$31)/SUM($K$33:$L$44)","v":0.6}]
["SEW4","Voorzieningen",null,null,null,null,null,null,null,null,null,null,null,null,null,null,0,0]
["SEW4.1","Voorzieningen",null,null,{"$f":"IF(K44=2,\"verplicht\",\"extra belangrijk\")","v":"verplicht"},{"$f":"IF(K44=1,U44,IF(K44=2,U44*2,IF(K44=3,U44*3)))","v":1.2},null,{"$f":"IF(L44=1,\"minder belangrijk\",IF(L44=2,\"relevant\",IF(L44=3,\"extra belangrijk\")))","v":"relevant"},{"$f":"IF(L44=1,V44,IF(L44=2,V44*2,IF(L44=3,V44*3)))","v":1.2},null,{"$f":"IFERROR(IF(OR(INDEX('Criteria-Status-Tabel'!$A$5:$K$128,MATCH(\"1-\"&'Invulscherm 1 - Weging'!$A44,'Criteria-Status-Tabel'!$A$5:$A$128,0),MATCH(10*$S$15+$S$14,'Criteria-Status-Tabel'!$A$5:$K$5,0))=\"relevant\",INDEX('Criteria-Status-Tabel'!$A$5:$K$128,MATCH(\"1-\"&'Invulscherm 1 - Weging'!$A44,'Criteria-Status-Tabel'!$A$5:$A$128,0),MATCH(10*$S$15+$S$14,'Criteria-Status-Tabel'!$A$5:$K$5,0))=\"verplicht\")=TRUE,2,IF(INDEX('Criteria-Status-Tabel'!$A$5:$K$128,MATCH(\"1-\"&'Invulscherm 1 - Weging'!$A44,'Criteria-Status-Tabel'!$A$5:$A$128,0),MATCH(10*$S$15+$S$14,'Criteria-Status-Tabel'!$A$5:$K$5,0))=\"extra belangrijk\",3,1)),\"1\")","v":2},{"$f":"IFERROR(IF(OR(INDEX('Criteria-Status-Tabel'!$A$5:$K$128,MATCH(\"2-\"&'Invulscherm 1 - Weging'!$A44,'Criteria-Status-Tabel'!$A$5:$A$128,0),MATCH(10*$S$15+$S$14,'Criteria-Status-Tabel'!$A$5:$K$5,0))=\"relevant\",INDEX('Criteria-Status-Tabel'!$A$5:$K$128,MATCH(\"2-\"&'Invulscherm 1 - Weging'!$A44,'Criteria-Status-Tabel'!$A$5:$A$128,0),MATCH(10*$S$15+$S$14,'Criteria-Status-Tabel'!$A$5:$K$5,0))=\"verplicht\")=TRUE,2,IF(INDEX('Criteria-Status-Tabel'!$A$5:$K$128,MATCH(\"2-\"&'Invulscherm 1 - Weging'!$A44,'Criteria-Status-Tabel'!$A$5:$A$128,0),MATCH(10*$S$15+$S$14,'Criteria-Status-Tabel'!$A$5:$K$5,0))=\"extra belangrijk\",3,1)),\"1\")","v":2},null,null,{"$f":"IFERROR(IF(OR(INDEX('Criteria-Status-Tabel'!$A$5:$K$128,MATCH(\"1-\"&'Invulscherm 1 - Weging'!$A44,'Criteria-Status-Tabel'!$A$5:$A$128,0),MATCH(10*$S$15+$S$14,'Criteria-Status-Tabel'!$A$5:$K$5,0))=\"relevant\",INDEX('Criteria-Status-Tabel'!$A$5:$K$128,MATCH(\"1-\"&'Invulscherm 1 - Weging'!$A44,'Criteria-Status-Tabel'!$A$5:$A$128,0),MATCH(10*$S$15+$S$14,'Criteria-Status-Tabel'!$A$5:$K$5,0))=\"verplicht\")=TRUE,2,IF(INDEX('Criteria-Status-Tabel'!$A$5:$K$128,MATCH(\"1-\"&'Invulscherm 1 - Weging'!$A44,'Criteria-Status-Tabel'!$A$5:$A$128,0),MATCH(10*$S$15+$S$14,'Criteria-Status-Tabel'!$A$5:$K$5,0))=\"extra belangrijk\",3,1)),\"1\")","v":2},{"$f":"IFERROR(IF(OR(INDEX('Criteria-Status-Tabel'!$A$5:$K$128,MATCH(\"2-\"&'Invulscherm 1 - Weging'!$A44,'Criteria-Status-Tabel'!$A$5:$A$128,0),MATCH(10*$S$15+$S$14,'Criteria-Status-Tabel'!$A$5:$K$5,0))=\"relevant\",INDEX('Criteria-Status-Tabel'!$A$5:$K$128,MATCH(\"2-\"&'Invulscherm 1 - Weging'!$A44,'Criteria-Status-Tabel'!$A$5:$A$128,0),MATCH(10*$S$15+$S$14,'Criteria-Status-Tabel'!$A$5:$K$5,0))=\"verplicht\")=TRUE,2,IF(INDEX('Criteria-Status-Tabel'!$A$5:$K$128,MATCH(\"2-\"&'Invulscherm 1 - Weging'!$A44,'Criteria-Status-Tabel'!$A$5:$A$128,0),MATCH(10*$S$15+$S$14,'Criteria-Status-Tabel'!$A$5:$K$5,0))=\"extra belangrijk\",3,1)),\"1\")","v":2},0,0,null,null,{"$f":"SUM($U$31+$V$31)/SUM($K$33:$L$44)","v":0.6},{"$f":"SUM($U$31+$V$31)/SUM($K$33:$L$44)","v":0.6},"Alleen uit bij 'bestaande terreinen' of als aangetoond kan worden"]
["IOR","3. INFRASTRUCTUUR & OPENBARE RUIMTE (15%)",null,{"$f":"IF(SUM(Q48:R57)=0,\"U heeft nog geen wijzigingen in dit thema doorgevoerd\",IF(SUM(Q48:R57)=1,\"Let op! U kunt nog 2 wijziging binnen dit thema doorvoeren\",IF(SUM(Q48:R57)=2,\"Let op! U kunt nog 1 wijziging voor dit thema doorvoeren\",IF(SUM(Q48:R57)=3,\"LET OP! U mag geen wijzigingen meer doorvoeren binnen dit thema\",\"STOP! U heeft te veel wijzigingen doorgevoerd. Klik op de knop 'basiswaarden' om te resetten\"))))","v":"U heeft nog geen wijzigingen in dit thema doorgevoerd"},null,null,null,null,null,{"$f":"SUM(I46+F46)","v":14.999999999999998}]
[null,null,null,null,null,{"$f":"SUM(F48:F52)","v":4.615384615384615},null,null,{"$f":"SUM(I48:I57)","v":10.384615384615383},null,null,null,null,null,null,null,{"$f":"IF(K46<>O46,1,0)","v":0},{"$f":"IF(L46<>P46,1,0)","v":0},null,null,3,12]
["IOR1","Beleving",null,null,null,null,null,null,null,null,null,null,null,null,null,null,0,0]
["IOR1.1",null,"Verweving met omgeving",null,{"$f":"IF(K48=2,\"verplicht\",\"extra belangrijk\")","v":"verplicht"},{"$f":"IF(K48=1,U48,IF(K48=2,U48*2,IF(K48=3,U48*3)))","v":1.1538461538461537},null,{"$f":"IF(L48=1,\"minder belangrijk\",IF(L48=2,\"relevant\",IF(L48=3,\"extra belangrijk\")))","v":"relevant"},{"$f":"IF(L48=1,V48,IF(L48=2,V48*2,IF(L48=3,V48*3)))","v":1.1538461538461537},null,{"$f":"IFERROR(IF(OR(INDEX('Criteria-Status-Tabel'!$A$5:$K$128,MATCH(\"1-\"&'Invulscherm 1 - Weging'!$A48,'Criteria-Status-Tabel'!$A$5:$A$128,0),MATCH(10*$S$15+$S$14,'Criteria-Status-Tabel'!$A$5:$K$5,0))=\"relevant\",INDEX('Criteria-Status-Tabel'!$A$5:$K$128,MATCH(\"1-\"&'Invulscherm 1 - Weging'!$A48,'Criteria-Status-Tabel'!$A$5:$A$128,0),MATCH(10*$S$15+$S$14,'Criteria-Status-Tabel'!$A$5:$K$5,0))=\"verplicht\")=TRUE,2,IF(INDEX('Criteria-Status-Tabel'!$A$5:$K$128,MATCH(\"1-\"&'Invulscherm 1 - Weging'!$A48,'Criteria-Status-Tabel'!$A$5:$A$128,0),MATCH(10*$S$15+$S$14,'Criteria-Status-Tabel'!$A$5:$K$5,0))=\"extra belangrijk\",3,1)),\"1\")","v":2},{"$f":"IFERROR(IF(OR(INDEX('Criteria-Status-Tabel'!$A$5:$K$128,MATCH(\"2-\"&'Invulscherm 1 - Weging'!$A48,'Criteria-Status-Tabel'!$A$5:$A$128,0),MATCH(10*$S$15+$S$14,'Criteria-Status-Tabel'!$A$5:$K$5,0))=\"relevant\",INDEX('Criteria-Status-Tabel'!$A$5:$K$128,MATCH(\"2-\"&'Invulscherm 1 - Weging'!$A48,'Criteria-Status-Tabel'!$A$5:$A$128,0),MATCH(10*$S$15+$S$14,'Criteria-Status-Tabel'!$A$5:$K$5,0))=\"verplicht\")=TRUE,2,IF(INDEX('Criteria-Status-Tabel'!$A$5:$K$128,MATCH(\"2-\"&'Invulscherm 1 - Weging'!$A48,'Criteria-Status-Tabel'!$A$5:$A$128,0),MATCH(10*$S$15+$S$14,'Criteria-Status-Tabel'!$A$5:$K$5,0))=\"extra belangrijk\",3,1)),\"1\")","v":2},null,null,{"$f":"IFERROR(IF(OR(INDEX('Criteria-Status-Tabel'!$A$5:$K$128,MATCH(\"1-\"&'Invulscherm 1 - Weging'!$A48,'Criteria-Status-Tabel'!$A$5:$A$128,0),MATCH(10*$S$15+$S$14,'Criteria-Status-Tabel'!$A$5:$K$5,0))=\"relevant\",INDEX('Criteria-Status-Tabel'!$A$5:$K$128,MATCH(\"1-\"&'Invulscherm 1 - Weging'!$A48,'Criteria-Status-Tabel'!$A$5:$A$128,0),MATCH(10*$S$15+$S$14,'Criteria-Status-Tabel'!$A$5:$K$5,0))=\"verplicht\")=TRUE,2,IF(INDEX('Criteria-Status-Tabel'!$A$5:$K$128,MATCH(\"1-\"&'Invulscherm 1 - Weging'!$A48,'Criteria-Status-Tabel'!$A$5:$A$128,0),MATCH(10*$S$15+$S$14,'Criteria-Status-Tabel'!$A$5:$K$5,0))=\"extra belangrijk\",3,1)),\"1\")","v":2},{"$f":"IFERROR(IF(OR(INDEX('Criteria-Status-Tabel'!$A$5:$K$128,MATCH(\"2-\"&'Invulscherm 1 - Weging'!$A48,'Criteria-Status-Tabel'!$A$5:$A$128,0),MATCH(10*$S$15+$S$14,'Criteria-Status-Tabel'!$A$5:$K$5,0))=\"relevant\",INDEX('Criteria-Status-Tabel'!$A$5:$K$128,MATCH(\"2-\"&'Invulscherm 1 - Weging'!$A48,'Criteria-Status-Tabel'!$A$5:$A$128,0),MATCH(10*$S$15+$S$14,'Criteria-Status-Tabel'!$A$5:$K$5,0))=\"verplicht\")=TRUE,2,IF(INDEX('Criteria-Status-Tabel'!$A$5:$K$128,MATCH(\"2-\"&'Invulscherm 1 - Weging'!$A48,'Criteria-Status-Tabel'!$A$5:$A$128,0),MATCH(10*$S$15+$S$14,'Criteria-Status-Tabel'!$A$5:$K$5,0))=\"extra belangrijk\",3,1)),\"1\")","v":2},0,0,null,null,{"$f":"SUM($U$46+$V$46)/SUM($K$48:$L$57)","v":0.57692307692307687},{"$f":"SUM($U$46+$V$46)/SUM($K$48:$L$57)","v":0.57692307692307687}]
["IOR1.2",null,"Beeldvorming",null,{"$f":"IF(K49=1,\"minder belangrijk\",IF(K49=2,\"relevant\",IF(K49=3,\"extra belangrijk\")))","v":"relevant"},{"$f":"IF(K49=1,U49,IF(K49=2,U49*2,IF(K49=3,U49*3)))","v":1.1538461538461537},null,"relevant",{"$f":"IF(L49=1,V49,IF(L49=2,V49*2,IF(L49=3,V49*3)))","v":1.1538461538461537},null,{"$f":"IFERROR(IF(OR(INDEX('Criteria-Status-Tabel'!$A$5:$K$128,MATCH(\"1-\"&'Invulscherm 1 - Weging'!$A49,'Criteria-Status-Tabel'!$A$5:$A$128,0),MATCH(10*$S$15+$S$14,'Criteria-Status-Tabel'!$A$5:$K$5,0))=\"relevant\",INDEX('Criteria-Status-Tabel'!$A$5:$K$128,MATCH(\"1-\"&'Invulscherm 1 - Weging'!$A49,'Criteria-Status-Tabel'!$A$5:$A$128,0),MATCH(10*$S$15+$S$14,'Criteria-Status-Tabel'!$A$5:$K$5,0))=\"verplicht\")=TRUE,2,IF(INDEX('Criteria-Status-Tabel'!$A$5:$K$128,MATCH(\"1-\"&'Invulscherm 1 - Weging'!$A49,'Criteria-Status-Tabel'!$A$5:$A$128,0),MATCH(10*$S$15+$S$14,'Criteria-Status-Tabel'!$A$5:$K$5,0))=\"extra belangrijk\",3,1)),\"1\")","v":2},{"$f":"IFERROR(IF(OR(INDEX('Criteria-Status-Tabel'!$A$5:$K$128,MATCH(\"2-\"&'Invulscherm 1 - Weging'!$A49,'Criteria-Status-Tabel'!$A$5:$A$128,0),MATCH(10*$S$15+$S$14,'Criteria-Status-Tabel'!$A$5:$K$5,0))=\"relevant\",INDEX('Criteria-Status-Tabel'!$A$5:$K$128,MATCH(\"2-\"&'Invulscherm 1 - Weging'!$A49,'Criteria-Status-Tabel'!$A$5:$A$128,0),MATCH(10*$S$15+$S$14,'Criteria-Status-Tabel'!$A$5:$K$5,0))=\"verplicht\")=TRUE,2,IF(INDEX('Criteria-Status-Tabel'!$A$5:$K$128,MATCH(\"2-\"&'Invulscherm 1 - Weging'!$A49,'Criteria-Status-Tabel'!$A$5:$A$128,0),MATCH(10*$S$15+$S$14,'Criteria-Status-Tabel'!$A$5:$K$5,0))=\"extra belangrijk\",3,1)),\"1\")","v":2},null,null,{"$f":"IFERROR(IF(OR(INDEX('Criteria-Status-Tabel'!$A$5:$K$128,MATCH(\"1-\"&'Invulscherm 1 - Weging'!$A49,'Criteria-Status-Tabel'!$A$5:$A$128,0),MATCH(10*$S$15+$S$14,'Criteria-Status-Tabel'!$A$5:$K$5,0))=\"relevant\",INDEX('Criteria-Status-Tabel'!$A$5:$K$128,MATCH(\"1-\"&'Invulscherm 1 - Weging'!$A49,'Criteria-Status-Tabel'!$A$5:$A$128,0),MATCH(10*$S$15+$S$14,'Criteria-Status-Tabel'!$A$5:$K$5,0))=\"verplicht\")=TRUE,2,IF(INDEX('Criteria-Status-Tabel'!$A$5:$K$128,MATCH(\"1-\"&'Invulscherm 1 - Weging'!$A49,'Criteria-Status-Tabel'!$A$5:$A$128,0),MATCH(10*$S$15+$S$14,'Criteria-Status-Tabel'!$A$5:$K$5,0))=\"extra belangrijk\",3,1)),\"1\")","v":2},{"$f":"IFERROR(IF(OR(INDEX('Criteria-Status-Tabel'!$A$5:$K$128,MATCH(\"2-\"&'Invulscherm 1 - Weging'!$A49,'Criteria-Status-Tabel'!$A$5:$A$128,0),MATCH(10*$S$15+$S$14,'Criteria-Status-Tabel'!$A$5:$K$5,0))=\"relevant\",INDEX('Criteria-Status-Tabel'!$A$5:$K$128,MATCH(\"2-\"&'Invulscherm 1 - Weging'!$A49,'Criteria-Status-Tabel'!$A$5:$A$128,0),MATCH(10*$S$15+$S$14,'Criteria-Status-Tabel'!$A$5:$K$5,0))=\"verplicht\")=TRUE,2,IF(INDEX('Criteria-Status-Tabel'!$A$5:$K$128,MATCH(\"2-\"&'Invulscherm 1 - Weging'!$A49,'Criteria-Status-Tabel'!$A$5:$A$128,0),MATCH(10*$S$15+$S$14,'Criteria-Status-Tabel'!$A$5:$K$5,0))=\"extra belangrijk\",3,1)),\"1\")","v":2},0,0,null,null,{"$f":"SUM($U$46+$V$46)/SUM($K$48:$L$57)","v":0.57692307692307687},{"$f":"SUM($U$46+$V$46)/SUM($K$48:$L$57)","v":0.57692307692307687}]
["IOR2","Infrastructuur & Gebouwen",null,null,null,null,null,null,null,null,null,null,null,null,null,null,0,0]
["IOR2.1",null,"Bestaande bebouwing",null,{"$f":"IF(K51=2,\"verplicht\",\"extra belangrijk\")","v":"verplicht"},{"$f":"IF(K51=1,U51,IF(K51=2,U51*2,IF(K51=3,U51*3)))","v":1.1538461538461537},null,{"$f":"IF(L51=1,\"minder belangrijk\",IF(L51=2,\"relevant\",IF(L51=3,\"extra belangrijk\")))","v":"relevant"},{"$f":"IF(L51=1,V51,IF(L51=2,V51*2,IF(L51=3,V51*3)))","v":1.1538461538461537},null,{"$f":"IFERROR(IF(OR(INDEX('Criteria-Status-Tabel'!$A$5:$K$128,MATCH(\"1-\"&'Invulscherm 1 - Weging'!$A51,'Criteria-Status-Tabel'!$A$5:$A$128,0),MATCH(10*$S$15+$S$14,'Criteria-Status-Tabel'!$A$5:$K$5,0))=\"relevant\",INDEX('Criteria-Status-Tabel'!$A$5:$K$128,MATCH(\"1-\"&'Invulscherm 1 - Weging'!$A51,'Criteria-Status-Tabel'!$A$5:$A$128,0),MATCH(10*$S$15+$S$14,'Criteria-Status-Tabel'!$A$5:$K$5,0))=\"verplicht\")=TRUE,2,IF(INDEX('Criteria-Status-Tabel'!$A$5:$K$128,MATCH(\"1-\"&'Invulscherm 1 - Weging'!$A51,'Criteria-Status-Tabel'!$A$5:$A$128,0),MATCH(10*$S$15+$S$14,'Criteria-Status-Tabel'!$A$5:$K$5,0))=\"extra belangrijk\",3,1)),\"1\")","v":2},{"$f":"IFERROR(IF(OR(INDEX('Criteria-Status-Tabel'!$A$5:$K$128,MATCH(\"2-\"&'Invulscherm 1 - Weging'!$A51,'Criteria-Status-Tabel'!$A$5:$A$128,0),MATCH(10*$S$15+$S$14,'Criteria-Status-Tabel'!$A$5:$K$5,0))=\"relevant\",INDEX('Criteria-Status-Tabel'!$A$5:$K$128,MATCH(\"2-\"&'Invulscherm 1 - Weging'!$A51,'Criteria-Status-Tabel'!$A$5:$A$128,0),MATCH(10*$S$15+$S$14,'Criteria-Status-Tabel'!$A$5:$K$5,0))=\"verplicht\")=TRUE,2,IF(INDEX('Criteria-Status-Tabel'!$A$5:$K$128,MATCH(\"2-\"&'Invulscherm 1 - Weging'!$A51,'Criteria-Status-Tabel'!$A$5:$A$128,0),MATCH(10*$S$15+$S$14,'Criteria-Status-Tabel'!$A$5:$K$5,0))=\"extra belangrijk\",3,1)),\"1\")","v":2},null,null,{"$f":"IFERROR(IF(OR(INDEX('Criteria-Status-Tabel'!$A$5:$K$128,MATCH(\"1-\"&'Invulscherm 1 - Weging'!$A51,'Criteria-Status-Tabel'!$A$5:$A$128,0),MATCH(10*$S$15+$S$14,'Criteria-Status-Tabel'!$A$5:$K$5,0))=\"relevant\",INDEX('Criteria-Status-Tabel'!$A$5:$K$128,MATCH(\"1-\"&'Invulscherm 1 - Weging'!$A51,'Criteria-Status-Tabel'!$A$5:$A$128,0),MATCH(10*$S$15+$S$14,'Criteria-Status-Tabel'!$A$5:$K$5,0))=\"verplicht\")=TRUE,2,IF(INDEX('Criteria-Status-Tabel'!$A$5:$K$128,MATCH(\"1-\"&'Invulscherm 1 - Weging'!$A51,'Criteria-Status-Tabel'!$A$5:$A$128,0),MATCH(10*$S$15+$S$14,'Criteria-Status-Tabel'!$A$5:$K$5,0))=\"extra belangrijk\",3,1)),\"1\")","v":2},{"$f":"IFERROR(IF(OR(INDEX('Criteria-Status-Tabel'!$A$5:$K$128,MATCH(\"2-\"&'Invulscherm 1 - Weging'!$A51,'Criteria-Status-Tabel'!$A$5:$A$128,0),MATCH(10*$S$15+$S$14,'Criteria-Status-Tabel'!$A$5:$K$5,0))=\"relevant\",INDEX('Criteria-Status-Tabel'!$A$5:$K$128,MATCH(\"2-\"&'Invulscherm 1 - Weging'!$A51,'Criteria-Status-Tabel'!$A$5:$A$128,0),MATCH(10*$S$15+$S$14,'Criteria-Status-Tabel'!$A$5:$K$5,0))=\"verplicht\")=TRUE,2,IF(INDEX('Criteria-Status-Tabel'!$A$5:$K$128,MATCH(\"2-\"&'Invulscherm 1 - Weging'!$A51,'Criteria-Status-Tabel'!$A$5:$A$128,0),MATCH(10*$S$15+$S$14,'Criteria-Status-Tabel'!$A$5:$K$5,0))=\"extra belangrijk\",3,1)),\"1\")","v":2},0,0,null,null,{"$f":"SUM($U$46+$V$46)/SUM($K$48:$L$57)","v":0.57692307692307687},{"$f":"SUM($U$46+$V$46)/SUM($K$48:$L$57)","v":0.57692307692307687}]
["IOR2.2",null,"Bestaande infrastructuur",null,"verplicht",{"$f":"IF(K52=1,U52,IF(K52=2,U52*2,IF(K52=3,U52*3)))","v":1.1538461538461537},null,"relevant",{"$f":"IF(L52=1,V52,IF(L52=2,V52*2,IF(L52=3,V52*3)))","v":1.1538461538461537},null,{"$f":"IFERROR(IF(OR(INDEX('Criteria-Status-Tabel'!$A$5:$K$128,MATCH(\"1-\"&'Invulscherm 1 - Weging'!$A52,'Criteria-Status-Tabel'!$A$5:$A$128,0),MATCH(10*$S$15+$S$14,'Criteria-Status-Tabel'!$A$5:$K$5,0))=\"relevant\",INDEX('Criteria-Status-Tabel'!$A$5:$K$128,MATCH(\"1-\"&'Invulscherm 1 - Weging'!$A52,'Criteria-Status-Tabel'!$A$5:$A$128,0),MATCH(10*$S$15+$S$14,'Criteria-Status-Tabel'!$A$5:$K$5,0))=\"verplicht\")=TRUE,2,IF(INDEX('Criteria-Status-Tabel'!$A$5:$K$128,MATCH(\"1-\"&'Invulscherm 1 - Weging'!$A52,'Criteria-Status-Tabel'!$A$5:$A$128,0),MATCH(10*$S$15+$S$14,'Criteria-Status-Tabel'!$A$5:$K$5,0))=\"extra belangrijk\",3,1)),\"1\")","v":2},{"$f":"IFERROR(IF(OR(INDEX('Criteria-Status-Tabel'!$A$5:$K$128,MATCH(\"2-\"&'Invulscherm 1 - Weging'!$A52,'Criteria-Status-Tabel'!$A$5:$A$128,0),MATCH(10*$S$15+$S$14,'Criteria-Status-Tabel'!$A$5:$K$5,0))=\"relevant\",INDEX('Criteria-Status-Tabel'!$A$5:$K$128,MATCH(\"2-\"&'Invulscherm 1 - Weging'!$A52,'Criteria-Status-Tabel'!$A$5:$A$128,0),MATCH(10*$S$15+$S$14,'Criteria-Status-Tabel'!$A$5:$K$5,0))=\"verplicht\")=TRUE,2,IF(INDEX('Criteria-Status-Tabel'!$A$5:$K$128,MATCH(\"2-\"&'Invulscherm 1 - Weging'!$A52,'Criteria-Status-Tabel'!$A$5:$A$128,0),MATCH(10*$S$15+$S$14,'Criteria-Status-Tabel'!$A$5:$K$5,0))=\"extra belangrijk\",3,1)),\"1\")","v":2},null,null,{"$f":"IFERROR(IF(OR(INDEX('Criteria-Status-Tabel'!$A$5:$K$128,MATCH(\"1-\"&'Invulscherm 1 - Weging'!$A52,'Criteria-Status-Tabel'!$A$5:$A$128,0),MATCH(10*$S$15+$S$14,'Criteria-Status-Tabel'!$A$5:$K$5,0))=\"relevant\",INDEX('Criteria-Status-Tabel'!$A$5:$K$128,MATCH(\"1-\"&'Invulscherm 1 - Weging'!$A52,'Criteria-Status-Tabel'!$A$5:$A$128,0),MATCH(10*$S$15+$S$14,'Criteria-Status-Tabel'!$A$5:$K$5,0))=\"verplicht\")=TRUE,2,IF(INDEX('Criteria-Status-Tabel'!$A$5:$K$128,MATCH(\"1-\"&'Invulscherm 1 - Weging'!$A52,'Criteria-Status-Tabel'!$A$5:$A$128,0),MATCH(10*$S$15+$S$14,'Criteria-Status-Tabel'!$A$5:$K$5,0))=\"extra belangrijk\",3,1)),\"1\")","v":2},{"$f":"IFERROR(IF(OR(INDEX('Criteria-Status-Tabel'!$A$5:$K$128,MATCH(\"2-\"&'Invulscherm 1 - Weging'!$A52,'Criteria-Status-Tabel'!$A$5:$A$128,0),MATCH(10*$S$15+$S$14,'Criteria-Status-Tabel'!$A$5:$K$5,0))=\"relevant\",INDEX('Criteria-Status-Tabel'!$A$5:$K$128,MATCH(\"2-\"&'Invulscherm 1 - Weging'!$A52,'Criteria-Status-Tabel'!$A$5:$A$128,0),MATCH(10*$S$15+$S$14,'Criteria-Status-Tabel'!$A$5:$K$5,0))=\"verplicht\")=TRUE,2,IF(INDEX('Criteria-Status-Tabel'!$A$5:$K$128,MATCH(\"2-\"&'Invulscherm 1 - Weging'!$A52,'Criteria-Status-Tabel'!$A$5:$A$128,0),MATCH(10*$S$15+$S$14,'Criteria-Status-Tabel'!$A$5:$K$5,0))=\"extra belangrijk\",3,1)),\"1\")","v":2},0,0,null,null,{"$f":"SUM($U$46+$V$46)/SUM($K$48:$L$57)","v":0.57692307692307687},{"$f":"SUM($U$46+$V$46)/SUM($K$48:$L$57)","v":0.57692307692307687}]
["IOR2.3",null,"Nieuwbouw",null,null,null,null,"relevant",{"$f":"IF(L53=1,V53,IF(L53=2,V53*2,IF(L53=3,V53*3)))","v":1.1538461538461537},null,null,{"$f":"IFERROR(IF(OR(INDEX('Criteria-Status-Tabel'!$A$5:$K$128,MATCH(\"2-\"&'Invulscherm 1 - Weging'!$A53,'Criteria-Status-Tabel'!$A$5:$A$128,0),MATCH(10*$S$15+$S$14,'Criteria-Status-Tabel'!$A$5:$K$5,0))=\"relevant\",INDEX('Criteria-Status-Tabel'!$A$5:$K$128,MATCH(\"2-\"&'Invulscherm 1 - Weging'!$A53,'Criteria-Status-Tabel'!$A$5:$A$128,0),MATCH(10*$S$15+$S$14,'Criteria-Status-Tabel'!$A$5:$K$5,0))=\"verplicht\")=TRUE,2,IF(INDEX('Criteria-Status-Tabel'!$A$5:$K$128,MATCH(\"2-\"&'Invulscherm 1 - Weging'!$A53,'Criteria-Status-Tabel'!$A$5:$A$128,0),MATCH(10*$S$15+$S$14,'Criteria-Status-Tabel'!$A$5:$K$5,0))=\"extra belangrijk\",3,1)),\"1\")","v":2},null,null,null,{"$f":"IFERROR(IF(OR(INDEX('Criteria-Status-Tabel'!$A$5:$K$128,MATCH(\"2-\"&'Invulscherm 1 - Weging'!$A53,'Criteria-Status-Tabel'!$A$5:$A$128,0),MATCH(10*$S$15+$S$14,'Criteria-Status-Tabel'!$A$5:$K$5,0))=\"relevant\",INDEX('Criteria-Status-Tabel'!$A$5:$K$128,MATCH(\"2-\"&'Invulscherm 1 - Weging'!$A53,'Criteria-Status-Tabel'!$A$5:$A$128,0),MATCH(10*$S$15+$S$14,'Criteria-Status-Tabel'!$A$5:$K$5,0))=\"verplicht\")=TRUE,2,IF(INDEX('Criteria-Status-Tabel'!$A$5:$K$128,MATCH(\"2-\"&'Invulscherm 1 - Weging'!$A53,'Criteria-Status-Tabel'!$A$5:$A$128,0),MATCH(10*$S$15+$S$14,'Criteria-Status-Tabel'!$A$5:$K$5,0))=\"extra belangrijk\",3,1)),\"1\")","v":2},0,0,null,null,null,{"$f":"SUM($U$46+$V$46)/SUM($K$48:$L$57)","v":0.57692307692307687},"Alleen uit bij 'bestaande terreinen' of als aangetoond kan worden"]
["IOR3","Openbare ruimte",null,null,null,null,null,null,null,null,null,null,null,null,null,null,0,0]
["IOR3.1",null,"Materiaalgebruik",null,null,null,null,{"$f":"IF(L55=1,\"minder belangrijk\",IF(L55=2,\"relevant\",IF(L55=3,\"extra belangrijk\")))","v":"extra belangrijk"},{"$f":"IF(L55=1,V55,IF(L55=2,V55*2,IF(L55=3,V55*3)))","v":1.7307692307692306},null,null,{"$f":"IFERROR(IF(OR(INDEX('Criteria-Status-Tabel'!$A$5:$K$128,MATCH(\"2-\"&'Invulscherm 1 - Weging'!$A55,'Criteria-Status-Tabel'!$A$5:$A$128,0),MATCH(10*$S$15+$S$14,'Criteria-Status-Tabel'!$A$5:$K$5,0))=\"relevant\",INDEX('Criteria-Status-Tabel'!$A$5:$K$128,MATCH(\"2-\"&'Invulscherm 1 - Weging'!$A55,'Criteria-Status-Tabel'!$A$5:$A$128,0),MATCH(10*$S$15+$S$14,'Criteria-Status-Tabel'!$A$5:$K$5,0))=\"verplicht\")=TRUE,2,IF(INDEX('Criteria-Status-Tabel'!$A$5:$K$128,MATCH(\"2-\"&'Invulscherm 1 - Weging'!$A55,'Criteria-Status-Tabel'!$A$5:$A$128,0),MATCH(10*$S$15+$S$14,'Criteria-Status-Tabel'!$A$5:$K$5,0))=\"extra belangrijk\",3,1)),\"1\")","v":3},null,null,null,{"$f":"IFERROR(IF(OR(INDEX('Criteria-Status-Tabel'!$A$5:$K$128,MATCH(\"2-\"&'Invulscherm 1 - Weging'!$A55,'Criteria-Status-Tabel'!$A$5:$A$128,0),MATCH(10*$S$15+$S$14,'Criteria-Status-Tabel'!$A$5:$K$5,0))=\"relevant\",INDEX('Criteria-Status-Tabel'!$A$5:$K$128,MATCH(\"2-\"&'Invulscherm 1 - Weging'!$A55,'Criteria-Status-Tabel'!$A$5:$A$128,0),MATCH(10*$S$15+$S$14,'Criteria-Status-Tabel'!$A$5:$K$5,0))=\"verplicht\")=TRUE,2,IF(INDEX('Criteria-Status-Tabel'!$A$5:$K$128,MATCH(\"2-\"&'Invulscherm 1 - Weging'!$A55,'Criteria-Status-Tabel'!$A$5:$A$128,0),MATCH(10*$S$15+$S$14,'Criteria-Status-Tabel'!$A$5:$K$5,0))=\"extra belangrijk\",3,1)),\"1\")","v":3},0,0,null,null,null,{"$f":"SUM($U$46+$V$46)/SUM($K$48:$L$57)","v":0.57692307692307687},"Alleen uit bij 'bestaande terreinen' of als aangetoond kan worden"]
["IOR3.2",null,"Onderhoud",null,null,null,null,{"$f":"IF(L56=2,\"verplicht\",\"extra belangrijk\")","v":"verplicht"},{"$f":"IF(L56=1,V56,IF(L56=2,V56*2,IF(L56=3,V56*3)))","v":1.1538461538461537},null,null,{"$f":"IFERROR(IF(OR(INDEX('Criteria-Status-Tabel'!$A$5:$K$128,MATCH(\"2-\"&'Invulscherm 1 - Weging'!$A56,'Criteria-Status-Tabel'!$A$5:$A$128,0),MATCH(10*$S$15+$S$14,'Criteria-Status-Tabel'!$A$5:$K$5,0))=\"relevant\",INDEX('Criteria-Status-Tabel'!$A$5:$K$128,MATCH(\"2-\"&'Invulscherm 1 - Weging'!$A56,'Criteria-Status-Tabel'!$A$5:$A$128,0),MATCH(10*$S$15+$S$14,'Criteria-Status-Tabel'!$A$5:$K$5,0))=\"verplicht\")=TRUE,2,IF(INDEX('Criteria-Status-Tabel'!$A$5:$K$128,MATCH(\"2-\"&'Invulscherm 1 - Weging'!$A56,'Criteria-Status-Tabel'!$A$5:$A$128,0),MATCH(10*$S$15+$S$14,'Criteria-Status-Tabel'!$A$5:$K$5,0))=\"extra belangrijk\",3,1)),\"1\")","v":2},null,null,null,{"$f":"IFERROR(IF(OR(INDEX('Criteria-Status-Tabel'!$A$5:$K$128,MATCH(\"2-\"&'Invulscherm 1 - Weging'!$A56,'Criteria-Status-Tabel'!$A$5:$A$128,0),MATCH(10*$S$15+$S$14,'Criteria-Status-Tabel'!$A$5:$K$5,0))=\"relevant\",INDEX('Criteria-Status-Tabel'!$A$5:$K$128,MATCH(\"2-\"&'Invulscherm 1 - Weging'!$A56,'Criteria-Status-Tabel'!$A$5:$A$128,0),MATCH(10*$S$15+$S$14,'Criteria-Status-Tabel'!$A$5:$K$5,0))=\"verplicht\")=TRUE,2,IF(INDEX('Criteria-Status-Tabel'!$A$5:$K$128,MATCH(\"2-\"&'Invulscherm 1 - Weging'!$A56,'Criteria-Status-Tabel'!$A$5:$A$128,0),MATCH(10*$S$15+$S$14,'Criteria-Status-Tabel'!$A$5:$K$5,0))=\"extra belangrijk\",3,1)),\"1\")","v":2},0,0,null,null,null,{"$f":"SUM($U$46+$V$46)/SUM($K$48:$L$57)","v":0.57692307692307687}]
["IOR3.3",null,"Kabels & Leidingen / Nutsvoorzieningen",null,null,null,null,{"$f":"IF(L57=1,\"minder belangrijk\",IF(L57=2,\"relevant\",IF(L57=3,\"extra belangrijk\")))","v":"extra belangrijk"},{"$f":"IF(L57=1,V57,IF(L57=2,V57*2,IF(L57=3,V57*3)))","v":1.7307692307692306},null,null,{"$f":"IFERROR(IF(OR(INDEX('Criteria-Status-Tabel'!$A$5:$K$128,MATCH(\"2-\"&'Invulscherm 1 - Weging'!$A57,'Criteria-Status-Tabel'!$A$5:$A$128,0),MATCH(10*$S$15+$S$14,'Criteria-Status-Tabel'!$A$5:$K$5,0))=\"relevant\",INDEX('Criteria-Status-Tabel'!$A$5:$K$128,MATCH(\"2-\"&'Invulscherm 1 - Weging'!$A57,'Criteria-Status-Tabel'!$A$5:$A$128,0),MATCH(10*$S$15+$S$14,'Criteria-Status-Tabel'!$A$5:$K$5,0))=\"verplicht\")=TRUE,2,IF(INDEX('Criteria-Status-Tabel'!$A$5:$K$128,MATCH(\"2-\"&'Invulscherm 1 - Weging'!$A57,'Criteria-Status-Tabel'!$A$5:$A$128,0),MATCH(10*$S$15+$S$14,'Criteria-Status-Tabel'!$A$5:$K$5,0))=\"extra belangrijk\",3,1)),\"1\")","v":3},null,null,null,{"$f":"IFERROR(IF(OR(INDEX('Criteria-Status-Tabel'!$A$5:$K$128,MATCH(\"2-\"&'Invulscherm 1 - Weging'!$A57,'Criteria-Status-Tabel'!$A$5:$A$128,0),MATCH(10*$S$15+$S$14,'Criteria-Status-Tabel'!$A$5:$K$5,0))=\"relevant\",INDEX('Criteria-Status-Tabel'!$A$5:$K$128,MATCH(\"2-\"&'Invulscherm 1 - Weging'!$A57,'Criteria-Status-Tabel'!$A$5:$A$128,0),MATCH(10*$S$15+$S$14,'Criteria-Status-Tabel'!$A$5:$K$5,0))=\"verplicht\")=TRUE,2,IF(INDEX('Criteria-Status-Tabel'!$A$5:$K$128,MATCH(\"2-\"&'Invulscherm 1 - Weging'!$A57,'Criteria-Status-Tabel'!$A$5:$A$128,0),MATCH(10*$S$15+$S$14,'Criteria-Status-Tabel'!$A$5:$K$5,0))=\"extra belangrijk\",3,1)),\"1\")","v":3},0,0,null,null,null,{"$f":"SUM($U$46+$V$46)/SUM($K$48:$L$57)","v":0.57692307692307687},"Allen uit bij 'bestaande terreinen'"]
["BRE","4. BRONNEN & ENERGIE (15%)",null,{"$f":"IF(SUM(Q61:R68)=0,\"U heeft nog geen wijzigingen in dit thema doorgevoerd\",IF(SUM(Q61:R68)=1,\"Let op! U kunt nog 2 wijziging binnen dit thema doorvoeren\",IF(SUM(Q61:R68)=2,\"Let op! U kunt nog 1 wijziging voor dit thema doorvoeren\",IF(SUM(Q61:R68)=3,\"LET OP! U mag geen wijzigingen meer doorvoeren binnen dit thema\",\"STOP! U heeft te veel wijzigingen doorgevoerd. Klik op de knop 'basiswaarden' om te resetten\"))))","v":"U heeft nog geen wijzigingen in dit thema doorgevoerd"},null,null,null,null,null,{"$f":"SUM(I59+F59)","v":14.999999999999998}]
[null,null,null,null,null,{"$f":"SUM(F61:F68)","v":8.0357142857142847},null,null,{"$f":"SUM(I61:I68)","v":6.9642857142857135},null,null,null,null,null,null,null,{"$f":"IF(K59<>O59,1,0)","v":0},{"$f":"IF(L59<>P59,1,0)","v":0},null,null,5,10]
["BRE1","Energie",null,null,null,null,null,null,null,null,null,null,null,null,null,null,0,0]
["BRE1.1","Rationeel Energie Gebruik (REG)",null,null,{"$f":"IF(K61=2,\"verplicht\",\"extra belangrijk\")","v":"extra belangrijk"},{"$f":"IF(K61=1,U61,IF(K61=2,U61*2,IF(K61=3,U61*3)))","v":1.6071428571428572},null,{"$f":"IF(L61=1,\"minder belangrijk\",IF(L61=2,\"relevant\",IF(L61=3,\"extra belangrijk\")))","v":"extra belangrijk"},{"$f":"IF(L61=1,V61,IF(L61=2,V61*2,IF(L61=3,V61*3)))","v":1.6071428571428572},null,{"$f":"IFERROR(IF(OR(INDEX('Criteria-Status-Tabel'!$A$5:$K$128,MATCH(\"1-\"&'Invulscherm 1 - Weging'!$A61,'Criteria-Status-Tabel'!$A$5:$A$128,0),MATCH(10*$S$15+$S$14,'Criteria-Status-Tabel'!$A$5:$K$5,0))=\"relevant\",INDEX('Criteria-Status-Tabel'!$A$5:$K$128,MATCH(\"1-\"&'Invulscherm 1 - Weging'!$A61,'Criteria-Status-Tabel'!$A$5:$A$128,0),MATCH(10*$S$15+$S$14,'Criteria-Status-Tabel'!$A$5:$K$5,0))=\"verplicht\")=TRUE,2,IF(INDEX('Criteria-Status-Tabel'!$A$5:$K$128,MATCH(\"1-\"&'Invulscherm 1 - Weging'!$A61,'Criteria-Status-Tabel'!$A$5:$A$128,0),MATCH(10*$S$15+$S$14,'Criteria-Status-Tabel'!$A$5:$K$5,0))=\"extra belangrijk\",3,1)),\"1\")","v":3},{"$f":"IFERROR(IF(OR(INDEX('Criteria-Status-Tabel'!$A$5:$K$128,MATCH(\"2-\"&'Invulscherm 1 - Weging'!$A61,'Criteria-Status-Tabel'!$A$5:$A$128,0),MATCH(10*$S$15+$S$14,'Criteria-Status-Tabel'!$A$5:$K$5,0))=\"relevant\",INDEX('Criteria-Status-Tabel'!$A$5:$K$128,MATCH(\"2-\"&'Invulscherm 1 - Weging'!$A61,'Criteria-Status-Tabel'!$A$5:$A$128,0),MATCH(10*$S$15+$S$14,'Criteria-Status-Tabel'!$A$5:$K$5,0))=\"verplicht\")=TRUE,2,IF(INDEX('Criteria-Status-Tabel'!$A$5:$K$128,MATCH(\"2-\"&'Invulscherm 1 - Weging'!$A61,'Criteria-Status-Tabel'!$A$5:$A$128,0),MATCH(10*$S$15+$S$14,'Criteria-Status-Tabel'!$A$5:$K$5,0))=\"extra belangrijk\",3,1)),\"1\")","v":3},null,null,{"$f":"IFERROR(IF(OR(INDEX('Criteria-Status-Tabel'!$A$5:$K$128,MATCH(\"1-\"&'Invulscherm 1 - Weging'!$A61,'Criteria-Status-Tabel'!$A$5:$A$128,0),MATCH(10*$S$15+$S$14,'Criteria-Status-Tabel'!$A$5:$K$5,0))=\"relevant\",INDEX('Criteria-Status-Tabel'!$A$5:$K$128,MATCH(\"1-\"&'Invulscherm 1 - Weging'!$A61,'Criteria-Status-Tabel'!$A$5:$A$128,0),MATCH(10*$S$15+$S$14,'Criteria-Status-Tabel'!$A$5:$K$5,0))=\"verplicht\")=TRUE,2,IF(INDEX('Criteria-Status-Tabel'!$A$5:$K$128,MATCH(\"1-\"&'Invulscherm 1 - Weging'!$A61,'Criteria-Status-Tabel'!$A$5:$A$128,0),MATCH(10*$S$15+$S$14,'Criteria-Status-Tabel'!$A$5:$K$5,0))=\"extra belangrijk\",3,1)),\"1\")","v":3},{"$f":"IFERROR(IF(OR(INDEX('Criteria-Status-Tabel'!$A$5:$K$128,MATCH(\"2-\"&'Invulscherm 1 - Weging'!$A61,'Criteria-Status-Tabel'!$A$5:$A$128,0),MATCH(10*$S$15+$S$14,'Criteria-Status-Tabel'!$A$5:$K$5,0))=\"relevant\",INDEX('Criteria-Status-Tabel'!$A$5:$K$128,MATCH(\"2-\"&'Invulscherm 1 - Weging'!$A61,'Criteria-Status-Tabel'!$A$5:$A$128,0),MATCH(10*$S$15+$S$14,'Criteria-Status-Tabel'!$A$5:$K$5,0))=\"verplicht\")=TRUE,2,IF(INDEX('Criteria-Status-Tabel'!$A$5:$K$128,MATCH(\"2-\"&'Invulscherm 1 - Weging'!$A61,'Criteria-Status-Tabel'!$A$5:$A$128,0),MATCH(10*$S$15+$S$14,'Criteria-Status-Tabel'!$A$5:$K$5,0))=\"extra belangrijk\",3,1)),\"1\")","v":3},0,0,null,null,{"$f":"SUM(15)/(SUM($K$61:$L$68))","v":0.5357142857142857},{"$f":"SUM(15)/(SUM($K$61:$L$68))","v":0.5357142857142857}]
["BRE1.2","Restwarmte en -koude",null,null,"extra belangrijk",{"$f":"IF(K62=1,U62,IF(K62=2,U62*2,IF(K62=3,U62*3)))","v":1.6071428571428572},null,"relevant",{"$f":"IF(L62=1,V62,IF(L62=2,V62*2,IF(L62=3,V62*3)))","v":1.0714285714285714},null,{"$f":"IFERROR(IF(OR(INDEX('Criteria-Status-Tabel'!$A$5:$K$128,MATCH(\"1-\"&'Invulscherm 1 - Weging'!$A62,'Criteria-Status-Tabel'!$A$5:$A$128,0),MATCH(10*$S$15+$S$14,'Criteria-Status-Tabel'!$A$5:$K$5,0))=\"relevant\",INDEX('Criteria-Status-Tabel'!$A$5:$K$128,MATCH(\"1-\"&'Invulscherm 1 - Weging'!$A62,'Criteria-Status-Tabel'!$A$5:$A$128,0),MATCH(10*$S$15+$S$14,'Criteria-Status-Tabel'!$A$5:$K$5,0))=\"verplicht\")=TRUE,2,IF(INDEX('Criteria-Status-Tabel'!$A$5:$K$128,MATCH(\"1-\"&'Invulscherm 1 - Weging'!$A62,'Criteria-Status-Tabel'!$A$5:$A$128,0),MATCH(10*$S$15+$S$14,'Criteria-Status-Tabel'!$A$5:$K$5,0))=\"extra belangrijk\",3,1)),\"1\")","v":3},{"$f":"IFERROR(IF(OR(INDEX('Criteria-Status-Tabel'!$A$5:$K$128,MATCH(\"2-\"&'Invulscherm 1 - Weging'!$A62,'Criteria-Status-Tabel'!$A$5:$A$128,0),MATCH(10*$S$15+$S$14,'Criteria-Status-Tabel'!$A$5:$K$5,0))=\"relevant\",INDEX('Criteria-Status-Tabel'!$A$5:$K$128,MATCH(\"2-\"&'Invulscherm 1 - Weging'!$A62,'Criteria-Status-Tabel'!$A$5:$A$128,0),MATCH(10*$S$15+$S$14,'Criteria-Status-Tabel'!$A$5:$K$5,0))=\"verplicht\")=TRUE,2,IF(INDEX('Criteria-Status-Tabel'!$A$5:$K$128,MATCH(\"2-\"&'Invulscherm 1 - Weging'!$A62,'Criteria-Status-Tabel'!$A$5:$A$128,0),MATCH(10*$S$15+$S$14,'Criteria-Status-Tabel'!$A$5:$K$5,0))=\"extra belangrijk\",3,1)),\"1\")","v":2},null,null,{"$f":"IFERROR(IF(OR(INDEX('Criteria-Status-Tabel'!$A$5:$K$128,MATCH(\"1-\"&'Invulscherm 1 - Weging'!$A62,'Criteria-Status-Tabel'!$A$5:$A$128,0),MATCH(10*$S$15+$S$14,'Criteria-Status-Tabel'!$A$5:$K$5,0))=\"relevant\",INDEX('Criteria-Status-Tabel'!$A$5:$K$128,MATCH(\"1-\"&'Invulscherm 1 - Weging'!$A62,'Criteria-Status-Tabel'!$A$5:$A$128,0),MATCH(10*$S$15+$S$14,'Criteria-Status-Tabel'!$A$5:$K$5,0))=\"verplicht\")=TRUE,2,IF(INDEX('Criteria-Status-Tabel'!$A$5:$K$128,MATCH(\"1-\"&'Invulscherm 1 - Weging'!$A62,'Criteria-Status-Tabel'!$A$5:$A$128,0),MATCH(10*$S$15+$S$14,'Criteria-Status-Tabel'!$A$5:$K$5,0))=\"extra belangrijk\",3,1)),\"1\")","v":3},{"$f":"IFERROR(IF(OR(INDEX('Criteria-Status-Tabel'!$A$5:$K$128,MATCH(\"2-\"&'Invulscherm 1 - Weging'!$A62,'Criteria-Status-Tabel'!$A$5:$A$128,0),MATCH(10*$S$15+$S$14,'Criteria-Status-Tabel'!$A$5:$K$5,0))=\"relevant\",INDEX('Criteria-Status-Tabel'!$A$5:$K$128,MATCH(\"2-\"&'Invulscherm 1 - Weging'!$A62,'Criteria-Status-Tabel'!$A$5:$A$128,0),MATCH(10*$S$15+$S$14,'Criteria-Status-Tabel'!$A$5:$K$5,0))=\"verplicht\")=TRUE,2,IF(INDEX('Criteria-Status-Tabel'!$A$5:$K$128,MATCH(\"2-\"&'Invulscherm 1 - Weging'!$A62,'Criteria-Status-Tabel'!$A$5:$A$128,0),MATCH(10*$S$15+$S$14,'Criteria-Status-Tabel'!$A$5:$K$5,0))=\"extra belangrijk\",3,1)),\"1\")","v":2},0,0,null,null,0.5357142857142857,0.5357142857142857]
["BRE1.3","Duurzame energie",null,null,"verplicht",{"$f":"IF(K63=1,U63,IF(K63=2,U63*2,IF(K63=3,U63*3)))","v":1.0714285714285714},null,"relevant",{"$f":"IF(L63=1,V63,IF(L63=2,V63*2,IF(L63=3,V63*3)))","v":1.0714285714285714},null,{"$f":"IFERROR(IF(OR(INDEX('Criteria-Status-Tabel'!$A$5:$K$128,MATCH(\"1-\"&'Invulscherm 1 - Weging'!$A63,'Criteria-Status-Tabel'!$A$5:$A$128,0),MATCH(10*$S$15+$S$14,'Criteria-Status-Tabel'!$A$5:$K$5,0))=\"relevant\",INDEX('Criteria-Status-Tabel'!$A$5:$K$128,MATCH(\"1-\"&'Invulscherm 1 - Weging'!$A63,'Criteria-Status-Tabel'!$A$5:$A$128,0),MATCH(10*$S$15+$S$14,'Criteria-Status-Tabel'!$A$5:$K$5,0))=\"verplicht\")=TRUE,2,IF(INDEX('Criteria-Status-Tabel'!$A$5:$K$128,MATCH(\"1-\"&'Invulscherm 1 - Weging'!$A63,'Criteria-Status-Tabel'!$A$5:$A$128,0),MATCH(10*$S$15+$S$14,'Criteria-Status-Tabel'!$A$5:$K$5,0))=\"extra belangrijk\",3,1)),\"1\")","v":2},{"$f":"IFERROR(IF(OR(INDEX('Criteria-Status-Tabel'!$A$5:$K$128,MATCH(\"2-\"&'Invulscherm 1 - Weging'!$A63,'Criteria-Status-Tabel'!$A$5:$A$128,0),MATCH(10*$S$15+$S$14,'Criteria-Status-Tabel'!$A$5:$K$5,0))=\"relevant\",INDEX('Criteria-Status-Tabel'!$A$5:$K$128,MATCH(\"2-\"&'Invulscherm 1 - Weging'!$A63,'Criteria-Status-Tabel'!$A$5:$A$128,0),MATCH(10*$S$15+$S$14,'Criteria-Status-Tabel'!$A$5:$K$5,0))=\"verplicht\")=TRUE,2,IF(INDEX('Criteria-Status-Tabel'!$A$5:$K$128,MATCH(\"2-\"&'Invulscherm 1 - Weging'!$A63,'Criteria-Status-Tabel'!$A$5:$A$128,0),MATCH(10*$S$15+$S$14,'Criteria-Status-Tabel'!$A$5:$K$5,0))=\"extra belangrijk\",3,1)),\"1\")","v":2},null,null,{"$f":"IFERROR(IF(OR(INDEX('Criteria-Status-Tabel'!$A$5:$K$128,MATCH(\"1-\"&'Invulscherm 1 - Weging'!$A63,'Criteria-Status-Tabel'!$A$5:$A$128,0),MATCH(10*$S$15+$S$14,'Criteria-Status-Tabel'!$A$5:$K$5,0))=\"relevant\",INDEX('Criteria-Status-Tabel'!$A$5:$K$128,MATCH(\"1-\"&'Invulscherm 1 - Weging'!$A63,'Criteria-Status-Tabel'!$A$5:$A$128,0),MATCH(10*$S$15+$S$14,'Criteria-Status-Tabel'!$A$5:$K$5,0))=\"verplicht\")=TRUE,2,IF(INDEX('Criteria-Status-Tabel'!$A$5:$K$128,MATCH(\"1-\"&'Invulscherm 1 - Weging'!$A63,'Criteria-Status-Tabel'!$A$5:$A$128,0),MATCH(10*$S$15+$S$14,'Criteria-Status-Tabel'!$A$5:$K$5,0))=\"extra belangrijk\",3,1)),\"1\")","v":2},{"$f":"IFERROR(IF(OR(INDEX('Criteria-Status-Tabel'!$A$5:$K$128,MATCH(\"2-\"&'Invulscherm 1 - Weging'!$A63,'Criteria-Status-Tabel'!$A$5:$A$128,0),MATCH(10*$S$15+$S$14,'Criteria-Status-Tabel'!$A$5:$K$5,0))=\"relevant\",INDEX('Criteria-Status-Tabel'!$A$5:$K$128,MATCH(\"2-\"&'Invulscherm 1 - Weging'!$A63,'Criteria-Status-Tabel'!$A$5:$A$128,0),MATCH(10*$S$15+$S$14,'Criteria-Status-Tabel'!$A$5:$K$5,0))=\"verplicht\")=TRUE,2,IF(INDEX('Criteria-Status-Tabel'!$A$5:$K$128,MATCH(\"2-\"&'Invulscherm 1 - Weging'!$A63,'Criteria-Status-Tabel'!$A$5:$A$128,0),MATCH(10*$S$15+$S$14,'Criteria-Status-Tabel'!$A$5:$K$5,0))=\"extra belangrijk\",3,1)),\"1\")","v":2},0,0,{"$f":"IF($S$15=1,2,1)","v":2},null,0.5357142857142857,0.5357142857142857,"Bestaande terreinen belangrijk - Nieuwe terreinen extra belangrijk!"]
["BRE1.4","SMART-Grid",null,null,"verplicht",{"$f":"IF(K64=1,U64,IF(K64=2,U64*2,IF(K64=3,U64*3)))","v":1.0714285714285714},null,"relevant",{"$f":"IF(L64=1,V64,IF(L64=2,V64*2,IF(L64=3,V64*3)))","v":1.0714285714285714},null,{"$f":"IFERROR(IF(OR(INDEX('Criteria-Status-Tabel'!$A$5:$K$128,MATCH(\"1-\"&'Invulscherm 1 - Weging'!$A64,'Criteria-Status-Tabel'!$A$5:$A$128,0),MATCH(10*$S$15+$S$14,'Criteria-Status-Tabel'!$A$5:$K$5,0))=\"relevant\",INDEX('Criteria-Status-Tabel'!$A$5:$K$128,MATCH(\"1-\"&'Invulscherm 1 - Weging'!$A64,'Criteria-Status-Tabel'!$A$5:$A$128,0),MATCH(10*$S$15+$S$14,'Criteria-Status-Tabel'!$A$5:$K$5,0))=\"verplicht\")=TRUE,2,IF(INDEX('Criteria-Status-Tabel'!$A$5:$K$128,MATCH(\"1-\"&'Invulscherm 1 - Weging'!$A64,'Criteria-Status-Tabel'!$A$5:$A$128,0),MATCH(10*$S$15+$S$14,'Criteria-Status-Tabel'!$A$5:$K$5,0))=\"extra belangrijk\",3,1)),\"1\")","v":2},{"$f":"IFERROR(IF(OR(INDEX('Criteria-Status-Tabel'!$A$5:$K$128,MATCH(\"2-\"&'Invulscherm 1 - Weging'!$A64,'Criteria-Status-Tabel'!$A$5:$A$128,0),MATCH(10*$S$15+$S$14,'Criteria-Status-Tabel'!$A$5:$K$5,0))=\"relevant\",INDEX('Criteria-Status-Tabel'!$A$5:$K$128,MATCH(\"2-\"&'Invulscherm 1 - Weging'!$A64,'Criteria-Status-Tabel'!$A$5:$A$128,0),MATCH(10*$S$15+$S$14,'Criteria-Status-Tabel'!$A$5:$K$5,0))=\"verplicht\")=TRUE,2,IF(INDEX('Criteria-Status-Tabel'!$A$5:$K$128,MATCH(\"2-\"&'Invulscherm 1 - Weging'!$A64,'Criteria-Status-Tabel'!$A$5:$A$128,0),MATCH(10*$S$15+$S$14,'Criteria-Status-Tabel'!$A$5:$K$5,0))=\"extra belangrijk\",3,1)),\"1\")","v":2},null,null,{"$f":"IFERROR(IF(OR(INDEX('Criteria-Status-Tabel'!$A$5:$K$128,MATCH(\"1-\"&'Invulscherm 1 - Weging'!$A64,'Criteria-Status-Tabel'!$A$5:$A$128,0),MATCH(10*$S$15+$S$14,'Criteria-Status-Tabel'!$A$5:$K$5,0))=\"relevant\",INDEX('Criteria-Status-Tabel'!$A$5:$K$128,MATCH(\"1-\"&'Invulscherm 1 - Weging'!$A64,'Criteria-Status-Tabel'!$A$5:$A$128,0),MATCH(10*$S$15+$S$14,'Criteria-Status-Tabel'!$A$5:$K$5,0))=\"verplicht\")=TRUE,2,IF(INDEX('Criteria-Status-Tabel'!$A$5:$K$128,MATCH(\"1-\"&'Invulscherm 1 - Weging'!$A64,'Criteria-Status-Tabel'!$A$5:$A$128,0),MATCH(10*$S$15+$S$14,'Criteria-Status-Tabel'!$A$5:$K$5,0))=\"extra belangrijk\",3,1)),\"1\")","v":2},{"$f":"IFERROR(IF(OR(INDEX('Criteria-Status-Tabel'!$A$5:$K$128,MATCH(\"2-\"&'Invulscherm 1 - Weging'!$A64,'Criteria-Status-Tabel'!$A$5:$A$128,0),MATCH(10*$S$15+$S$14,'Criteria-Status-Tabel'!$A$5:$K$5,0))=\"relevant\",INDEX('Criteria-Status-Tabel'!$A$5:$K$128,MATCH(\"2-\"&'Invulscherm 1 - Weging'!$A64,'Criteria-Status-Tabel'!$A$5:$A$128,0),MATCH(10*$S$15+$S$14,'Criteria-Status-Tabel'!$A$5:$K$5,0))=\"verplicht\")=TRUE,2,IF(INDEX('Criteria-Status-Tabel'!$A$5:$K$128,MATCH(\"2-\"&'Invulscherm 1 - Weging'!$A64,'Criteria-Status-Tabel'!$A$5:$A$128,0),MATCH(10*$S$15+$S$14,'Criteria-Status-Tabel'!$A$5:$K$5,0))=\"extra belangrijk\",3,1)),\"1\")","v":2},0,0,null,null,0.5357142857142857,0.5357142857142857]
["BRE2","Afval & Materiaalbeheer",null,null,null,null,null,null,null,null,null,null,null,null,null,null,0,0]
["BRE2.1","Afval & Materiaalbeheer",null,null,{"$f":"IF(K66=1,\"minder belangrijk\",IF(K66=2,\"relevant\",IF(K66=3,\"extra belangrijk\")))","v":"extra belangrijk"},{"$f":"IF(K66=1,U66,IF(K66=2,U66*2,IF(K66=3,U66*3)))","v":1.6071428571428572},null,{"$f":"IF(L66=1,\"minder belangrijk\",IF(L66=2,\"relevant\",IF(L66=3,\"extra belangrijk\")))","v":"relevant"},{"$f":"IF(L66=1,V66,IF(L66=2,V66*2,IF(L66=3,V66*3)))","v":1.0714285714285714},null,{"$f":"IFERROR(IF(OR(INDEX('Criteria-Status-Tabel'!$A$5:$K$128,MATCH(\"1-\"&'Invulscherm 1 - Weging'!$A66,'Criteria-Status-Tabel'!$A$5:$A$128,0),MATCH(10*$S$15+$S$14,'Criteria-Status-Tabel'!$A$5:$K$5,0))=\"relevant\",INDEX('Criteria-Status-Tabel'!$A$5:$K$128,MATCH(\"1-\"&'Invulscherm 1 - Weging'!$A66,'Criteria-Status-Tabel'!$A$5:$A$128,0),MATCH(10*$S$15+$S$14,'Criteria-Status-Tabel'!$A$5:$K$5,0))=\"verplicht\")=TRUE,2,IF(INDEX('Criteria-Status-Tabel'!$A$5:$K$128,MATCH(\"1-\"&'Invulscherm 1 - Weging'!$A66,'Criteria-Status-Tabel'!$A$5:$A$128,0),MATCH(10*$S$15+$S$14,'Criteria-Status-Tabel'!$A$5:$K$5,0))=\"extra belangrijk\",3,1)),\"1\")","v":3},{"$f":"IFERROR(IF(OR(INDEX('Criteria-Status-Tabel'!$A$5:$K$128,MATCH(\"2-\"&'Invulscherm 1 - Weging'!$A66,'Criteria-Status-Tabel'!$A$5:$A$128,0),MATCH(10*$S$15+$S$14,'Criteria-Status-Tabel'!$A$5:$K$5,0))=\"relevant\",INDEX('Criteria-Status-Tabel'!$A$5:$K$128,MATCH(\"2-\"&'Invulscherm 1 - Weging'!$A66,'Criteria-Status-Tabel'!$A$5:$A$128,0),MATCH(10*$S$15+$S$14,'Criteria-Status-Tabel'!$A$5:$K$5,0))=\"verplicht\")=TRUE,2,IF(INDEX('Criteria-Status-Tabel'!$A$5:$K$128,MATCH(\"2-\"&'Invulscherm 1 - Weging'!$A66,'Criteria-Status-Tabel'!$A$5:$A$128,0),MATCH(10*$S$15+$S$14,'Criteria-Status-Tabel'!$A$5:$K$5,0))=\"extra belangrijk\",3,1)),\"1\")","v":2},null,null,{"$f":"IFERROR(IF(OR(INDEX('Criteria-Status-Tabel'!$A$5:$K$128,MATCH(\"1-\"&'Invulscherm 1 - Weging'!$A66,'Criteria-Status-Tabel'!$A$5:$A$128,0),MATCH(10*$S$15+$S$14,'Criteria-Status-Tabel'!$A$5:$K$5,0))=\"relevant\",INDEX('Criteria-Status-Tabel'!$A$5:$K$128,MATCH(\"1-\"&'Invulscherm 1 - Weging'!$A66,'Criteria-Status-Tabel'!$A$5:$A$128,0),MATCH(10*$S$15+$S$14,'Criteria-Status-Tabel'!$A$5:$K$5,0))=\"verplicht\")=TRUE,2,IF(INDEX('Criteria-Status-Tabel'!$A$5:$K$128,MATCH(\"1-\"&'Invulscherm 1 - Weging'!$A66,'Criteria-Status-Tabel'!$A$5:$A$128,0),MATCH(10*$S$15+$S$14,'Criteria-Status-Tabel'!$A$5:$K$5,0))=\"extra belangrijk\",3,1)),\"1\")","v":3},{"$f":"IFERROR(IF(OR(INDEX('Criteria-Status-Tabel'!$A$5:$K$128,MATCH(\"2-\"&'Invulscherm 1 - Weging'!$A66,'Criteria-Status-Tabel'!$A$5:$A$128,0),MATCH(10*$S$15+$S$14,'Criteria-Status-Tabel'!$A$5:$K$5,0))=\"relevant\",INDEX('Criteria-Status-Tabel'!$A$5:$K$128,MATCH(\"2-\"&'Invulscherm 1 - Weging'!$A66,'Criteria-Status-Tabel'!$A$5:$A$128,0),MATCH(10*$S$15+$S$14,'Criteria-Status-Tabel'!$A$5:$K$5,0))=\"verplicht\")=TRUE,2,IF(INDEX('Criteria-Status-Tabel'!$A$5:$K$128,MATCH(\"2-\"&'Invulscherm 1 - Weging'!$A66,'Criteria-Status-Tabel'!$A$5:$A$128,0),MATCH(10*$S$15+$S$14,'Criteria-Status-Tabel'!$A$5:$K$5,0))=\"extra belangrijk\",3,1)),\"1\")","v":2},0,0,null,null,0.5357142857142857,0.5357142857142857,"Allen uit bij 'bestaande terreinen'"]
["BRE3.1","Water",null,null,null,null,null,null,null,null,null,null,null,null,null,null,0,0]
["BRE3.1","Water (water als bron)",null,null,{"$f":"IF(K68=2,\"verplicht\",\"extra belangrijk\")","v":"verplicht"},{"$f":"IF(K68=1,U68,IF(K68=2,U68*2,IF(K68=3,U68*3)))","v":1.0714285714285714},null,{"$f":"IF(L68=1,\"minder belangrijk\",IF(L68=2,\"relevant\",IF(L68=3,\"extra belangrijk\")))","v":"relevant"},{"$f":"IF(L68=1,V68,IF(L68=2,V68*2,IF(L68=3,V68*3)))","v":1.0714285714285714},null,{"$f":"IFERROR(IF(OR(INDEX('Criteria-Status-Tabel'!$A$5:$K$128,MATCH(\"1-\"&'Invulscherm 1 - Weging'!$A68,'Criteria-Status-Tabel'!$A$5:$A$128,0),MATCH(10*$S$15+$S$14,'Criteria-Status-Tabel'!$A$5:$K$5,0))=\"relevant\",INDEX('Criteria-Status-Tabel'!$A$5:$K$128,MATCH(\"1-\"&'Invulscherm 1 - Weging'!$A68,'Criteria-Status-Tabel'!$A$5:$A$128,0),MATCH(10*$S$15+$S$14,'Criteria-Status-Tabel'!$A$5:$K$5,0))=\"verplicht\")=TRUE,2,IF(INDEX('Criteria-Status-Tabel'!$A$5:$K$128,MATCH(\"1-\"&'Invulscherm 1 - Weging'!$A68,'Criteria-Status-Tabel'!$A$5:$A$128,0),MATCH(10*$S$15+$S$14,'Criteria-Status-Tabel'!$A$5:$K$5,0))=\"extra belangrijk\",3,1)),\"1\")","v":2},{"$f":"IFERROR(IF(OR(INDEX('Criteria-Status-Tabel'!$A$5:$K$128,MATCH(\"2-\"&'Invulscherm 1 - Weging'!$A68,'Criteria-Status-Tabel'!$A$5:$A$128,0),MATCH(10*$S$15+$S$14,'Criteria-Status-Tabel'!$A$5:$K$5,0))=\"relevant\",INDEX('Criteria-Status-Tabel'!$A$5:$K$128,MATCH(\"2-\"&'Invulscherm 1 - Weging'!$A68,'Criteria-Status-Tabel'!$A$5:$A$128,0),MATCH(10*$S$15+$S$14,'Criteria-Status-Tabel'!$A$5:$K$5,0))=\"verplicht\")=TRUE,2,IF(INDEX('Criteria-Status-Tabel'!$A$5:$K$128,MATCH(\"2-\"&'Invulscherm 1 - Weging'!$A68,'Criteria-Status-Tabel'!$A$5:$A$128,0),MATCH(10*$S$15+$S$14,'Criteria-Status-Tabel'!$A$5:$K$5,0))=\"extra belangrijk\",3,1)),\"1\")","v":2},null,null,{"$f":"IFERROR(IF(OR(INDEX('Criteria-Status-Tabel'!$A$5:$K$128,MATCH(\"1-\"&'Invulscherm 1 - Weging'!$A68,'Criteria-Status-Tabel'!$A$5:$A$128,0),MATCH(10*$S$15+$S$14,'Criteria-Status-Tabel'!$A$5:$K$5,0))=\"relevant\",INDEX('Criteria-Status-Tabel'!$A$5:$K$128,MATCH(\"1-\"&'Invulscherm 1 - Weging'!$A68,'Criteria-Status-Tabel'!$A$5:$A$128,0),MATCH(10*$S$15+$S$14,'Criteria-Status-Tabel'!$A$5:$K$5,0))=\"verplicht\")=TRUE,2,IF(INDEX('Criteria-Status-Tabel'!$A$5:$K$128,MATCH(\"1-\"&'Invulscherm 1 - Weging'!$A68,'Criteria-Status-Tabel'!$A$5:$A$128,0),MATCH(10*$S$15+$S$14,'Criteria-Status-Tabel'!$A$5:$K$5,0))=\"extra belangrijk\",3,1)),\"1\")","v":2},{"$f":"IFERROR(IF(OR(INDEX('Criteria-Status-Tabel'!$A$5:$K$128,MATCH(\"2-\"&'Invulscherm 1 - Weging'!$A68,'Criteria-Status-Tabel'!$A$5:$A$128,0),MATCH(10*$S$15+$S$14,'Criteria-Status-Tabel'!$A$5:$K$5,0))=\"relevant\",INDEX('Criteria-Status-Tabel'!$A$5:$K$128,MATCH(\"2-\"&'Invulscherm 1 - Weging'!$A68,'Criteria-Status-Tabel'!$A$5:$A$128,0),MATCH(10*$S$15+$S$14,'Criteria-Status-Tabel'!$A$5:$K$5,0))=\"verplicht\")=TRUE,2,IF(INDEX('Criteria-Status-Tabel'!$A$5:$K$128,MATCH(\"2-\"&'Invulscherm 1 - Weging'!$A68,'Criteria-Status-Tabel'!$A$5:$A$128,0),MATCH(10*$S$15+$S$14,'Criteria-Status-Tabel'!$A$5:$K$5,0))=\"extra belangrijk\",3,1)),\"1\")","v":2},0,0,null,null,0.5357142857142857,0.5357142857142857,"Allen uit bij 'bestaande terreinen'"]
["EDL","5. ECOLOGIE & DUURZAAM LANDGEBRUIK (20%)",null,{"$f":"IF(SUM(Q72:R85)=0,\"U heeft nog geen wijzigingen in dit thema doorgevoerd\",IF(SUM(Q72:R85)=1,\"Let op! U kunt nog 2 wijziging binnen dit thema doorvoeren\",IF(SUM(Q72:R85)=2,\"Let op! U kunt nog 1 wijziging voor dit thema doorvoeren\",IF(SUM(Q72:R85)=3,\"LET OP! U mag geen wijzigingen meer doorvoeren binnen dit thema\",\"STOP! U heeft te veel wijzigingen doorgevoerd. Klik op de knop 'basiswaarden' om te resetten\"))))","v":"U heeft nog geen wijzigingen in dit thema doorgevoerd"},null,null,null,null,null,{"$f":"SUM(I70+F70)","v":20}]
[null,null,null,null,null,{"$f":"SUM(F72:F85)","v":8.4210526315789469},null,null,{"$f":"SUM(I72:I85)","v":11.578947368421051},null,null,null,null,null,null,null,{"$f":"IF(K70<>O70,1,0)","v":0},{"$f":"IF(L70<>P70,1,0)","v":0},null,null,11,9]
["EDL1","Karakter",null,null,null,null,null,null,null,null,null,null,null,null,null,null,0,0]
["EDL1.1","Karakter van het landschap ",null,null,{"$f":"IF(K72=2,\"verplicht\",\"extra belangrijk\")","v":"verplicht"},{"$f":"IF(K72=1,U72,IF(K72=2,U72*2,IF(K72=3,U72*3)))","v":1.0526315789473684},null,{"$f":"IF(L72=1,\"minder belangrijk\",IF(L72=2,\"relevant\",IF(L72=3,\"extra belangrijk\")))","v":"relevant"},{"$f":"IF(L72=1,V72,IF(L72=2,V72*2,IF(L72=3,V72*3)))","v":1.0526315789473684},null,{"$f":"IFERROR(IF(OR(INDEX('Criteria-Status-Tabel'!$A$5:$K$128,MATCH(\"1-\"&'Invulscherm 1 - Weging'!$A72,'Criteria-Status-Tabel'!$A$5:$A$128,0),MATCH(10*$S$15+$S$14,'Criteria-Status-Tabel'!$A$5:$K$5,0))=\"relevant\",INDEX('Criteria-Status-Tabel'!$A$5:$K$128,MATCH(\"1-\"&'Invulscherm 1 - Weging'!$A72,'Criteria-Status-Tabel'!$A$5:$A$128,0),MATCH(10*$S$15+$S$14,'Criteria-Status-Tabel'!$A$5:$K$5,0))=\"verplicht\")=TRUE,2,IF(INDEX('Criteria-Status-Tabel'!$A$5:$K$128,MATCH(\"1-\"&'Invulscherm 1 - Weging'!$A72,'Criteria-Status-Tabel'!$A$5:$A$128,0),MATCH(10*$S$15+$S$14,'Criteria-Status-Tabel'!$A$5:$K$5,0))=\"extra belangrijk\",3,1)),\"1\")","v":2},{"$f":"IFERROR(IF(OR(INDEX('Criteria-Status-Tabel'!$A$5:$K$128,MATCH(\"2-\"&'Invulscherm 1 - Weging'!$A72,'Criteria-Status-Tabel'!$A$5:$A$128,0),MATCH(10*$S$15+$S$14,'Criteria-Status-Tabel'!$A$5:$K$5,0))=\"relevant\",INDEX('Criteria-Status-Tabel'!$A$5:$K$128,MATCH(\"2-\"&'Invulscherm 1 - Weging'!$A72,'Criteria-Status-Tabel'!$A$5:$A$128,0),MATCH(10*$S$15+$S$14,'Criteria-Status-Tabel'!$A$5:$K$5,0))=\"verplicht\")=TRUE,2,IF(INDEX('Criteria-Status-Tabel'!$A$5:$K$128,MATCH(\"2-\"&'Invulscherm 1 - Weging'!$A72,'Criteria-Status-Tabel'!$A$5:$A$128,0),MATCH(10*$S$15+$S$14,'Criteria-Status-Tabel'!$A$5:$K$5,0))=\"extra belangrijk\",3,1)),\"1\")","v":2},null,null,{"$f":"IFERROR(IF(OR(INDEX('Criteria-Status-Tabel'!$A$5:$K$128,MATCH(\"1-\"&'Invulscherm 1 - Weging'!$A72,'Criteria-Status-Tabel'!$A$5:$A$128,0),MATCH(10*$S$15+$S$14,'Criteria-Status-Tabel'!$A$5:$K$5,0))=\"relevant\",INDEX('Criteria-Status-Tabel'!$A$5:$K$128,MATCH(\"1-\"&'Invulscherm 1 - Weging'!$A72,'Criteria-Status-Tabel'!$A$5:$A$128,0),MATCH(10*$S$15+$S$14,'Criteria-Status-Tabel'!$A$5:$K$5,0))=\"verplicht\")=TRUE,2,IF(INDEX('Criteria-Status-Tabel'!$A$5:$K$128,MATCH(\"1-\"&'Invulscherm 1 - Weging'!$A72,'Criteria-Status-Tabel'!$A$5:$A$128,0),MATCH(10*$S$15+$S$14,'Criteria-Status-Tabel'!$A$5:$K$5,0))=\"extra belangrijk\",3,1)),\"1\")","v":2},{"$f":"IFERROR(IF(OR(INDEX('Criteria-Status-Tabel'!$A$5:$K$128,MATCH(\"2-\"&'Invulscherm 1 - Weging'!$A72,'Criteria-Status-Tabel'!$A$5:$A$128,0),MATCH(10*$S$15+$S$14,'Criteria-Status-Tabel'!$A$5:$K$5,0))=\"relevant\",INDEX('Criteria-Status-Tabel'!$A$5:$K$128,MATCH(\"2-\"&'Invulscherm 1 - Weging'!$A72,'Criteria-Status-Tabel'!$A$5:$A$128,0),MATCH(10*$S$15+$S$14,'Criteria-Status-Tabel'!$A$5:$K$5,0))=\"verplicht\")=TRUE,2,IF(INDEX('Criteria-Status-Tabel'!$A$5:$K$128,MATCH(\"2-\"&'Invulscherm 1 - Weging'!$A72,'Criteria-Status-Tabel'!$A$5:$A$128,0),MATCH(10*$S$15+$S$14,'Criteria-Status-Tabel'!$A$5:$K$5,0))=\"extra belangrijk\",3,1)),\"1\")","v":2},0,0,null,null,{"$f":"SUM(20)/SUM($K$72:$L$85)","v":0.52631578947368418},{"$f":"SUM($U$70+$V$70)/SUM($K$72:$L$85)","v":0.52631578947368418},"Allen uit bij 'bestaande terreinen'"]
["EDL2","Landgebruik",null,null,null,null,null,null,null,null,null,null,null,null,null,null,0,0]
["EDL2.1",null,"Positionering & landgebruik",null,{"$f":"IF(K74=1,\"minder belangrijk\",IF(K74=2,\"relevant\",IF(K74=3,\"extra belangrijk\")))","v":"relevant"},{"$f":"IF(K74=1,U74,IF(K74=2,U74*2,IF(K74=3,U74*3)))","v":1.0526315789473684},null,{"$f":"IF(L74=1,\"minder belangrijk\",IF(L74=2,\"relevant\",IF(L74=3,\"extra belangrijk\")))","v":"relevant"},{"$f":"IF(L74=1,V74,IF(L74=2,V74*2,IF(L74=3,V74*3)))","v":1.0526315789473684},null,{"$f":"IFERROR(IF(OR(INDEX('Criteria-Status-Tabel'!$A$5:$K$128,MATCH(\"1-\"&'Invulscherm 1 - Weging'!$A74,'Criteria-Status-Tabel'!$A$5:$A$128,0),MATCH(10*$S$15+$S$14,'Criteria-Status-Tabel'!$A$5:$K$5,0))=\"relevant\",INDEX('Criteria-Status-Tabel'!$A$5:$K$128,MATCH(\"1-\"&'Invulscherm 1 - Weging'!$A74,'Criteria-Status-Tabel'!$A$5:$A$128,0),MATCH(10*$S$15+$S$14,'Criteria-Status-Tabel'!$A$5:$K$5,0))=\"verplicht\")=TRUE,2,IF(INDEX('Criteria-Status-Tabel'!$A$5:$K$128,MATCH(\"1-\"&'Invulscherm 1 - Weging'!$A74,'Criteria-Status-Tabel'!$A$5:$A$128,0),MATCH(10*$S$15+$S$14,'Criteria-Status-Tabel'!$A$5:$K$5,0))=\"extra belangrijk\",3,1)),\"1\")","v":2},{"$f":"IFERROR(IF(OR(INDEX('Criteria-Status-Tabel'!$A$5:$K$128,MATCH(\"2-\"&'Invulscherm 1 - Weging'!$A74,'Criteria-Status-Tabel'!$A$5:$A$128,0),MATCH(10*$S$15+$S$14,'Criteria-Status-Tabel'!$A$5:$K$5,0))=\"relevant\",INDEX('Criteria-Status-Tabel'!$A$5:$K$128,MATCH(\"2-\"&'Invulscherm 1 - Weging'!$A74,'Criteria-Status-Tabel'!$A$5:$A$128,0),MATCH(10*$S$15+$S$14,'Criteria-Status-Tabel'!$A$5:$K$5,0))=\"verplicht\")=TRUE,2,IF(INDEX('Criteria-Status-Tabel'!$A$5:$K$128,MATCH(\"2-\"&'Invulscherm 1 - Weging'!$A74,'Criteria-Status-Tabel'!$A$5:$A$128,0),MATCH(10*$S$15+$S$14,'Criteria-Status-Tabel'!$A$5:$K$5,0))=\"extra belangrijk\",3,1)),\"1\")","v":2},null,null,{"$f":"IFERROR(IF(OR(INDEX('Criteria-Status-Tabel'!$A$5:$K$128,MATCH(\"1-\"&'Invulscherm 1 - Weging'!$A74,'Criteria-Status-Tabel'!$A$5:$A$128,0),MATCH(10*$S$15+$S$14,'Criteria-Status-Tabel'!$A$5:$K$5,0))=\"relevant\",INDEX('Criteria-Status-Tabel'!$A$5:$K$128,MATCH(\"1-\"&'Invulscherm 1 - Weging'!$A74,'Criteria-Status-Tabel'!$A$5:$A$128,0),MATCH(10*$S$15+$S$14,'Criteria-Status-Tabel'!$A$5:$K$5,0))=\"verplicht\")=TRUE,2,IF(INDEX('Criteria-Status-Tabel'!$A$5:$K$128,MATCH(\"1-\"&'Invulscherm 1 - Weging'!$A74,'Criteria-Status-Tabel'!$A$5:$A$128,0),MATCH(10*$S$15+$S$14,'Criteria-Status-Tabel'!$A$5:$K$5,0))=\"extra belangrijk\",3,1)),\"1\")","v":2},{"$f":"IFERROR(IF(OR(INDEX('Criteria-Status-Tabel'!$A$5:$K$128,MATCH(\"2-\"&'Invulscherm 1 - Weging'!$A74,'Criteria-Status-Tabel'!$A$5:$A$128,0),MATCH(10*$S$15+$S$14,'Criteria-Status-Tabel'!$A$5:$K$5,0))=\"relevant\",INDEX('Criteria-Status-Tabel'!$A$5:$K$128,MATCH(\"2-\"&'Invulscherm 1 - Weging'!$A74,'Criteria-Status-Tabel'!$A$5:$A$128,0),MATCH(10*$S$15+$S$14,'Criteria-Status-Tabel'!$A$5:$K$5,0))=\"verplicht\")=TRUE,2,IF(INDEX('Criteria-Status-Tabel'!$A$5:$K$128,MATCH(\"2-\"&'Invulscherm 1 - Weging'!$A74,'Criteria-Status-Tabel'!$A$5:$A$128,0),MATCH(10*$S$15+$S$14,'Criteria-Status-Tabel'!$A$5:$K$5,0))=\"extra belangrijk\",3,1)),\"1\")","v":2},0,0,null,null,{"$f":"SUM($U$70+$V$70)/SUM($K$72:$L$85)","v":0.52631578947368418},0.52631578947368418,"Allen uit bij 'bestaande terreinen'"]
["EDL2.2",null,"Flexibiliteit",null,{"$f":"IF(K75=2,\"verplicht\",\"extra belangrijk\")","v":"verplicht"},{"$f":"IF(K75=1,U75,IF(K75=2,U75*2,IF(K75=3,U75*3)))","v":1.0526315789473684},null,"relevant",{"$f":"IF(L75=1,V75,IF(L75=2,V75*2,IF(L75=3,V75*3)))","v":1.0526315789473684},null,{"$f":"IFERROR(IF(OR(INDEX('Criteria-Status-Tabel'!$A$5:$K$128,MATCH(\"1-\"&'Invulscherm 1 - Weging'!$A75,'Criteria-Status-Tabel'!$A$5:$A$128,0),MATCH(10*$S$15+$S$14,'Criteria-Status-Tabel'!$A$5:$K$5,0))=\"relevant\",INDEX('Criteria-Status-Tabel'!$A$5:$K$128,MATCH(\"1-\"&'Invulscherm 1 - Weging'!$A75,'Criteria-Status-Tabel'!$A$5:$A$128,0),MATCH(10*$S$15+$S$14,'Criteria-Status-Tabel'!$A$5:$K$5,0))=\"verplicht\")=TRUE,2,IF(INDEX('Criteria-Status-Tabel'!$A$5:$K$128,MATCH(\"1-\"&'Invulscherm 1 - Weging'!$A75,'Criteria-Status-Tabel'!$A$5:$A$128,0),MATCH(10*$S$15+$S$14,'Criteria-Status-Tabel'!$A$5:$K$5,0))=\"extra belangrijk\",3,1)),\"1\")","v":2},{"$f":"IFERROR(IF(OR(INDEX('Criteria-Status-Tabel'!$A$5:$K$128,MATCH(\"2-\"&'Invulscherm 1 - Weging'!$A75,'Criteria-Status-Tabel'!$A$5:$A$128,0),MATCH(10*$S$15+$S$14,'Criteria-Status-Tabel'!$A$5:$K$5,0))=\"relevant\",INDEX('Criteria-Status-Tabel'!$A$5:$K$128,MATCH(\"2-\"&'Invulscherm 1 - Weging'!$A75,'Criteria-Status-Tabel'!$A$5:$A$128,0),MATCH(10*$S$15+$S$14,'Criteria-Status-Tabel'!$A$5:$K$5,0))=\"verplicht\")=TRUE,2,IF(INDEX('Criteria-Status-Tabel'!$A$5:$K$128,MATCH(\"2-\"&'Invulscherm 1 - Weging'!$A75,'Criteria-Status-Tabel'!$A$5:$A$128,0),MATCH(10*$S$15+$S$14,'Criteria-Status-Tabel'!$A$5:$K$5,0))=\"extra belangrijk\",3,1)),\"1\")","v":2},null,null,{"$f":"IFERROR(IF(OR(INDEX('Criteria-Status-Tabel'!$A$5:$K$128,MATCH(\"1-\"&'Invulscherm 1 - Weging'!$A75,'Criteria-Status-Tabel'!$A$5:$A$128,0),MATCH(10*$S$15+$S$14,'Criteria-Status-Tabel'!$A$5:$K$5,0))=\"relevant\",INDEX('Criteria-Status-Tabel'!$A$5:$K$128,MATCH(\"1-\"&'Invulscherm 1 - Weging'!$A75,'Criteria-Status-Tabel'!$A$5:$A$128,0),MATCH(10*$S$15+$S$14,'Criteria-Status-Tabel'!$A$5:$K$5,0))=\"verplicht\")=TRUE,2,IF(INDEX('Criteria-Status-Tabel'!$A$5:$K$128,MATCH(\"1-\"&'Invulscherm 1 - Weging'!$A75,'Criteria-Status-Tabel'!$A$5:$A$128,0),MATCH(10*$S$15+$S$14,'Criteria-Status-Tabel'!$A$5:$K$5,0))=\"extra belangrijk\",3,1)),\"1\")","v":2},{"$f":"IFERROR(IF(OR(INDEX('Criteria-Status-Tabel'!$A$5:$K$128,MATCH(\"2-\"&'Invulscherm 1 - Weging'!$A75,'Criteria-Status-Tabel'!$A$5:$A$128,0),MATCH(10*$S$15+$S$14,'Criteria-Status-Tabel'!$A$5:$K$5,0))=\"relevant\",INDEX('Criteria-Status-Tabel'!$A$5:$K$128,MATCH(\"2-\"&'Invulscherm 1 - Weging'!$A75,'Criteria-Status-Tabel'!$A$5:$A$128,0),MATCH(10*$S$15+$S$14,'Criteria-Status-Tabel'!$A$5:$K$5,0))=\"verplicht\")=TRUE,2,IF(INDEX('Criteria-Status-Tabel'!$A$5:$K$128,MATCH(\"2-\"&'Invulscherm 1 - Weging'!$A75,'Criteria-Status-Tabel'!$A$5:$A$128,0),MATCH(10*$S$15+$S$14,'Criteria-Status-Tabel'!$A$5:$K$5,0))=\"extra belangrijk\",3,1)),\"1\")","v":2},0,0,null,null,0.52631578947368418,0.52631578947368418,"Allen uit bij 'bestaande terreinen'"]
["EDL2.3",null,"Hittestress",null,{"$f":"IF(K76=1,\"minder belangrijk\",IF(K76=2,\"relevant\",IF(K76=3,\"extra belangrijk\")))","v":"relevant"},{"$f":"IF(K76=1,U76,IF(K76=2,U76*2,IF(K76=3,U76*3)))","v":1.0526315789473684},null,"relevant",{"$f":"IF(L76=1,V76,IF(L76=2,V76*2,IF(L76=3,V76*3)))","v":1.0526315789473684},null,{"$f":"IFERROR(IF(OR(INDEX('Criteria-Status-Tabel'!$A$5:$K$128,MATCH(\"1-\"&'Invulscherm 1 - Weging'!$A76,'Criteria-Status-Tabel'!$A$5:$A$128,0),MATCH(10*$S$15+$S$14,'Criteria-Status-Tabel'!$A$5:$K$5,0))=\"relevant\",INDEX('Criteria-Status-Tabel'!$A$5:$K$128,MATCH(\"1-\"&'Invulscherm 1 - Weging'!$A76,'Criteria-Status-Tabel'!$A$5:$A$128,0),MATCH(10*$S$15+$S$14,'Criteria-Status-Tabel'!$A$5:$K$5,0))=\"verplicht\")=TRUE,2,IF(INDEX('Criteria-Status-Tabel'!$A$5:$K$128,MATCH(\"1-\"&'Invulscherm 1 - Weging'!$A76,'Criteria-Status-Tabel'!$A$5:$A$128,0),MATCH(10*$S$15+$S$14,'Criteria-Status-Tabel'!$A$5:$K$5,0))=\"extra belangrijk\",3,1)),\"1\")","v":2},{"$f":"IFERROR(IF(OR(INDEX('Criteria-Status-Tabel'!$A$5:$K$128,MATCH(\"2-\"&'Invulscherm 1 - Weging'!$A76,'Criteria-Status-Tabel'!$A$5:$A$128,0),MATCH(10*$S$15+$S$14,'Criteria-Status-Tabel'!$A$5:$K$5,0))=\"relevant\",INDEX('Criteria-Status-Tabel'!$A$5:$K$128,MATCH(\"2-\"&'Invulscherm 1 - Weging'!$A76,'Criteria-Status-Tabel'!$A$5:$A$128,0),MATCH(10*$S$15+$S$14,'Criteria-Status-Tabel'!$A$5:$K$5,0))=\"verplicht\")=TRUE,2,IF(INDEX('Criteria-Status-Tabel'!$A$5:$K$128,MATCH(\"2-\"&'Invulscherm 1 - Weging'!$A76,'Criteria-Status-Tabel'!$A$5:$A$128,0),MATCH(10*$S$15+$S$14,'Criteria-Status-Tabel'!$A$5:$K$5,0))=\"extra belangrijk\",3,1)),\"1\")","v":2},null,null,{"$f":"IFERROR(IF(OR(INDEX('Criteria-Status-Tabel'!$A$5:$K$128,MATCH(\"1-\"&'Invulscherm 1 - Weging'!$A76,'Criteria-Status-Tabel'!$A$5:$A$128,0),MATCH(10*$S$15+$S$14,'Criteria-Status-Tabel'!$A$5:$K$5,0))=\"relevant\",INDEX('Criteria-Status-Tabel'!$A$5:$K$128,MATCH(\"1-\"&'Invulscherm 1 - Weging'!$A76,'Criteria-Status-Tabel'!$A$5:$A$128,0),MATCH(10*$S$15+$S$14,'Criteria-Status-Tabel'!$A$5:$K$5,0))=\"verplicht\")=TRUE,2,IF(INDEX('Criteria-Status-Tabel'!$A$5:$K$128,MATCH(\"1-\"&'Invulscherm 1 - Weging'!$A76,'Criteria-Status-Tabel'!$A$5:$A$128,0),MATCH(10*$S$15+$S$14,'Criteria-Status-Tabel'!$A$5:$K$5,0))=\"extra belangrijk\",3,1)),\"1\")","v":2},{"$f":"IFERROR(IF(OR(INDEX('Criteria-Status-Tabel'!$A$5:$K$128,MATCH(\"2-\"&'Invulscherm 1 - Weging'!$A76,'Criteria-Status-Tabel'!$A$5:$A$128,0),MATCH(10*$S$15+$S$14,'Criteria-Status-Tabel'!$A$5:$K$5,0))=\"relevant\",INDEX('Criteria-Status-Tabel'!$A$5:$K$128,MATCH(\"2-\"&'Invulscherm 1 - Weging'!$A76,'Criteria-Status-Tabel'!$A$5:$A$128,0),MATCH(10*$S$15+$S$14,'Criteria-Status-Tabel'!$A$5:$K$5,0))=\"verplicht\")=TRUE,2,IF(INDEX('Criteria-Status-Tabel'!$A$5:$K$128,MATCH(\"2-\"&'Invulscherm 1 - Weging'!$A76,'Criteria-Status-Tabel'!$A$5:$A$128,0),MATCH(10*$S$15+$S$14,'Criteria-Status-Tabel'!$A$5:$K$5,0))=\"extra belangrijk\",3,1)),\"1\")","v":2},0,0,null,null,0.52631578947368418,0.52631578947368418,"Allen uit bij 'bestaande terreinen'"]
["EDL2.4",null,"Bouwrijp maken (grondbalans / peilhoogten)",null,null,null,null,"relevant",{"$f":"IF(L77=1,V77,IF(L77=2,V77*2,IF(L77=3,V77*3)))","v":1.0526315789473684},null,null,{"$f":"IFERROR(IF(OR(INDEX('Criteria-Status-Tabel'!$A$5:$K$128,MATCH(\"2-\"&'Invulscherm 1 - Weging'!$A77,'Criteria-Status-Tabel'!$A$5:$A$128,0),MATCH(10*$S$15+$S$14,'Criteria-Status-Tabel'!$A$5:$K$5,0))=\"relevant\",INDEX('Criteria-Status-Tabel'!$A$5:$K$128,MATCH(\"2-\"&'Invulscherm 1 - Weging'!$A77,'Criteria-Status-Tabel'!$A$5:$A$128,0),MATCH(10*$S$15+$S$14,'Criteria-Status-Tabel'!$A$5:$K$5,0))=\"verplicht\")=TRUE,2,IF(INDEX('Criteria-Status-Tabel'!$A$5:$K$128,MATCH(\"2-\"&'Invulscherm 1 - Weging'!$A77,'Criteria-Status-Tabel'!$A$5:$A$128,0),MATCH(10*$S$15+$S$14,'Criteria-Status-Tabel'!$A$5:$K$5,0))=\"extra belangrijk\",3,1)),\"1\")","v":2},null,null,null,{"$f":"IFERROR(IF(OR(INDEX('Criteria-Status-Tabel'!$A$5:$K$128,MATCH(\"2-\"&'Invulscherm 1 - Weging'!$A77,'Criteria-Status-Tabel'!$A$5:$A$128,0),MATCH(10*$S$15+$S$14,'Criteria-Status-Tabel'!$A$5:$K$5,0))=\"relevant\",INDEX('Criteria-Status-Tabel'!$A$5:$K$128,MATCH(\"2-\"&'Invulscherm 1 - Weging'!$A77,'Criteria-Status-Tabel'!$A$5:$A$128,0),MATCH(10*$S$15+$S$14,'Criteria-Status-Tabel'!$A$5:$K$5,0))=\"verplicht\")=TRUE,2,IF(INDEX('Criteria-Status-Tabel'!$A$5:$K$128,MATCH(\"2-\"&'Invulscherm 1 - Weging'!$A77,'Criteria-Status-Tabel'!$A$5:$A$128,0),MATCH(10*$S$15+$S$14,'Criteria-Status-Tabel'!$A$5:$K$5,0))=\"extra belangrijk\",3,1)),\"1\")","v":2},0,0,null,null,null,{"$f":"SUM($U$70+$V$70)/SUM($K$72:$L$85)","v":0.52631578947368418},"Allen uit bij 'bestaande terreinen'"]
["EDL2.5",null,"Bodemverontreiniging",null,{"$f":"IF(K78=1,\"minder belangrijk\",IF(K78=2,\"relevant\",IF(K78=3,\"extra belangrijk\")))","v":"relevant"},{"$f":"IF(K78=1,U78,IF(K78=2,U78*2,IF(K78=3,U78*3)))","v":1.0526315789473684},null,"relevant",{"$f":"IF(L78=1,V78,IF(L78=2,V78*2,IF(L78=3,V78*3)))","v":1.0526315789473684},null,{"$f":"IFERROR(IF(OR(INDEX('Criteria-Status-Tabel'!$A$5:$K$128,MATCH(\"1-\"&'Invulscherm 1 - Weging'!$A78,'Criteria-Status-Tabel'!$A$5:$A$128,0),MATCH(10*$S$15+$S$14,'Criteria-Status-Tabel'!$A$5:$K$5,0))=\"relevant\",INDEX('Criteria-Status-Tabel'!$A$5:$K$128,MATCH(\"1-\"&'Invulscherm 1 - Weging'!$A78,'Criteria-Status-Tabel'!$A$5:$A$128,0),MATCH(10*$S$15+$S$14,'Criteria-Status-Tabel'!$A$5:$K$5,0))=\"verplicht\")=TRUE,2,IF(INDEX('Criteria-Status-Tabel'!$A$5:$K$128,MATCH(\"1-\"&'Invulscherm 1 - Weging'!$A78,'Criteria-Status-Tabel'!$A$5:$A$128,0),MATCH(10*$S$15+$S$14,'Criteria-Status-Tabel'!$A$5:$K$5,0))=\"extra belangrijk\",3,1)),\"1\")","v":2},{"$f":"IFERROR(IF(OR(INDEX('Criteria-Status-Tabel'!$A$5:$K$128,MATCH(\"2-\"&'Invulscherm 1 - Weging'!$A78,'Criteria-Status-Tabel'!$A$5:$A$128,0),MATCH(10*$S$15+$S$14,'Criteria-Status-Tabel'!$A$5:$K$5,0))=\"relevant\",INDEX('Criteria-Status-Tabel'!$A$5:$K$128,MATCH(\"2-\"&'Invulscherm 1 - Weging'!$A78,'Criteria-Status-Tabel'!$A$5:$A$128,0),MATCH(10*$S$15+$S$14,'Criteria-Status-Tabel'!$A$5:$K$5,0))=\"verplicht\")=TRUE,2,IF(INDEX('Criteria-Status-Tabel'!$A$5:$K$128,MATCH(\"2-\"&'Invulscherm 1 - Weging'!$A78,'Criteria-Status-Tabel'!$A$5:$A$128,0),MATCH(10*$S$15+$S$14,'Criteria-Status-Tabel'!$A$5:$K$5,0))=\"extra belangrijk\",3,1)),\"1\")","v":2},null,null,{"$f":"IFERROR(IF(OR(INDEX('Criteria-Status-Tabel'!$A$5:$K$128,MATCH(\"1-\"&'Invulscherm 1 - Weging'!$A78,'Criteria-Status-Tabel'!$A$5:$A$128,0),MATCH(10*$S$15+$S$14,'Criteria-Status-Tabel'!$A$5:$K$5,0))=\"relevant\",INDEX('Criteria-Status-Tabel'!$A$5:$K$128,MATCH(\"1-\"&'Invulscherm 1 - Weging'!$A78,'Criteria-Status-Tabel'!$A$5:$A$128,0),MATCH(10*$S$15+$S$14,'Criteria-Status-Tabel'!$A$5:$K$5,0))=\"verplicht\")=TRUE,2,IF(INDEX('Criteria-Status-Tabel'!$A$5:$K$128,MATCH(\"1-\"&'Invulscherm 1 - Weging'!$A78,'Criteria-Status-Tabel'!$A$5:$A$128,0),MATCH(10*$S$15+$S$14,'Criteria-Status-Tabel'!$A$5:$K$5,0))=\"extra belangrijk\",3,1)),\"1\")","v":2},{"$f":"IFERROR(IF(OR(INDEX('Criteria-Status-Tabel'!$A$5:$K$128,MATCH(\"2-\"&'Invulscherm 1 - Weging'!$A78,'Criteria-Status-Tabel'!$A$5:$A$128,0),MATCH(10*$S$15+$S$14,'Criteria-Status-Tabel'!$A$5:$K$5,0))=\"relevant\",INDEX('Criteria-Status-Tabel'!$A$5:$K$128,MATCH(\"2-\"&'Invulscherm 1 - Weging'!$A78,'Criteria-Status-Tabel'!$A$5:$A$128,0),MATCH(10*$S$15+$S$14,'Criteria-Status-Tabel'!$A$5:$K$5,0))=\"verplicht\")=TRUE,2,IF(INDEX('Criteria-Status-Tabel'!$A$5:$K$128,MATCH(\"2-\"&'Invulscherm 1 - Weging'!$A78,'Criteria-Status-Tabel'!$A$5:$A$128,0),MATCH(10*$S$15+$S$14,'Criteria-Status-Tabel'!$A$5:$K$5,0))=\"extra belangrijk\",3,1)),\"1\")","v":2},0,0,null,null,{"$f":"SUM($U$70+$V$70)/SUM($K$72:$L$85)","v":0.52631578947368418},{"$f":"SUM($U$70+$V$70)/SUM($K$72:$L$85)","v":0.52631578947368418},"Allen uit bij 'bestaande terreinen'"]
["EDL3","Ecologie & biodiversiteit",null,null,null,null,null,null,null,null,null,null,null,null,null,null,0,0]
["EDL3.1",null,"Ecologie & biodiversiteit",null,{"$f":"IF(K80=2,\"verplicht\",\"extra belangrijk\")","v":"verplicht"},{"$f":"IF(K80=1,U80,IF(K80=2,U80*2,IF(K80=3,U80*3)))","v":1.0526315789473684},null,{"$f":"IF(L80=1,\"minder belangrijk\",IF(L80=2,\"relevant\",IF(L80=3,\"extra belangrijk\")))","v":"relevant"},{"$f":"IF(L80=1,V80,IF(L80=2,V80*2,IF(L80=3,V80*3)))","v":1.0526315789473684},null,{"$f":"IFERROR(IF(OR(INDEX('Criteria-Status-Tabel'!$A$5:$K$128,MATCH(\"1-\"&'Invulscherm 1 - Weging'!$A80,'Criteria-Status-Tabel'!$A$5:$A$128,0),MATCH(10*$S$15+$S$14,'Criteria-Status-Tabel'!$A$5:$K$5,0))=\"relevant\",INDEX('Criteria-Status-Tabel'!$A$5:$K$128,MATCH(\"1-\"&'Invulscherm 1 - Weging'!$A80,'Criteria-Status-Tabel'!$A$5:$A$128,0),MATCH(10*$S$15+$S$14,'Criteria-Status-Tabel'!$A$5:$K$5,0))=\"verplicht\")=TRUE,2,IF(INDEX('Criteria-Status-Tabel'!$A$5:$K$128,MATCH(\"1-\"&'Invulscherm 1 - Weging'!$A80,'Criteria-Status-Tabel'!$A$5:$A$128,0),MATCH(10*$S$15+$S$14,'Criteria-Status-Tabel'!$A$5:$K$5,0))=\"extra belangrijk\",3,1)),\"1\")","v":2},{"$f":"IFERROR(IF(OR(INDEX('Criteria-Status-Tabel'!$A$5:$K$128,MATCH(\"2-\"&'Invulscherm 1 - Weging'!$A80,'Criteria-Status-Tabel'!$A$5:$A$128,0),MATCH(10*$S$15+$S$14,'Criteria-Status-Tabel'!$A$5:$K$5,0))=\"relevant\",INDEX('Criteria-Status-Tabel'!$A$5:$K$128,MATCH(\"2-\"&'Invulscherm 1 - Weging'!$A80,'Criteria-Status-Tabel'!$A$5:$A$128,0),MATCH(10*$S$15+$S$14,'Criteria-Status-Tabel'!$A$5:$K$5,0))=\"verplicht\")=TRUE,2,IF(INDEX('Criteria-Status-Tabel'!$A$5:$K$128,MATCH(\"2-\"&'Invulscherm 1 - Weging'!$A80,'Criteria-Status-Tabel'!$A$5:$A$128,0),MATCH(10*$S$15+$S$14,'Criteria-Status-Tabel'!$A$5:$K$5,0))=\"extra belangrijk\",3,1)),\"1\")","v":2},null,null,{"$f":"IFERROR(IF(OR(INDEX('Criteria-Status-Tabel'!$A$5:$K$128,MATCH(\"1-\"&'Invulscherm 1 - Weging'!$A80,'Criteria-Status-Tabel'!$A$5:$A$128,0),MATCH(10*$S$15+$S$14,'Criteria-Status-Tabel'!$A$5:$K$5,0))=\"relevant\",INDEX('Criteria-Status-Tabel'!$A$5:$K$128,MATCH(\"1-\"&'Invulscherm 1 - Weging'!$A80,'Criteria-Status-Tabel'!$A$5:$A$128,0),MATCH(10*$S$15+$S$14,'Criteria-Status-Tabel'!$A$5:$K$5,0))=\"verplicht\")=TRUE,2,IF(INDEX('Criteria-Status-Tabel'!$A$5:$K$128,MATCH(\"1-\"&'Invulscherm 1 - Weging'!$A80,'Criteria-Status-Tabel'!$A$5:$A$128,0),MATCH(10*$S$15+$S$14,'Criteria-Status-Tabel'!$A$5:$K$5,0))=\"extra belangrijk\",3,1)),\"1\")","v":2},{"$f":"IFERROR(IF(OR(INDEX('Criteria-Status-Tabel'!$A$5:$K$128,MATCH(\"2-\"&'Invulscherm 1 - Weging'!$A80,'Criteria-Status-Tabel'!$A$5:$A$128,0),MATCH(10*$S$15+$S$14,'Criteria-Status-Tabel'!$A$5:$K$5,0))=\"relevant\",INDEX('Criteria-Status-Tabel'!$A$5:$K$128,MATCH(\"2-\"&'Invulscherm 1 - Weging'!$A80,'Criteria-Status-Tabel'!$A$5:$A$128,0),MATCH(10*$S$15+$S$14,'Criteria-Status-Tabel'!$A$5:$K$5,0))=\"verplicht\")=TRUE,2,IF(INDEX('Criteria-Status-Tabel'!$A$5:$K$128,MATCH(\"2-\"&'Invulscherm 1 - Weging'!$A80,'Criteria-Status-Tabel'!$A$5:$A$128,0),MATCH(10*$S$15+$S$14,'Criteria-Status-Tabel'!$A$5:$K$5,0))=\"extra belangrijk\",3,1)),\"1\")","v":2},0,0,null,null,{"$f":"SUM($U$70+$V$70)/SUM($K$72:$L$85)","v":0.52631578947368418},{"$f":"SUM($U$70+$V$70)/SUM($K$72:$L$85)","v":0.52631578947368418}]
["EDL3.2",null,"Abiotische structuren",null,"verplicht",{"$f":"IF(K81=1,U81,IF(K81=2,U81*2,IF(K81=3,U81*3)))","v":1.0526315789473684},null,"relevant",{"$f":"IF(L81=1,V81,IF(L81=2,V81*2,IF(L81=3,V81*3)))","v":1.0526315789473684},null,{"$f":"IFERROR(IF(OR(INDEX('Criteria-Status-Tabel'!$A$5:$K$128,MATCH(\"1-\"&'Invulscherm 1 - Weging'!$A81,'Criteria-Status-Tabel'!$A$5:$A$128,0),MATCH(10*$S$15+$S$14,'Criteria-Status-Tabel'!$A$5:$K$5,0))=\"relevant\",INDEX('Criteria-Status-Tabel'!$A$5:$K$128,MATCH(\"1-\"&'Invulscherm 1 - Weging'!$A81,'Criteria-Status-Tabel'!$A$5:$A$128,0),MATCH(10*$S$15+$S$14,'Criteria-Status-Tabel'!$A$5:$K$5,0))=\"verplicht\")=TRUE,2,IF(INDEX('Criteria-Status-Tabel'!$A$5:$K$128,MATCH(\"1-\"&'Invulscherm 1 - Weging'!$A81,'Criteria-Status-Tabel'!$A$5:$A$128,0),MATCH(10*$S$15+$S$14,'Criteria-Status-Tabel'!$A$5:$K$5,0))=\"extra belangrijk\",3,1)),\"1\")","v":2},{"$f":"IFERROR(IF(OR(INDEX('Criteria-Status-Tabel'!$A$5:$K$128,MATCH(\"2-\"&'Invulscherm 1 - Weging'!$A81,'Criteria-Status-Tabel'!$A$5:$A$128,0),MATCH(10*$S$15+$S$14,'Criteria-Status-Tabel'!$A$5:$K$5,0))=\"relevant\",INDEX('Criteria-Status-Tabel'!$A$5:$K$128,MATCH(\"2-\"&'Invulscherm 1 - Weging'!$A81,'Criteria-Status-Tabel'!$A$5:$A$128,0),MATCH(10*$S$15+$S$14,'Criteria-Status-Tabel'!$A$5:$K$5,0))=\"verplicht\")=TRUE,2,IF(INDEX('Criteria-Status-Tabel'!$A$5:$K$128,MATCH(\"2-\"&'Invulscherm 1 - Weging'!$A81,'Criteria-Status-Tabel'!$A$5:$A$128,0),MATCH(10*$S$15+$S$14,'Criteria-Status-Tabel'!$A$5:$K$5,0))=\"extra belangrijk\",3,1)),\"1\")","v":2},null,null,{"$f":"IFERROR(IF(OR(INDEX('Criteria-Status-Tabel'!$A$5:$K$128,MATCH(\"1-\"&'Invulscherm 1 - Weging'!$A81,'Criteria-Status-Tabel'!$A$5:$A$128,0),MATCH(10*$S$15+$S$14,'Criteria-Status-Tabel'!$A$5:$K$5,0))=\"relevant\",INDEX('Criteria-Status-Tabel'!$A$5:$K$128,MATCH(\"1-\"&'Invulscherm 1 - Weging'!$A81,'Criteria-Status-Tabel'!$A$5:$A$128,0),MATCH(10*$S$15+$S$14,'Criteria-Status-Tabel'!$A$5:$K$5,0))=\"verplicht\")=TRUE,2,IF(INDEX('Criteria-Status-Tabel'!$A$5:$K$128,MATCH(\"1-\"&'Invulscherm 1 - Weging'!$A81,'Criteria-Status-Tabel'!$A$5:$A$128,0),MATCH(10*$S$15+$S$14,'Criteria-Status-Tabel'!$A$5:$K$5,0))=\"extra belangrijk\",3,1)),\"1\")","v":2},{"$f":"IFERROR(IF(OR(INDEX('Criteria-Status-Tabel'!$A$5:$K$128,MATCH(\"2-\"&'Invulscherm 1 - Weging'!$A81,'Criteria-Status-Tabel'!$A$5:$A$128,0),MATCH(10*$S$15+$S$14,'Criteria-Status-Tabel'!$A$5:$K$5,0))=\"relevant\",INDEX('Criteria-Status-Tabel'!$A$5:$K$128,MATCH(\"2-\"&'Invulscherm 1 - Weging'!$A81,'Criteria-Status-Tabel'!$A$5:$A$128,0),MATCH(10*$S$15+$S$14,'Criteria-Status-Tabel'!$A$5:$K$5,0))=\"verplicht\")=TRUE,2,IF(INDEX('Criteria-Status-Tabel'!$A$5:$K$128,MATCH(\"2-\"&'Invulscherm 1 - Weging'!$A81,'Criteria-Status-Tabel'!$A$5:$A$128,0),MATCH(10*$S$15+$S$14,'Criteria-Status-Tabel'!$A$5:$K$5,0))=\"extra belangrijk\",3,1)),\"1\")","v":2},0,0,null,null,{"$f":"SUM($U$70+$V$70)/SUM($K$72:$L$85)","v":0.52631578947368418},{"$f":"SUM($U$70+$V$70)/SUM($K$72:$L$85)","v":0.52631578947368418}]
["EDL3.3",null,"Vergroening",null,null,null,null,{"$f":"IF(L82=2,\"verplicht\",\"extra belangrijk\")","v":"verplicht"},{"$f":"IF(L82=1,V82,IF(L82=2,V82*2,IF(L82=3,V82*3)))","v":1.0526315789473684},null,null,{"$f":"IFERROR(IF(OR(INDEX('Criteria-Status-Tabel'!$A$5:$K$128,MATCH(\"2-\"&'Invulscherm 1 - Weging'!$A82,'Criteria-Status-Tabel'!$A$5:$A$128,0),MATCH(10*$S$15+$S$14,'Criteria-Status-Tabel'!$A$5:$K$5,0))=\"relevant\",INDEX('Criteria-Status-Tabel'!$A$5:$K$128,MATCH(\"2-\"&'Invulscherm 1 - Weging'!$A82,'Criteria-Status-Tabel'!$A$5:$A$128,0),MATCH(10*$S$15+$S$14,'Criteria-Status-Tabel'!$A$5:$K$5,0))=\"verplicht\")=TRUE,2,IF(INDEX('Criteria-Status-Tabel'!$A$5:$K$128,MATCH(\"2-\"&'Invulscherm 1 - Weging'!$A82,'Criteria-Status-Tabel'!$A$5:$A$128,0),MATCH(10*$S$15+$S$14,'Criteria-Status-Tabel'!$A$5:$K$5,0))=\"extra belangrijk\",3,1)),\"1\")","v":2},null,null,null,{"$f":"IFERROR(IF(OR(INDEX('Criteria-Status-Tabel'!$A$5:$K$128,MATCH(\"2-\"&'Invulscherm 1 - Weging'!$A82,'Criteria-Status-Tabel'!$A$5:$A$128,0),MATCH(10*$S$15+$S$14,'Criteria-Status-Tabel'!$A$5:$K$5,0))=\"relevant\",INDEX('Criteria-Status-Tabel'!$A$5:$K$128,MATCH(\"2-\"&'Invulscherm 1 - Weging'!$A82,'Criteria-Status-Tabel'!$A$5:$A$128,0),MATCH(10*$S$15+$S$14,'Criteria-Status-Tabel'!$A$5:$K$5,0))=\"verplicht\")=TRUE,2,IF(INDEX('Criteria-Status-Tabel'!$A$5:$K$128,MATCH(\"2-\"&'Invulscherm 1 - Weging'!$A82,'Criteria-Status-Tabel'!$A$5:$A$128,0),MATCH(10*$S$15+$S$14,'Criteria-Status-Tabel'!$A$5:$K$5,0))=\"extra belangrijk\",3,1)),\"1\")","v":2},0,0,null,null,null,{"$f":"SUM($U$70+$V$70)/SUM($K$72:$L$85)","v":0.52631578947368418}]
["EDL4","Water",null,null,null,null,null,null,null,null,null,null,null,null,null,null,0,0]
["EDL4.1",null,"Hoogwaterbescherming & klimaatadaptatie",null,{"$f":"IF(K84=2,\"verplicht\",\"extra belangrijk\")","v":"verplicht"},{"$f":"IF(K84=1,U84,IF(K84=2,U84*2,IF(K84=3,U84*3)))","v":1.0526315789473684},null,{"$f":"IF(L84=1,\"minder belangrijk\",IF(L84=2,\"relevant\",IF(L84=3,\"extra belangrijk\")))","v":"relevant"},{"$f":"IF(L84=1,V84,IF(L84=2,V84*2,IF(L84=3,V84*3)))","v":1.0526315789473684},null,{"$f":"IFERROR(IF(OR(INDEX('Criteria-Status-Tabel'!$A$5:$K$128,MATCH(\"1-\"&'Invulscherm 1 - Weging'!$A84,'Criteria-Status-Tabel'!$A$5:$A$128,0),MATCH(10*$S$15+$S$14,'Criteria-Status-Tabel'!$A$5:$K$5,0))=\"relevant\",INDEX('Criteria-Status-Tabel'!$A$5:$K$128,MATCH(\"1-\"&'Invulscherm 1 - Weging'!$A84,'Criteria-Status-Tabel'!$A$5:$A$128,0),MATCH(10*$S$15+$S$14,'Criteria-Status-Tabel'!$A$5:$K$5,0))=\"verplicht\")=TRUE,2,IF(INDEX('Criteria-Status-Tabel'!$A$5:$K$128,MATCH(\"1-\"&'Invulscherm 1 - Weging'!$A84,'Criteria-Status-Tabel'!$A$5:$A$128,0),MATCH(10*$S$15+$S$14,'Criteria-Status-Tabel'!$A$5:$K$5,0))=\"extra belangrijk\",3,1)),\"1\")","v":2},{"$f":"IFERROR(IF(OR(INDEX('Criteria-Status-Tabel'!$A$5:$K$128,MATCH(\"2-\"&'Invulscherm 1 - Weging'!$A84,'Criteria-Status-Tabel'!$A$5:$A$128,0),MATCH(10*$S$15+$S$14,'Criteria-Status-Tabel'!$A$5:$K$5,0))=\"relevant\",INDEX('Criteria-Status-Tabel'!$A$5:$K$128,MATCH(\"2-\"&'Invulscherm 1 - Weging'!$A84,'Criteria-Status-Tabel'!$A$5:$A$128,0),MATCH(10*$S$15+$S$14,'Criteria-Status-Tabel'!$A$5:$K$5,0))=\"verplicht\")=TRUE,2,IF(INDEX('Criteria-Status-Tabel'!$A$5:$K$128,MATCH(\"2-\"&'Invulscherm 1 - Weging'!$A84,'Criteria-Status-Tabel'!$A$5:$A$128,0),MATCH(10*$S$15+$S$14,'Criteria-Status-Tabel'!$A$5:$K$5,0))=\"extra belangrijk\",3,1)),\"1\")","v":2},null,null,{"$f":"IFERROR(IF(OR(INDEX('Criteria-Status-Tabel'!$A$5:$K$128,MATCH(\"1-\"&'Invulscherm 1 - Weging'!$A84,'Criteria-Status-Tabel'!$A$5:$A$128,0),MATCH(10*$S$15+$S$14,'Criteria-Status-Tabel'!$A$5:$K$5,0))=\"relevant\",INDEX('Criteria-Status-Tabel'!$A$5:$K$128,MATCH(\"1-\"&'Invulscherm 1 - Weging'!$A84,'Criteria-Status-Tabel'!$A$5:$A$128,0),MATCH(10*$S$15+$S$14,'Criteria-Status-Tabel'!$A$5:$K$5,0))=\"verplicht\")=TRUE,2,IF(INDEX('Criteria-Status-Tabel'!$A$5:$K$128,MATCH(\"1-\"&'Invulscherm 1 - Weging'!$A84,'Criteria-Status-Tabel'!$A$5:$A$128,0),MATCH(10*$S$15+$S$14,'Criteria-Status-Tabel'!$A$5:$K$5,0))=\"extra belangrijk\",3,1)),\"1\")","v":2},{"$f":"IFERROR(IF(OR(INDEX('Criteria-Status-Tabel'!$A$5:$K$128,MATCH(\"2-\"&'Invulscherm 1 - Weging'!$A84,'Criteria-Status-Tabel'!$A$5:$A$128,0),MATCH(10*$S$15+$S$14,'Criteria-Status-Tabel'!$A$5:$K$5,0))=\"relevant\",INDEX('Criteria-Status-Tabel'!$A$5:$K$128,MATCH(\"2-\"&'Invulscherm 1 - Weging'!$A84,'Criteria-Status-Tabel'!$A$5:$A$128,0),MATCH(10*$S$15+$S$14,'Criteria-Status-Tabel'!$A$5:$K$5,0))=\"verplicht\")=TRUE,2,IF(INDEX('Criteria-Status-Tabel'!$A$5:$K$128,MATCH(\"2-\"&'Invulscherm 1 - Weging'!$A84,'Criteria-Status-Tabel'!$A$5:$A$128,0),MATCH(10*$S$15+$S$14,'Criteria-Status-Tabel'!$A$5:$K$5,0))=\"extra belangrijk\",3,1)),\"1\")","v":2},0,0,null,null,{"$f":"SUM($U$70+$V$70)/SUM($K$72:$L$85)","v":0.52631578947368418},{"$f":"SUM($U$70+$V$70)/SUM($K$72:$L$85)","v":0.52631578947368418},"Allen uit bij 'bestaande terreinen'"]
["EDL4.2",null,"Waterkwaliteit",null,null,null,null,"relevant",{"$f":"IF(L85=1,V85,IF(L85=2,V85*2,IF(L85=3,V85*3)))","v":1.0526315789473684},null,null,{"$f":"IFERROR(IF(OR(INDEX('Criteria-Status-Tabel'!$A$5:$K$128,MATCH(\"2-\"&'Invulscherm 1 - Weging'!$A85,'Criteria-Status-Tabel'!$A$5:$A$128,0),MATCH(10*$S$15+$S$14,'Criteria-Status-Tabel'!$A$5:$K$5,0))=\"relevant\",INDEX('Criteria-Status-Tabel'!$A$5:$K$128,MATCH(\"2-\"&'Invulscherm 1 - Weging'!$A85,'Criteria-Status-Tabel'!$A$5:$A$128,0),MATCH(10*$S$15+$S$14,'Criteria-Status-Tabel'!$A$5:$K$5,0))=\"verplicht\")=TRUE,2,IF(INDEX('Criteria-Status-Tabel'!$A$5:$K$128,MATCH(\"2-\"&'Invulscherm 1 - Weging'!$A85,'Criteria-Status-Tabel'!$A$5:$A$128,0),MATCH(10*$S$15+$S$14,'Criteria-Status-Tabel'!$A$5:$K$5,0))=\"extra belangrijk\",3,1)),\"1\")","v":2},null,null,null,{"$f":"IFERROR(IF(OR(INDEX('Criteria-Status-Tabel'!$A$5:$K$128,MATCH(\"2-\"&'Invulscherm 1 - Weging'!$A85,'Criteria-Status-Tabel'!$A$5:$A$128,0),MATCH(10*$S$15+$S$14,'Criteria-Status-Tabel'!$A$5:$K$5,0))=\"relevant\",INDEX('Criteria-Status-Tabel'!$A$5:$K$128,MATCH(\"2-\"&'Invulscherm 1 - Weging'!$A85,'Criteria-Status-Tabel'!$A$5:$A$128,0),MATCH(10*$S$15+$S$14,'Criteria-Status-Tabel'!$A$5:$K$5,0))=\"verplicht\")=TRUE,2,IF(INDEX('Criteria-Status-Tabel'!$A$5:$K$128,MATCH(\"2-\"&'Invulscherm 1 - Weging'!$A85,'Criteria-Status-Tabel'!$A$5:$A$128,0),MATCH(10*$S$15+$S$14,'Criteria-Status-Tabel'!$A$5:$K$5,0))=\"extra belangrijk\",3,1)),\"1\")","v":2},0,0,null,null,null,{"$f":"SUM($U$70+$V$70)/SUM($K$72:$L$85)","v":0.52631578947368418},"Allen uit bij 'bestaande terreinen'"]
["TRA","6. TRANSPORT (15%)",null,{"$f":"IF(SUM(Q89:R103)=0,\"U heeft nog geen wijzigingen in dit thema doorgevoerd\",IF(SUM(Q89:R103)=1,\"Let op! U kunt nog 2 wijziging binnen dit thema doorvoeren\",IF(SUM(Q89:R103)=2,\"Let op! U kunt nog 1 wijziging voor dit thema doorvoeren\",IF(SUM(Q89:R103)=3,\"LET OP! U mag geen wijzigingen meer doorvoeren binnen dit thema\",\"STOP! U heeft te veel wijzigingen doorgevoerd. Klik op de knop 'basiswaarden' om te resetten\"))))","v":"U heeft nog geen wijzigingen in dit thema doorgevoerd"},null,null,null,null,null,{"$f":"SUM(I87+F87)","v":14.999999999999998}]
[null,null,null,null,null,{"$f":"SUM(F89:F103)","v":8.4146341463414629},null,null,{"$f":"SUM(I89:I103)","v":6.5853658536585353},null,null,null,null,null,null,null,{"$f":"IF(K87<>O87,1,0)","v":0},{"$f":"IF(L87<>P87,1,0)","v":0},null,null,7,8]
["TRA1","Non-gemotoriseerd verkeer",null,null,null,null,null,null,null,null,null,null,null,null,null,null,0,0]
["TRA1.1","Inpassing voor fiets- en voetgangersverkeer",null,null,{"$f":"IF(K89=2,\"verplicht\",\"extra belangrijk\")","v":"verplicht"},{"$f":"IF(K89=1,U89,IF(K89=2,U89*2,IF(K89=3,U89*3)))","v":0.73170731707317072},null,{"$f":"IF(L89=1,\"minder belangrijk\",IF(L89=2,\"relevant\",IF(L89=3,\"extra belangrijk\")))","v":"relevant"},{"$f":"IF(L89=1,V89,IF(L89=2,V89*2,IF(L89=3,V89*3)))","v":0.73170731707317072},null,{"$f":"IFERROR(IF(OR(INDEX('Criteria-Status-Tabel'!$A$5:$K$128,MATCH(\"1-\"&'Invulscherm 1 - Weging'!$A89,'Criteria-Status-Tabel'!$A$5:$A$128,0),MATCH(10*$S$15+$S$14,'Criteria-Status-Tabel'!$A$5:$K$5,0))=\"relevant\",INDEX('Criteria-Status-Tabel'!$A$5:$K$128,MATCH(\"1-\"&'Invulscherm 1 - Weging'!$A89,'Criteria-Status-Tabel'!$A$5:$A$128,0),MATCH(10*$S$15+$S$14,'Criteria-Status-Tabel'!$A$5:$K$5,0))=\"verplicht\")=TRUE,2,IF(INDEX('Criteria-Status-Tabel'!$A$5:$K$128,MATCH(\"1-\"&'Invulscherm 1 - Weging'!$A89,'Criteria-Status-Tabel'!$A$5:$A$128,0),MATCH(10*$S$15+$S$14,'Criteria-Status-Tabel'!$A$5:$K$5,0))=\"extra belangrijk\",3,1)),\"1\")","v":2},{"$f":"IFERROR(IF(OR(INDEX('Criteria-Status-Tabel'!$A$5:$K$128,MATCH(\"2-\"&'Invulscherm 1 - Weging'!$A89,'Criteria-Status-Tabel'!$A$5:$A$128,0),MATCH(10*$S$15+$S$14,'Criteria-Status-Tabel'!$A$5:$K$5,0))=\"relevant\",INDEX('Criteria-Status-Tabel'!$A$5:$K$128,MATCH(\"2-\"&'Invulscherm 1 - Weging'!$A89,'Criteria-Status-Tabel'!$A$5:$A$128,0),MATCH(10*$S$15+$S$14,'Criteria-Status-Tabel'!$A$5:$K$5,0))=\"verplicht\")=TRUE,2,IF(INDEX('Criteria-Status-Tabel'!$A$5:$K$128,MATCH(\"2-\"&'Invulscherm 1 - Weging'!$A89,'Criteria-Status-Tabel'!$A$5:$A$128,0),MATCH(10*$S$15+$S$14,'Criteria-Status-Tabel'!$A$5:$K$5,0))=\"extra belangrijk\",3,1)),\"1\")","v":2},null,null,{"$f":"IFERROR(IF(OR(INDEX('Criteria-Status-Tabel'!$A$5:$K$128,MATCH(\"1-\"&'Invulscherm 1 - Weging'!$A89,'Criteria-Status-Tabel'!$A$5:$A$128,0),MATCH(10*$S$15+$S$14,'Criteria-Status-Tabel'!$A$5:$K$5,0))=\"relevant\",INDEX('Criteria-Status-Tabel'!$A$5:$K$128,MATCH(\"1-\"&'Invulscherm 1 - Weging'!$A89,'Criteria-Status-Tabel'!$A$5:$A$128,0),MATCH(10*$S$15+$S$14,'Criteria-Status-Tabel'!$A$5:$K$5,0))=\"verplicht\")=TRUE,2,IF(INDEX('Criteria-Status-Tabel'!$A$5:$K$128,MATCH(\"1-\"&'Invulscherm 1 - Weging'!$A89,'Criteria-Status-Tabel'!$A$5:$A$128,0),MATCH(10*$S$15+$S$14,'Criteria-Status-Tabel'!$A$5:$K$5,0))=\"extra belangrijk\",3,1)),\"1\")","v":2},{"$f":"IFERROR(IF(OR(INDEX('Criteria-Status-Tabel'!$A$5:$K$128,MATCH(\"2-\"&'Invulscherm 1 - Weging'!$A89,'Criteria-Status-Tabel'!$A$5:$A$128,0),MATCH(10*$S$15+$S$14,'Criteria-Status-Tabel'!$A$5:$K$5,0))=\"relevant\",INDEX('Criteria-Status-Tabel'!$A$5:$K$128,MATCH(\"2-\"&'Invulscherm 1 - Weging'!$A89,'Criteria-Status-Tabel'!$A$5:$A$128,0),MATCH(10*$S$15+$S$14,'Criteria-Status-Tabel'!$A$5:$K$5,0))=\"verplicht\")=TRUE,2,IF(INDEX('Criteria-Status-Tabel'!$A$5:$K$128,MATCH(\"2-\"&'Invulscherm 1 - Weging'!$A89,'Criteria-Status-Tabel'!$A$5:$A$128,0),MATCH(10*$S$15+$S$14,'Criteria-Status-Tabel'!$A$5:$K$5,0))=\"extra belangrijk\",3,1)),\"1\")","v":2},0,0,null,null,{"$f":"15/SUM($K$89:$L$103)","v":0.36585365853658536},{"$f":"15/SUM($K$89:$L$103)","v":0.36585365853658536},"Allen uit bij 'bestaande terreinen'"]
["TRA1.2","Stimuleren fiets- en voetgangersverkeer",null,null,"verplicht",{"$f":"IF(K90=1,U90,IF(K90=2,U90*2,IF(K90=3,U90*3)))","v":0.73170731707317072},null,"relevant",{"$f":"IF(L90=1,V90,IF(L90=2,V90*2,IF(L90=3,V90*3)))","v":0.73170731707317072},null,{"$f":"IFERROR(IF(OR(INDEX('Criteria-Status-Tabel'!$A$5:$K$128,MATCH(\"1-\"&'Invulscherm 1 - Weging'!$A90,'Criteria-Status-Tabel'!$A$5:$A$128,0),MATCH(10*$S$15+$S$14,'Criteria-Status-Tabel'!$A$5:$K$5,0))=\"relevant\",INDEX('Criteria-Status-Tabel'!$A$5:$K$128,MATCH(\"1-\"&'Invulscherm 1 - Weging'!$A90,'Criteria-Status-Tabel'!$A$5:$A$128,0),MATCH(10*$S$15+$S$14,'Criteria-Status-Tabel'!$A$5:$K$5,0))=\"verplicht\")=TRUE,2,IF(INDEX('Criteria-Status-Tabel'!$A$5:$K$128,MATCH(\"1-\"&'Invulscherm 1 - Weging'!$A90,'Criteria-Status-Tabel'!$A$5:$A$128,0),MATCH(10*$S$15+$S$14,'Criteria-Status-Tabel'!$A$5:$K$5,0))=\"extra belangrijk\",3,1)),\"1\")","v":2},{"$f":"IFERROR(IF(OR(INDEX('Criteria-Status-Tabel'!$A$5:$K$128,MATCH(\"2-\"&'Invulscherm 1 - Weging'!$A90,'Criteria-Status-Tabel'!$A$5:$A$128,0),MATCH(10*$S$15+$S$14,'Criteria-Status-Tabel'!$A$5:$K$5,0))=\"relevant\",INDEX('Criteria-Status-Tabel'!$A$5:$K$128,MATCH(\"2-\"&'Invulscherm 1 - Weging'!$A90,'Criteria-Status-Tabel'!$A$5:$A$128,0),MATCH(10*$S$15+$S$14,'Criteria-Status-Tabel'!$A$5:$K$5,0))=\"verplicht\")=TRUE,2,IF(INDEX('Criteria-Status-Tabel'!$A$5:$K$128,MATCH(\"2-\"&'Invulscherm 1 - Weging'!$A90,'Criteria-Status-Tabel'!$A$5:$A$128,0),MATCH(10*$S$15+$S$14,'Criteria-Status-Tabel'!$A$5:$K$5,0))=\"extra belangrijk\",3,1)),\"1\")","v":2},null,null,{"$f":"IFERROR(IF(OR(INDEX('Criteria-Status-Tabel'!$A$5:$K$128,MATCH(\"1-\"&'Invulscherm 1 - Weging'!$A90,'Criteria-Status-Tabel'!$A$5:$A$128,0),MATCH(10*$S$15+$S$14,'Criteria-Status-Tabel'!$A$5:$K$5,0))=\"relevant\",INDEX('Criteria-Status-Tabel'!$A$5:$K$128,MATCH(\"1-\"&'Invulscherm 1 - Weging'!$A90,'Criteria-Status-Tabel'!$A$5:$A$128,0),MATCH(10*$S$15+$S$14,'Criteria-Status-Tabel'!$A$5:$K$5,0))=\"verplicht\")=TRUE,2,IF(INDEX('Criteria-Status-Tabel'!$A$5:$K$128,MATCH(\"1-\"&'Invulscherm 1 - Weging'!$A90,'Criteria-Status-Tabel'!$A$5:$A$128,0),MATCH(10*$S$15+$S$14,'Criteria-Status-Tabel'!$A$5:$K$5,0))=\"extra belangrijk\",3,1)),\"1\")","v":2},{"$f":"IFERROR(IF(OR(INDEX('Criteria-Status-Tabel'!$A$5:$K$128,MATCH(\"2-\"&'Invulscherm 1 - Weging'!$A90,'Criteria-Status-Tabel'!$A$5:$A$128,0),MATCH(10*$S$15+$S$14,'Criteria-Status-Tabel'!$A$5:$K$5,0))=\"relevant\",INDEX('Criteria-Status-Tabel'!$A$5:$K$128,MATCH(\"2-\"&'Invulscherm 1 - Weging'!$A90,'Criteria-Status-Tabel'!$A$5:$A$128,0),MATCH(10*$S$15+$S$14,'Criteria-Status-Tabel'!$A$5:$K$5,0))=\"verplicht\")=TRUE,2,IF(INDEX('Criteria-Status-Tabel'!$A$5:$K$128,MATCH(\"2-\"&'Invulscherm 1 - Weging'!$A90,'Criteria-Status-Tabel'!$A$5:$A$128,0),MATCH(10*$S$15+$S$14,'Criteria-Status-Tabel'!$A$5:$K$5,0))=\"extra belangrijk\",3,1)),\"1\")","v":2},0,0,null,null,{"$f":"15/SUM($K$89:$L$103)","v":0.36585365853658536},{"$f":"15/SUM($K$89:$L$103)","v":0.36585365853658536},"Allen uit bij 'bestaande terreinen'"]
["TRA2","Openbaar vervoer",null,null,null,null,null,null,null,null,null,null,null,null,null,null,0,0]
["TRA2.1","Stimuleren van openbaar & collectief vervoer",null,null,{"$f":"IF(K92=1,\"minder belangrijk\",IF(K92=2,\"relevant\",IF(K92=3,\"extra belangrijk\")))","v":"relevant"},{"$f":"IF(K92=1,U92,IF(K92=2,U92*2,IF(K92=3,U92*3)))","v":0.73170731707317072},null,{"$f":"IF(L92=1,\"minder belangrijk\",IF(L92=2,\"relevant\",IF(L92=3,\"extra belangrijk\")))","v":"relevant"},{"$f":"IF(L92=1,V92,IF(L92=2,V92*2,IF(L92=3,V92*3)))","v":0.73170731707317072},null,{"$f":"IFERROR(IF(OR(INDEX('Criteria-Status-Tabel'!$A$5:$K$128,MATCH(\"1-\"&'Invulscherm 1 - Weging'!$A92,'Criteria-Status-Tabel'!$A$5:$A$128,0),MATCH(10*$S$15+$S$14,'Criteria-Status-Tabel'!$A$5:$K$5,0))=\"relevant\",INDEX('Criteria-Status-Tabel'!$A$5:$K$128,MATCH(\"1-\"&'Invulscherm 1 - Weging'!$A92,'Criteria-Status-Tabel'!$A$5:$A$128,0),MATCH(10*$S$15+$S$14,'Criteria-Status-Tabel'!$A$5:$K$5,0))=\"verplicht\")=TRUE,2,IF(INDEX('Criteria-Status-Tabel'!$A$5:$K$128,MATCH(\"1-\"&'Invulscherm 1 - Weging'!$A92,'Criteria-Status-Tabel'!$A$5:$A$128,0),MATCH(10*$S$15+$S$14,'Criteria-Status-Tabel'!$A$5:$K$5,0))=\"extra belangrijk\",3,1)),\"1\")","v":2},{"$f":"IFERROR(IF(OR(INDEX('Criteria-Status-Tabel'!$A$5:$K$128,MATCH(\"2-\"&'Invulscherm 1 - Weging'!$A92,'Criteria-Status-Tabel'!$A$5:$A$128,0),MATCH(10*$S$15+$S$14,'Criteria-Status-Tabel'!$A$5:$K$5,0))=\"relevant\",INDEX('Criteria-Status-Tabel'!$A$5:$K$128,MATCH(\"2-\"&'Invulscherm 1 - Weging'!$A92,'Criteria-Status-Tabel'!$A$5:$A$128,0),MATCH(10*$S$15+$S$14,'Criteria-Status-Tabel'!$A$5:$K$5,0))=\"verplicht\")=TRUE,2,IF(INDEX('Criteria-Status-Tabel'!$A$5:$K$128,MATCH(\"2-\"&'Invulscherm 1 - Weging'!$A92,'Criteria-Status-Tabel'!$A$5:$A$128,0),MATCH(10*$S$15+$S$14,'Criteria-Status-Tabel'!$A$5:$K$5,0))=\"extra belangrijk\",3,1)),\"1\")","v":2},null,null,{"$f":"IFERROR(IF(OR(INDEX('Criteria-Status-Tabel'!$A$5:$K$128,MATCH(\"1-\"&'Invulscherm 1 - Weging'!$A92,'Criteria-Status-Tabel'!$A$5:$A$128,0),MATCH(10*$S$15+$S$14,'Criteria-Status-Tabel'!$A$5:$K$5,0))=\"relevant\",INDEX('Criteria-Status-Tabel'!$A$5:$K$128,MATCH(\"1-\"&'Invulscherm 1 - Weging'!$A92,'Criteria-Status-Tabel'!$A$5:$A$128,0),MATCH(10*$S$15+$S$14,'Criteria-Status-Tabel'!$A$5:$K$5,0))=\"verplicht\")=TRUE,2,IF(INDEX('Criteria-Status-Tabel'!$A$5:$K$128,MATCH(\"1-\"&'Invulscherm 1 - Weging'!$A92,'Criteria-Status-Tabel'!$A$5:$A$128,0),MATCH(10*$S$15+$S$14,'Criteria-Status-Tabel'!$A$5:$K$5,0))=\"extra belangrijk\",3,1)),\"1\")","v":2},{"$f":"IFERROR(IF(OR(INDEX('Criteria-Status-Tabel'!$A$5:$K$128,MATCH(\"2-\"&'Invulscherm 1 - Weging'!$A92,'Criteria-Status-Tabel'!$A$5:$A$128,0),MATCH(10*$S$15+$S$14,'Criteria-Status-Tabel'!$A$5:$K$5,0))=\"relevant\",INDEX('Criteria-Status-Tabel'!$A$5:$K$128,MATCH(\"2-\"&'Invulscherm 1 - Weging'!$A92,'Criteria-Status-Tabel'!$A$5:$A$128,0),MATCH(10*$S$15+$S$14,'Criteria-Status-Tabel'!$A$5:$K$5,0))=\"verplicht\")=TRUE,2,IF(INDEX('Criteria-Status-Tabel'!$A$5:$K$128,MATCH(\"2-\"&'Invulscherm 1 - Weging'!$A92,'Criteria-Status-Tabel'!$A$5:$A$128,0),MATCH(10*$S$15+$S$14,'Criteria-Status-Tabel'!$A$5:$K$5,0))=\"extra belangrijk\",3,1)),\"1\")","v":2},0,0,null,null,{"$f":"15/SUM($K$89:$L$103)","v":0.36585365853658536},{"$f":"15/SUM($K$89:$L$103)","v":0.36585365853658536},"Allen uit bij 'bestaande terreinen'"]
["TRA3","Autoverkeer",null,null,null,null,null,null,null,null,null,null,null,null,null,null,0,0]
["TRA3.1","Inpassing van autoverkeer",null,null,{"$f":"IF(K94=2,\"verplicht\",\"extra belangrijk\")","v":"verplicht"},{"$f":"IF(K94=1,U94,IF(K94=2,U94*2,IF(K94=3,U94*3)))","v":0.73170731707317072},null,{"$f":"IF(L94=1,\"minder belangrijk\",IF(L94=2,\"relevant\",IF(L94=3,\"extra belangrijk\")))","v":"relevant"},{"$f":"IF(L94=1,V94,IF(L94=2,V94*2,IF(L94=3,V94*3)))","v":0.73170731707317072},null,{"$f":"IFERROR(IF(OR(INDEX('Criteria-Status-Tabel'!$A$5:$K$128,MATCH(\"1-\"&'Invulscherm 1 - Weging'!$A94,'Criteria-Status-Tabel'!$A$5:$A$128,0),MATCH(10*$S$15+$S$14,'Criteria-Status-Tabel'!$A$5:$K$5,0))=\"relevant\",INDEX('Criteria-Status-Tabel'!$A$5:$K$128,MATCH(\"1-\"&'Invulscherm 1 - Weging'!$A94,'Criteria-Status-Tabel'!$A$5:$A$128,0),MATCH(10*$S$15+$S$14,'Criteria-Status-Tabel'!$A$5:$K$5,0))=\"verplicht\")=TRUE,2,IF(INDEX('Criteria-Status-Tabel'!$A$5:$K$128,MATCH(\"1-\"&'Invulscherm 1 - Weging'!$A94,'Criteria-Status-Tabel'!$A$5:$A$128,0),MATCH(10*$S$15+$S$14,'Criteria-Status-Tabel'!$A$5:$K$5,0))=\"extra belangrijk\",3,1)),\"1\")","v":2},{"$f":"IFERROR(IF(OR(INDEX('Criteria-Status-Tabel'!$A$5:$K$128,MATCH(\"2-\"&'Invulscherm 1 - Weging'!$A94,'Criteria-Status-Tabel'!$A$5:$A$128,0),MATCH(10*$S$15+$S$14,'Criteria-Status-Tabel'!$A$5:$K$5,0))=\"relevant\",INDEX('Criteria-Status-Tabel'!$A$5:$K$128,MATCH(\"2-\"&'Invulscherm 1 - Weging'!$A94,'Criteria-Status-Tabel'!$A$5:$A$128,0),MATCH(10*$S$15+$S$14,'Criteria-Status-Tabel'!$A$5:$K$5,0))=\"verplicht\")=TRUE,2,IF(INDEX('Criteria-Status-Tabel'!$A$5:$K$128,MATCH(\"2-\"&'Invulscherm 1 - Weging'!$A94,'Criteria-Status-Tabel'!$A$5:$A$128,0),MATCH(10*$S$15+$S$14,'Criteria-Status-Tabel'!$A$5:$K$5,0))=\"extra belangrijk\",3,1)),\"1\")","v":2},null,null,{"$f":"IFERROR(IF(OR(INDEX('Criteria-Status-Tabel'!$A$5:$K$128,MATCH(\"1-\"&'Invulscherm 1 - Weging'!$A94,'Criteria-Status-Tabel'!$A$5:$A$128,0),MATCH(10*$S$15+$S$14,'Criteria-Status-Tabel'!$A$5:$K$5,0))=\"relevant\",INDEX('Criteria-Status-Tabel'!$A$5:$K$128,MATCH(\"1-\"&'Invulscherm 1 - Weging'!$A94,'Criteria-Status-Tabel'!$A$5:$A$128,0),MATCH(10*$S$15+$S$14,'Criteria-Status-Tabel'!$A$5:$K$5,0))=\"verplicht\")=TRUE,2,IF(INDEX('Criteria-Status-Tabel'!$A$5:$K$128,MATCH(\"1-\"&'Invulscherm 1 - Weging'!$A94,'Criteria-Status-Tabel'!$A$5:$A$128,0),MATCH(10*$S$15+$S$14,'Criteria-Status-Tabel'!$A$5:$K$5,0))=\"extra belangrijk\",3,1)),\"1\")","v":2},{"$f":"IFERROR(IF(OR(INDEX('Criteria-Status-Tabel'!$A$5:$K$128,MATCH(\"2-\"&'Invulscherm 1 - Weging'!$A94,'Criteria-Status-Tabel'!$A$5:$A$128,0),MATCH(10*$S$15+$S$14,'Criteria-Status-Tabel'!$A$5:$K$5,0))=\"relevant\",INDEX('Criteria-Status-Tabel'!$A$5:$K$128,MATCH(\"2-\"&'Invulscherm 1 - Weging'!$A94,'Criteria-Status-Tabel'!$A$5:$A$128,0),MATCH(10*$S$15+$S$14,'Criteria-Status-Tabel'!$A$5:$K$5,0))=\"verplicht\")=TRUE,2,IF(INDEX('Criteria-Status-Tabel'!$A$5:$K$128,MATCH(\"2-\"&'Invulscherm 1 - Weging'!$A94,'Criteria-Status-Tabel'!$A$5:$A$128,0),MATCH(10*$S$15+$S$14,'Criteria-Status-Tabel'!$A$5:$K$5,0))=\"extra belangrijk\",3,1)),\"1\")","v":2},0,0,null,null,{"$f":"15/SUM($K$89:$L$103)","v":0.36585365853658536},0.36585365853658536]
["TRA3.2","Het reduceren van autogebruik",null,null,"verplicht",{"$f":"IF(K95=1,U95,IF(K95=2,U95*2,IF(K95=3,U95*3)))","v":0.73170731707317072},null,"relevant",{"$f":"IF(L95=1,V95,IF(L95=2,V95*2,IF(L95=3,V95*3)))","v":0.73170731707317072},null,{"$f":"IFERROR(IF(OR(INDEX('Criteria-Status-Tabel'!$A$5:$K$128,MATCH(\"1-\"&'Invulscherm 1 - Weging'!$A95,'Criteria-Status-Tabel'!$A$5:$A$128,0),MATCH(10*$S$15+$S$14,'Criteria-Status-Tabel'!$A$5:$K$5,0))=\"relevant\",INDEX('Criteria-Status-Tabel'!$A$5:$K$128,MATCH(\"1-\"&'Invulscherm 1 - Weging'!$A95,'Criteria-Status-Tabel'!$A$5:$A$128,0),MATCH(10*$S$15+$S$14,'Criteria-Status-Tabel'!$A$5:$K$5,0))=\"verplicht\")=TRUE,2,IF(INDEX('Criteria-Status-Tabel'!$A$5:$K$128,MATCH(\"1-\"&'Invulscherm 1 - Weging'!$A95,'Criteria-Status-Tabel'!$A$5:$A$128,0),MATCH(10*$S$15+$S$14,'Criteria-Status-Tabel'!$A$5:$K$5,0))=\"extra belangrijk\",3,1)),\"1\")","v":2},{"$f":"IFERROR(IF(OR(INDEX('Criteria-Status-Tabel'!$A$5:$K$128,MATCH(\"2-\"&'Invulscherm 1 - Weging'!$A95,'Criteria-Status-Tabel'!$A$5:$A$128,0),MATCH(10*$S$15+$S$14,'Criteria-Status-Tabel'!$A$5:$K$5,0))=\"relevant\",INDEX('Criteria-Status-Tabel'!$A$5:$K$128,MATCH(\"2-\"&'Invulscherm 1 - Weging'!$A95,'Criteria-Status-Tabel'!$A$5:$A$128,0),MATCH(10*$S$15+$S$14,'Criteria-Status-Tabel'!$A$5:$K$5,0))=\"verplicht\")=TRUE,2,IF(INDEX('Criteria-Status-Tabel'!$A$5:$K$128,MATCH(\"2-\"&'Invulscherm 1 - Weging'!$A95,'Criteria-Status-Tabel'!$A$5:$A$128,0),MATCH(10*$S$15+$S$14,'Criteria-Status-Tabel'!$A$5:$K$5,0))=\"extra belangrijk\",3,1)),\"1\")","v":2},null,null,{"$f":"IFERROR(IF(OR(INDEX('Criteria-Status-Tabel'!$A$5:$K$128,MATCH(\"1-\"&'Invulscherm 1 - Weging'!$A95,'Criteria-Status-Tabel'!$A$5:$A$128,0),MATCH(10*$S$15+$S$14,'Criteria-Status-Tabel'!$A$5:$K$5,0))=\"relevant\",INDEX('Criteria-Status-Tabel'!$A$5:$K$128,MATCH(\"1-\"&'Invulscherm 1 - Weging'!$A95,'Criteria-Status-Tabel'!$A$5:$A$128,0),MATCH(10*$S$15+$S$14,'Criteria-Status-Tabel'!$A$5:$K$5,0))=\"verplicht\")=TRUE,2,IF(INDEX('Criteria-Status-Tabel'!$A$5:$K$128,MATCH(\"1-\"&'Invulscherm 1 - Weging'!$A95,'Criteria-Status-Tabel'!$A$5:$A$128,0),MATCH(10*$S$15+$S$14,'Criteria-Status-Tabel'!$A$5:$K$5,0))=\"extra belangrijk\",3,1)),\"1\")","v":2},{"$f":"IFERROR(IF(OR(INDEX('Criteria-Status-Tabel'!$A$5:$K$128,MATCH(\"2-\"&'Invulscherm 1 - Weging'!$A95,'Criteria-Status-Tabel'!$A$5:$A$128,0),MATCH(10*$S$15+$S$14,'Criteria-Status-Tabel'!$A$5:$K$5,0))=\"relevant\",INDEX('Criteria-Status-Tabel'!$A$5:$K$128,MATCH(\"2-\"&'Invulscherm 1 - Weging'!$A95,'Criteria-Status-Tabel'!$A$5:$A$128,0),MATCH(10*$S$15+$S$14,'Criteria-Status-Tabel'!$A$5:$K$5,0))=\"verplicht\")=TRUE,2,IF(INDEX('Criteria-Status-Tabel'!$A$5:$K$128,MATCH(\"2-\"&'Invulscherm 1 - Weging'!$A95,'Criteria-Status-Tabel'!$A$5:$A$128,0),MATCH(10*$S$15+$S$14,'Criteria-Status-Tabel'!$A$5:$K$5,0))=\"extra belangrijk\",3,1)),\"1\")","v":2},0,0,null,null,0.36585365853658536,0.36585365853658536,"Als aangetoond kan worden dat het ontmoedigen van autoverkeer niet kan worden beïnvloed door het ontwerp (omdat er bijvoorbeeld geen ontwerp is)."]
["TRA3.3","Het faciliteren van auto's op alternatieve energiebronnen",null,null,"verplicht",{"$f":"IF(K96=1,U96,IF(K96=2,U96*2,IF(K96=3,U96*3)))","v":0.73170731707317072},null,"relevant",{"$f":"IF(L96=1,V96,IF(L96=2,V96*2,IF(L96=3,V96*3)))","v":0.73170731707317072},null,{"$f":"IFERROR(IF(OR(INDEX('Criteria-Status-Tabel'!$A$5:$K$128,MATCH(\"1-\"&'Invulscherm 1 - Weging'!$A96,'Criteria-Status-Tabel'!$A$5:$A$128,0),MATCH(10*$S$15+$S$14,'Criteria-Status-Tabel'!$A$5:$K$5,0))=\"relevant\",INDEX('Criteria-Status-Tabel'!$A$5:$K$128,MATCH(\"1-\"&'Invulscherm 1 - Weging'!$A96,'Criteria-Status-Tabel'!$A$5:$A$128,0),MATCH(10*$S$15+$S$14,'Criteria-Status-Tabel'!$A$5:$K$5,0))=\"verplicht\")=TRUE,2,IF(INDEX('Criteria-Status-Tabel'!$A$5:$K$128,MATCH(\"1-\"&'Invulscherm 1 - Weging'!$A96,'Criteria-Status-Tabel'!$A$5:$A$128,0),MATCH(10*$S$15+$S$14,'Criteria-Status-Tabel'!$A$5:$K$5,0))=\"extra belangrijk\",3,1)),\"1\")","v":2},{"$f":"IFERROR(IF(OR(INDEX('Criteria-Status-Tabel'!$A$5:$K$128,MATCH(\"2-\"&'Invulscherm 1 - Weging'!$A96,'Criteria-Status-Tabel'!$A$5:$A$128,0),MATCH(10*$S$15+$S$14,'Criteria-Status-Tabel'!$A$5:$K$5,0))=\"relevant\",INDEX('Criteria-Status-Tabel'!$A$5:$K$128,MATCH(\"2-\"&'Invulscherm 1 - Weging'!$A96,'Criteria-Status-Tabel'!$A$5:$A$128,0),MATCH(10*$S$15+$S$14,'Criteria-Status-Tabel'!$A$5:$K$5,0))=\"verplicht\")=TRUE,2,IF(INDEX('Criteria-Status-Tabel'!$A$5:$K$128,MATCH(\"2-\"&'Invulscherm 1 - Weging'!$A96,'Criteria-Status-Tabel'!$A$5:$A$128,0),MATCH(10*$S$15+$S$14,'Criteria-Status-Tabel'!$A$5:$K$5,0))=\"extra belangrijk\",3,1)),\"1\")","v":2},null,null,{"$f":"IFERROR(IF(OR(INDEX('Criteria-Status-Tabel'!$A$5:$K$128,MATCH(\"1-\"&'Invulscherm 1 - Weging'!$A96,'Criteria-Status-Tabel'!$A$5:$A$128,0),MATCH(10*$S$15+$S$14,'Criteria-Status-Tabel'!$A$5:$K$5,0))=\"relevant\",INDEX('Criteria-Status-Tabel'!$A$5:$K$128,MATCH(\"1-\"&'Invulscherm 1 - Weging'!$A96,'Criteria-Status-Tabel'!$A$5:$A$128,0),MATCH(10*$S$15+$S$14,'Criteria-Status-Tabel'!$A$5:$K$5,0))=\"verplicht\")=TRUE,2,IF(INDEX('Criteria-Status-Tabel'!$A$5:$K$128,MATCH(\"1-\"&'Invulscherm 1 - Weging'!$A96,'Criteria-Status-Tabel'!$A$5:$A$128,0),MATCH(10*$S$15+$S$14,'Criteria-Status-Tabel'!$A$5:$K$5,0))=\"extra belangrijk\",3,1)),\"1\")","v":2},{"$f":"IFERROR(IF(OR(INDEX('Criteria-Status-Tabel'!$A$5:$K$128,MATCH(\"2-\"&'Invulscherm 1 - Weging'!$A96,'Criteria-Status-Tabel'!$A$5:$A$128,0),MATCH(10*$S$15+$S$14,'Criteria-Status-Tabel'!$A$5:$K$5,0))=\"relevant\",INDEX('Criteria-Status-Tabel'!$A$5:$K$128,MATCH(\"2-\"&'Invulscherm 1 - Weging'!$A96,'Criteria-Status-Tabel'!$A$5:$A$128,0),MATCH(10*$S$15+$S$14,'Criteria-Status-Tabel'!$A$5:$K$5,0))=\"verplicht\")=TRUE,2,IF(INDEX('Criteria-Status-Tabel'!$A$5:$K$128,MATCH(\"2-\"&'Invulscherm 1 - Weging'!$A96,'Criteria-Status-Tabel'!$A$5:$A$128,0),MATCH(10*$S$15+$S$14,'Criteria-Status-Tabel'!$A$5:$K$5,0))=\"extra belangrijk\",3,1)),\"1\")","v":2},0,0,null,null,0.36585365853658536,0.36585365853658536]
["TRA4","Vrachtverkeer",null,null,null,null,null,null,null,null,null,null,null,null,null,null,0,0]
["TRA4.1","Inpassing en doorstroming van vrachtverkeer",null,null,{"$f":"IF(K98=1,\"minder belangrijk\",IF(K98=2,\"relevant\",IF(K98=3,\"extra belangrijk\")))","v":"extra belangrijk"},{"$f":"IF(K98=1,U98,IF(K98=2,U98*2,IF(K98=3,U98*3)))","v":1.0975609756097562},null,{"$f":"IF(L98=1,\"minder belangrijk\",IF(L98=2,\"relevant\",IF(L98=3,\"extra belangrijk\")))","v":"relevant"},{"$f":"IF(L98=1,V98,IF(L98=2,V98*2,IF(L98=3,V98*3)))","v":0.73170731707317072},null,{"$f":"IFERROR(IF(OR(INDEX('Criteria-Status-Tabel'!$A$5:$K$128,MATCH(\"1-\"&'Invulscherm 1 - Weging'!$A98,'Criteria-Status-Tabel'!$A$5:$A$128,0),MATCH(10*$S$15+$S$14,'Criteria-Status-Tabel'!$A$5:$K$5,0))=\"relevant\",INDEX('Criteria-Status-Tabel'!$A$5:$K$128,MATCH(\"1-\"&'Invulscherm 1 - Weging'!$A98,'Criteria-Status-Tabel'!$A$5:$A$128,0),MATCH(10*$S$15+$S$14,'Criteria-Status-Tabel'!$A$5:$K$5,0))=\"verplicht\")=TRUE,2,IF(INDEX('Criteria-Status-Tabel'!$A$5:$K$128,MATCH(\"1-\"&'Invulscherm 1 - Weging'!$A98,'Criteria-Status-Tabel'!$A$5:$A$128,0),MATCH(10*$S$15+$S$14,'Criteria-Status-Tabel'!$A$5:$K$5,0))=\"extra belangrijk\",3,1)),\"1\")","v":3},{"$f":"IFERROR(IF(OR(INDEX('Criteria-Status-Tabel'!$A$5:$K$128,MATCH(\"2-\"&'Invulscherm 1 - Weging'!$A98,'Criteria-Status-Tabel'!$A$5:$A$128,0),MATCH(10*$S$15+$S$14,'Criteria-Status-Tabel'!$A$5:$K$5,0))=\"relevant\",INDEX('Criteria-Status-Tabel'!$A$5:$K$128,MATCH(\"2-\"&'Invulscherm 1 - Weging'!$A98,'Criteria-Status-Tabel'!$A$5:$A$128,0),MATCH(10*$S$15+$S$14,'Criteria-Status-Tabel'!$A$5:$K$5,0))=\"verplicht\")=TRUE,2,IF(INDEX('Criteria-Status-Tabel'!$A$5:$K$128,MATCH(\"2-\"&'Invulscherm 1 - Weging'!$A98,'Criteria-Status-Tabel'!$A$5:$A$128,0),MATCH(10*$S$15+$S$14,'Criteria-Status-Tabel'!$A$5:$K$5,0))=\"extra belangrijk\",3,1)),\"1\")","v":2},null,null,{"$f":"IFERROR(IF(OR(INDEX('Criteria-Status-Tabel'!$A$5:$K$128,MATCH(\"1-\"&'Invulscherm 1 - Weging'!$A98,'Criteria-Status-Tabel'!$A$5:$A$128,0),MATCH(10*$S$15+$S$14,'Criteria-Status-Tabel'!$A$5:$K$5,0))=\"relevant\",INDEX('Criteria-Status-Tabel'!$A$5:$K$128,MATCH(\"1-\"&'Invulscherm 1 - Weging'!$A98,'Criteria-Status-Tabel'!$A$5:$A$128,0),MATCH(10*$S$15+$S$14,'Criteria-Status-Tabel'!$A$5:$K$5,0))=\"verplicht\")=TRUE,2,IF(INDEX('Criteria-Status-Tabel'!$A$5:$K$128,MATCH(\"1-\"&'Invulscherm 1 - Weging'!$A98,'Criteria-Status-Tabel'!$A$5:$A$128,0),MATCH(10*$S$15+$S$14,'Criteria-Status-Tabel'!$A$5:$K$5,0))=\"extra belangrijk\",3,1)),\"1\")","v":3},{"$f":"IFERROR(IF(OR(INDEX('Criteria-Status-Tabel'!$A$5:$K$128,MATCH(\"2-\"&'Invulscherm 1 - Weging'!$A98,'Criteria-Status-Tabel'!$A$5:$A$128,0),MATCH(10*$S$15+$S$14,'Criteria-Status-Tabel'!$A$5:$K$5,0))=\"relevant\",INDEX('Criteria-Status-Tabel'!$A$5:$K$128,MATCH(\"2-\"&'Invulscherm 1 - Weging'!$A98,'Criteria-Status-Tabel'!$A$5:$A$128,0),MATCH(10*$S$15+$S$14,'Criteria-Status-Tabel'!$A$5:$K$5,0))=\"verplicht\")=TRUE,2,IF(INDEX('Criteria-Status-Tabel'!$A$5:$K$128,MATCH(\"2-\"&'Invulscherm 1 - Weging'!$A98,'Criteria-Status-Tabel'!$A$5:$A$128,0),MATCH(10*$S$15+$S$14,'Criteria-Status-Tabel'!$A$5:$K$5,0))=\"extra belangrijk\",3,1)),\"1\")","v":2},0,0,null,null,{"$f":"15/SUM($K$89:$L$103)","v":0.36585365853658536},{"$f":"15/SUM($K$89:$L$103)","v":0.36585365853658536}]
["TRA4.2","Maatregelen voor het minimaliseren van hinder door vrachtverkeer",null,null,"extra belangrijk",{"$f":"IF(K99=1,U99,IF(K99=2,U99*2,IF(K99=3,U99*3)))","v":1.0975609756097562},null,"relevant",{"$f":"IF(L99=1,V99,IF(L99=2,V99*2,IF(L99=3,V99*3)))","v":0.73170731707317072},null,{"$f":"IFERROR(IF(OR(INDEX('Criteria-Status-Tabel'!$A$5:$K$128,MATCH(\"1-\"&'Invulscherm 1 - Weging'!$A99,'Criteria-Status-Tabel'!$A$5:$A$128,0),MATCH(10*$S$15+$S$14,'Criteria-Status-Tabel'!$A$5:$K$5,0))=\"relevant\",INDEX('Criteria-Status-Tabel'!$A$5:$K$128,MATCH(\"1-\"&'Invulscherm 1 - Weging'!$A99,'Criteria-Status-Tabel'!$A$5:$A$128,0),MATCH(10*$S$15+$S$14,'Criteria-Status-Tabel'!$A$5:$K$5,0))=\"verplicht\")=TRUE,2,IF(INDEX('Criteria-Status-Tabel'!$A$5:$K$128,MATCH(\"1-\"&'Invulscherm 1 - Weging'!$A99,'Criteria-Status-Tabel'!$A$5:$A$128,0),MATCH(10*$S$15+$S$14,'Criteria-Status-Tabel'!$A$5:$K$5,0))=\"extra belangrijk\",3,1)),\"1\")","v":3},{"$f":"IFERROR(IF(OR(INDEX('Criteria-Status-Tabel'!$A$5:$K$128,MATCH(\"2-\"&'Invulscherm 1 - Weging'!$A99,'Criteria-Status-Tabel'!$A$5:$A$128,0),MATCH(10*$S$15+$S$14,'Criteria-Status-Tabel'!$A$5:$K$5,0))=\"relevant\",INDEX('Criteria-Status-Tabel'!$A$5:$K$128,MATCH(\"2-\"&'Invulscherm 1 - Weging'!$A99,'Criteria-Status-Tabel'!$A$5:$A$128,0),MATCH(10*$S$15+$S$14,'Criteria-Status-Tabel'!$A$5:$K$5,0))=\"verplicht\")=TRUE,2,IF(INDEX('Criteria-Status-Tabel'!$A$5:$K$128,MATCH(\"2-\"&'Invulscherm 1 - Weging'!$A99,'Criteria-Status-Tabel'!$A$5:$A$128,0),MATCH(10*$S$15+$S$14,'Criteria-Status-Tabel'!$A$5:$K$5,0))=\"extra belangrijk\",3,1)),\"1\")","v":2},null,null,{"$f":"IFERROR(IF(OR(INDEX('Criteria-Status-Tabel'!$A$5:$K$128,MATCH(\"1-\"&'Invulscherm 1 - Weging'!$A99,'Criteria-Status-Tabel'!$A$5:$A$128,0),MATCH(10*$S$15+$S$14,'Criteria-Status-Tabel'!$A$5:$K$5,0))=\"relevant\",INDEX('Criteria-Status-Tabel'!$A$5:$K$128,MATCH(\"1-\"&'Invulscherm 1 - Weging'!$A99,'Criteria-Status-Tabel'!$A$5:$A$128,0),MATCH(10*$S$15+$S$14,'Criteria-Status-Tabel'!$A$5:$K$5,0))=\"verplicht\")=TRUE,2,IF(INDEX('Criteria-Status-Tabel'!$A$5:$K$128,MATCH(\"1-\"&'Invulscherm 1 - Weging'!$A99,'Criteria-Status-Tabel'!$A$5:$A$128,0),MATCH(10*$S$15+$S$14,'Criteria-Status-Tabel'!$A$5:$K$5,0))=\"extra belangrijk\",3,1)),\"1\")","v":3},{"$f":"IFERROR(IF(OR(INDEX('Criteria-Status-Tabel'!$A$5:$K$128,MATCH(\"2-\"&'Invulscherm 1 - Weging'!$A99,'Criteria-Status-Tabel'!$A$5:$A$128,0),MATCH(10*$S$15+$S$14,'Criteria-Status-Tabel'!$A$5:$K$5,0))=\"relevant\",INDEX('Criteria-Status-Tabel'!$A$5:$K$128,MATCH(\"2-\"&'Invulscherm 1 - Weging'!$A99,'Criteria-Status-Tabel'!$A$5:$A$128,0),MATCH(10*$S$15+$S$14,'Criteria-Status-Tabel'!$A$5:$K$5,0))=\"verplicht\")=TRUE,2,IF(INDEX('Criteria-Status-Tabel'!$A$5:$K$128,MATCH(\"2-\"&'Invulscherm 1 - Weging'!$A99,'Criteria-Status-Tabel'!$A$5:$A$128,0),MATCH(10*$S$15+$S$14,'Criteria-Status-Tabel'!$A$5:$K$5,0))=\"extra belangrijk\",3,1)),\"1\")","v":2},0,0,null,null,0.36585365853658536,0.36585365853658536]
["TRA4.3","Onderzoeken van alternatieven voor vrachtverkeer",null,null,"extra belangrijk",{"$f":"IF(K100=1,U100,IF(K100=2,U100*2,IF(K100=3,U100*3)))","v":1.0975609756097562},null,null,null,null,{"$f":"IFERROR(IF(OR(INDEX('Criteria-Status-Tabel'!$A$5:$K$128,MATCH(\"1-\"&'Invulscherm 1 - Weging'!$A100,'Criteria-Status-Tabel'!$A$5:$A$128,0),MATCH(10*$S$15+$S$14,'Criteria-Status-Tabel'!$A$5:$K$5,0))=\"relevant\",INDEX('Criteria-Status-Tabel'!$A$5:$K$128,MATCH(\"1-\"&'Invulscherm 1 - Weging'!$A100,'Criteria-Status-Tabel'!$A$5:$A$128,0),MATCH(10*$S$15+$S$14,'Criteria-Status-Tabel'!$A$5:$K$5,0))=\"verplicht\")=TRUE,2,IF(INDEX('Criteria-Status-Tabel'!$A$5:$K$128,MATCH(\"1-\"&'Invulscherm 1 - Weging'!$A100,'Criteria-Status-Tabel'!$A$5:$A$128,0),MATCH(10*$S$15+$S$14,'Criteria-Status-Tabel'!$A$5:$K$5,0))=\"extra belangrijk\",3,1)),\"1\")","v":3},null,null,null,{"$f":"IFERROR(IF(OR(INDEX('Criteria-Status-Tabel'!$A$5:$K$128,MATCH(\"1-\"&'Invulscherm 1 - Weging'!$A100,'Criteria-Status-Tabel'!$A$5:$A$128,0),MATCH(10*$S$15+$S$14,'Criteria-Status-Tabel'!$A$5:$K$5,0))=\"relevant\",INDEX('Criteria-Status-Tabel'!$A$5:$K$128,MATCH(\"1-\"&'Invulscherm 1 - Weging'!$A100,'Criteria-Status-Tabel'!$A$5:$A$128,0),MATCH(10*$S$15+$S$14,'Criteria-Status-Tabel'!$A$5:$K$5,0))=\"verplicht\")=TRUE,2,IF(INDEX('Criteria-Status-Tabel'!$A$5:$K$128,MATCH(\"1-\"&'Invulscherm 1 - Weging'!$A100,'Criteria-Status-Tabel'!$A$5:$A$128,0),MATCH(10*$S$15+$S$14,'Criteria-Status-Tabel'!$A$5:$K$5,0))=\"extra belangrijk\",3,1)),\"1\")","v":3},null,0,0,null,null,0.36585365853658536,null,"2e - Alleen uit bij 'bestaande terreinen'"]
["TRA5","Integratie van transport",null,null,null,null,null,null,null,null,null,null,null,null,null,null,0,0]
["TRA5.1","Integratie van verkeerstromen / Modal Shift",null,null,{"$f":"IF(K102=2,\"verplicht\",\"extra belangrijk\")","v":"verplicht"},{"$f":"IF(K102=1,U102,IF(K102=2,U102*2,IF(K102=3,U102*3)))","v":0.73170731707317072},null,null,null,null,{"$f":"IFERROR(IF(OR(INDEX('Criteria-Status-Tabel'!$A$5:$K$128,MATCH(\"1-\"&'Invulscherm 1 - Weging'!$A102,'Criteria-Status-Tabel'!$A$5:$A$128,0),MATCH(10*$S$15+$S$14,'Criteria-Status-Tabel'!$A$5:$K$5,0))=\"relevant\",INDEX('Criteria-Status-Tabel'!$A$5:$K$128,MATCH(\"1-\"&'Invulscherm 1 - Weging'!$A102,'Criteria-Status-Tabel'!$A$5:$A$128,0),MATCH(10*$S$15+$S$14,'Criteria-Status-Tabel'!$A$5:$K$5,0))=\"verplicht\")=TRUE,2,IF(INDEX('Criteria-Status-Tabel'!$A$5:$K$128,MATCH(\"1-\"&'Invulscherm 1 - Weging'!$A102,'Criteria-Status-Tabel'!$A$5:$A$128,0),MATCH(10*$S$15+$S$14,'Criteria-Status-Tabel'!$A$5:$K$5,0))=\"extra belangrijk\",3,1)),\"1\")","v":2},null,null,null,{"$f":"IFERROR(IF(OR(INDEX('Criteria-Status-Tabel'!$A$5:$K$128,MATCH(\"1-\"&'Invulscherm 1 - Weging'!$A102,'Criteria-Status-Tabel'!$A$5:$A$128,0),MATCH(10*$S$15+$S$14,'Criteria-Status-Tabel'!$A$5:$K$5,0))=\"relevant\",INDEX('Criteria-Status-Tabel'!$A$5:$K$128,MATCH(\"1-\"&'Invulscherm 1 - Weging'!$A102,'Criteria-Status-Tabel'!$A$5:$A$128,0),MATCH(10*$S$15+$S$14,'Criteria-Status-Tabel'!$A$5:$K$5,0))=\"verplicht\")=TRUE,2,IF(INDEX('Criteria-Status-Tabel'!$A$5:$K$128,MATCH(\"1-\"&'Invulscherm 1 - Weging'!$A102,'Criteria-Status-Tabel'!$A$5:$A$128,0),MATCH(10*$S$15+$S$14,'Criteria-Status-Tabel'!$A$5:$K$5,0))=\"extra belangrijk\",3,1)),\"1\")","v":2},null,0,0,null,null,{"$f":"15/SUM($K$89:$L$103)","v":0.36585365853658536}]
["TRA5.2","Aansluiting infrastructuur op de omgeving",null,null,null,null,null,{"$f":"IF(L103=1,\"minder belangrijk\",IF(L103=2,\"relevant\",IF(L103=3,\"extra belangrijk\")))","v":"relevant"},{"$f":"IF(L103=1,V103,IF(L103=2,V103*2,IF(L103=3,V103*3)))","v":0.73170731707317072},null,null,{"$f":"IFERROR(IF(OR(INDEX('Criteria-Status-Tabel'!$A$5:$K$128,MATCH(\"2-\"&'Invulscherm 1 - Weging'!$A103,'Criteria-Status-Tabel'!$A$5:$A$128,0),MATCH(10*$S$15+$S$14,'Criteria-Status-Tabel'!$A$5:$K$5,0))=\"relevant\",INDEX('Criteria-Status-Tabel'!$A$5:$K$128,MATCH(\"2-\"&'Invulscherm 1 - Weging'!$A103,'Criteria-Status-Tabel'!$A$5:$A$128,0),MATCH(10*$S$15+$S$14,'Criteria-Status-Tabel'!$A$5:$K$5,0))=\"verplicht\")=TRUE,2,IF(INDEX('Criteria-Status-Tabel'!$A$5:$K$128,MATCH(\"2-\"&'Invulscherm 1 - Weging'!$A103,'Criteria-Status-Tabel'!$A$5:$A$128,0),MATCH(10*$S$15+$S$14,'Criteria-Status-Tabel'!$A$5:$K$5,0))=\"extra belangrijk\",3,1)),\"1\")","v":2},null,null,null,{"$f":"IFERROR(IF(OR(INDEX('Criteria-Status-Tabel'!$A$5:$K$128,MATCH(\"2-\"&'Invulscherm 1 - Weging'!$A103,'Criteria-Status-Tabel'!$A$5:$A$128,0),MATCH(10*$S$15+$S$14,'Criteria-Status-Tabel'!$A$5:$K$5,0))=\"relevant\",INDEX('Criteria-Status-Tabel'!$A$5:$K$128,MATCH(\"2-\"&'Invulscherm 1 - Weging'!$A103,'Criteria-Status-Tabel'!$A$5:$A$128,0),MATCH(10*$S$15+$S$14,'Criteria-Status-Tabel'!$A$5:$K$5,0))=\"verplicht\")=TRUE,2,IF(INDEX('Criteria-Status-Tabel'!$A$5:$K$128,MATCH(\"2-\"&'Invulscherm 1 - Weging'!$A103,'Criteria-Status-Tabel'!$A$5:$A$128,0),MATCH(10*$S$15+$S$14,'Criteria-Status-Tabel'!$A$5:$K$5,0))=\"extra belangrijk\",3,1)),\"1\")","v":2},0,0,null,null,null,{"$f":"15/SUM($K$89:$L$103)","v":0.36585365853658536}]
["TOTAAL BESCHIKBARE SCORE",null,null,null,null,null,null,null,null,{"$f":"SUM(J86,J69,J58,J45,J30,J6)","v":100}]
[]
[]
[]
[]
[]
[null,null,"In het (verplichte) basispakket is nu opgenomen:"]
[]
[null,null,"1. Centraal contactpersoon met overheden en toeleveranciers."]
[null,null,"2. Verrichten van de administratie."]
[null,null,"3. Beheer en onderhoud openbare ruimte."]
[null,null,"4. Bewegwijzeringsysteem in het openbare gebied.."]
[null,null,"5. Collectieve beveiliging, toegangscontrole en onderhoud hekwerken rond terrein."]
[null,null,"6. Keurmerk Veilig Ondernemen Bedrijventerrein (KVO-B)."]
[null,null,"7. Camerabeveiliging. Preventieve surveillance en alarmopvolging als de ondernemers dat wensen."]
[]
[null,null,"Het basis pakket kan in de toekomst eventueel worden uitgebreid met:"]
[]
[null,null,"Gezamenlijk inkoop afval, energie, onderzoek en advies"]
[null,null,"Centraal overleg met de nutsbedrijven, gemeente en andere overheden"]
[null,null,"Energie inkoop (Warmte Koude Opslag/ WKO)"]
[null,null,"Arbodienstverlening, verzekeringen, werving en secretariële diensten"]

{"sheet":"Invulscherm 1b","index":2,"n_rows":40,"n_cols":12,"rows_kept":40,"cut":false,"hidden":false,"merged":[[11,2,12,8],[17,2,18,10],[37,4,37,19],[38,4,38,19],[39,4,39,19],[13,4,13,19],[14,4,14,19],[15,4,15,19],[17,11,18,19],[11,11,12,19],[35,20,36,20],[19,4,19,19],[25,4,25,19],[26,4,26,19],[27,4,27,19],[31,4,31,19],[32,4,32,19],[33,4,33,19],[20,4,20,19],[21,4,21,19],[23,2,24,10],[29,2,30,10],[35,2,36,10],[35,11,36,19],[29,11,30,19],[23,11,24,19],[1,2,1,19],[3,2,3,16383],[7,4,7,19],[8,4,8,19],[9,4,9,19],[2,2,2,10],[2,18,2,20],[5,20,6,20],[5,2,6,6],[5,11,6,19]]}
[]
[null,null,"Toelichting op wijzigingen 'Invulscherm 1'"]
[]
[null,null,"Per thema kunnen maximaal 3 wijzigingen doorgevoerd worden. Indien in het 'invulblad 1' wijzigingen zijn aangebracht dan is het verplicht om hieronde een toelichting te geven. Wijzigingen (inclusief toelichting) worden afgekeurd bij certificering, als deze niet bijdragen aan het verduurzamen van de economische site / bedrijventerrein. "]
[]
[null,null,"1. MAN - MANAGEMENT",null,null,null,null,null,null,null,null,{"$f":"'Invulscherm 1 - Weging'!D6","v":"U heeft nog geen wijzigingen in dit thema doorgevoerd"}]
[]
[null,null,"Wijziging 1:",null,"(invullen…)"]
[null,null,"Wijziging 2:",null,"(invullen…)"]
[null,null,"Wijziging 3:",null,"(invullen…)"]
[]
[null,null,"2. SEW - SOCIAAL & ECONOMISCH WELZIJN",null,null,null,null,null,null,null,null,{"$f":"'Invulscherm 1 - Weging'!D30","v":"U heeft nog geen wijzigingen in dit thema doorgevoerd"}]
[]
[null,null,"Wijziging 1:",null,"(invullen…)"]
[null,null,"Wijziging 2:",null,"(invullen…)"]
[null,null,"Wijziging 3:",null,"(invullen…)"]
[]
[null,null,"3. IOR - INFRASTRUCTUUR & OPENBARE RUIMTE",null,null,null,null,null,null,null,null,{"$f":"'Invulscherm 1 - Weging'!D45","v":"U heeft nog geen wijzigingen in dit thema doorgevoerd"}]
[]
[null,null,"Wijziging 1:",null,"(invullen…)"]
[null,null,"Wijziging 2:",null,"(invullen…)"]
[null,null,"Wijziging 3:",null,"(invullen…)"]
[]
[null,null,"4. BRE - BRONNEN & ENERGIE",null,null,null,null,null,null,null,null,{"$f":"'Invulscherm 1 - Weging'!D58","v":"U heeft nog geen wijzigingen in dit thema doorgevoerd"}]
[]
[null,null,"Wijziging 1:",null,"(invullen…)"]
[null,null,"Wijziging 2:",null,"(invullen…)"]
[null,null,"Wijziging 3:",null,"(invullen…)"]
[]
[null,null,"5. EDL - ECOLOGIE & DUURZAAM LANDGEBRUIK",null,null,null,null,null,null,null,null,{"$f":"'Invulscherm 1 - Weging'!D69","v":"U heeft nog geen wijzigingen in dit thema doorgevoerd"}]
[]
[null,null,"Wijziging 1:",null,"(invullen…)"]
[null,null,"Wijziging 2:",null,"(invullen…)"]
[null,null,"Wijziging 3:",null,"(invullen…)"]
[]
[null,null,"6. TRA - TRANSPORT",null,null,null,null,null,null,null,null,{"$f":"'Invulscherm 1 - Weging'!D86","v":"U heeft nog geen wijzigingen in dit thema doorgevoerd"}]
[]
[null,null,"Wijziging 1:",null,"(invullen…)"]
[null,null,"Wijziging 2:",null,"(invullen…)"]
[null,null,"Wijziging 3:",null,"(invullen…)"]

{"sheet":"Invulscherm 2 - Scores","index":3,"n_rows":142,"n_cols":15,"rows_kept":142,"cut":false,"hidden":false,"merged":[[16,2,17,2],[70,2,71,2],[95,2,96,2],[95,1,96,1],[90,1,91,2],[80,1,81,2],[76,1,77,1],[76,2,77,2],[55,2,56,2],[48,2,49,2],[48,1,49,1],[50,2,51,2],[50,1,51,1],[64,1,65,1],[64,2,65,2],[66,1,67,1],[1,3,1,9],[40,1,41,1],[44,1,45,2],[68,2,69,2],[68,1,69,1],[10,2,11,2],[10,1,11,1],[1,0,1,2],[40,2,41,2],[13,1,14,1],[18,2,19,2],[18,1,19,1],[13,2,14,2],[53,1,54,1],[53,2,54,2],[55,1,56,1],[66,2,67,2],[99,1,100,1],[99,2,100,2],[83,1,84,1],[93,2,94,2],[93,1,94,1],[85,2,86,2],[85,1,86,1],[83,2,84,2],[87,1,88,1],[87,2,88,2],[73,1,74,2],[70,1,71,1],[116,2,117,2],[119,2,120,2],[121,2,122,2],[104,2,105,2],[106,2,107,2],[109,2,110,2],[112,2,113,2],[114,2,115,2]]}
[]
[null,null,null,null,null,null,null,null,null,null,"TOTAAL SCORE (%)"]
[null,null,null,"Status","criterium","TIP","weging","Aandacht aan besteed?","Check door een project medewerker","Categorie score"]
["MAN","1. MANAGEMENT (20%)",null,null,null,null,null,null,null,{"$f":"SUM(J6:J30)","v":0},{"$f":"J4","v":0}]
["MAN1","Markt"]
["1-MAN1.1",null,"Marktanalyse (marktvraag & welke eisen stelt markt aan de locatie)",{"$f":"'Invulscherm 1 - Weging'!E9","v":"extra belangrijk"},"1 - Er is een branche-analyse & marktanalyse uitgevoerd.\n2 - Deze marktanalyse is doorvertaald naar een marktstrategie/businessplan. Daarbij vindt er een concretisering van de financiële-, economische-, organisatorische- en juridische aspecten plaats in een strategisch businessplan.\n3 - Het type bedrijventerrein sluit aantoonbaar aan bij de marktvraag.","- Branche-analyse en marktanalyse (kan in één document).\n- Businessplan\n- Onderbouwing die aantoont dat de keuze voor het type bedrijventerrein aansluit bij de marktvraag (max 1x A4)",{"$f":"'Invulscherm 1 - Weging'!F9","v":1.2000000000000002},null,null,{"$f":"IF(O6=1,G6,0)","v":0},{"$f":"J6","v":0},0,0,{"$f":"IF(R6=1,J6,0)","v":0},0]
["1-MAN1.2",null,"Effect marktanalyse op ruimtelijk ontwerp",{"$f":"'Invulscherm 1 - Weging'!E10","v":"extra belangrijk"},"1 - Een impactstudie van de ten uitvoer gebrachte marktstrategie met betrekking tot het ontwerpproces.\n2 - Een impactstudie van de ten uitvoer gebrachte marktstrategie met betrekking tot de projectlocatie.","- impactstudie\n\n- impactstudie (aanvulling op criterium 1) \n",{"$f":"'Invulscherm 1 - Weging'!F10","v":1.2000000000000002},null,null,{"$f":"IF(O7=1,G7,0)","v":0},{"$f":"J7","v":0},0,0,{"$f":"IF(R7=1,J7,0)","v":0},0]
["1-MAN1.3",null,"Maatschappelijk kosten baten (MKBA)",{"$f":"'Invulscherm 1 - Weging'!E11","v":"extra belangrijk"},"1. Er is een inschatting van de kosten-baten gemaakt.\n2. De kosten-baten analyse is aantoonbaar doorvertaald in de voorbereidingsfase.","- Kosten-baten inschatting of berekening. \n- Onderbouwing die aantoont dat de kosten-baten analyse ook daadwerkelijk is verwerkt in de voorbereidingsfase (max 1x A4)",{"$f":"'Invulscherm 1 - Weging'!F11","v":1.2000000000000002},null,null,0,{"$f":"J8","v":0},0,0,0,0]
["2-MAN1.4",null,"Maatschappelijk Verantwoord Ondernemen (MVO)",{"$f":"'Invulscherm 1 - Weging'!H12","v":"relevant"},"1 - Bij het aantrekken van bedrijven worden partijen met een transparant en gecommuniceerd maatschappelijk programma (MVO) in lijn met de waarden van de ontwikkeling gestimuleerd.","- Er is een MVO-profiel opgesteld waar bedrijven aan moeten voldoen voor vestiging op het terrein. Dit profiel is opgesteld op basis van de richtlijnen als gepresenteerd door MVO Vlaanderen. ",{"$f":"'Invulscherm 1 - Weging'!I12","v":0.8},null,null,0,{"$f":"J9","v":0},0,0,0,0]
["MAN2","Proces",null,null,null,null,null,null,null,null,{"$f":"J10","v":0},0,0,null,0]
["1-MAN2.1",null,"Procesaanpak",{"$f":"'Invulscherm 1 - Weging'!E14","v":"verplicht"},"1 - Het projectteam, inclusief de belangrijkste stakeholders (zie MAN3.1), worden aantoonbaar betrokken bij: projectdefinitie & doel, duurzaamheidsambitie, opmaken klantwensen proces (zie MAN3.2) en projectbeheersingsinstrumenten en afspraken.\n2 - Verantwoordelijkheden zijn aantoonbaar afgestemd en gecommuniceerd.\n3 - Naast het definiëren van een participatiemodel (zie MAN3.1 & MAN4.1), is ook het effectief overleg met overheden en nutmaatschappijen en andere belanghebbenden belangrijk.","- Bewijsmateriaal in de vorm van Notulen of verslagen.",{"$f":"'Invulscherm 1 - Weging'!F14","v":0.8},null,null,0,{"$f":"J11","v":0},0,0,0,0]
["2-MAN2.1",null,null,{"$f":"'Invulscherm 1 - Weging'!H14","v":"relevant"},"4 - Bij de faseovergang naar gebruik gaat vaak veel informatie verloren. Er is voor de faseovergang van Realisatie naar Beheer & Gebruik een vorm van beheer ingericht waarin relevante kennisoverdracht is geborgd.","- Beheerplan",{"$f":"'Invulscherm 1 - Weging'!I14","v":0.8},null,null,0,{"$f":"J12","v":0},0,0,0,0]
["1-MAN2.2",null,{"$f":"'Invulscherm 1 - Weging'!C15","v":"Uitgifteproces"},{"$f":"'Invulscherm 1 - Weging'!E15","v":"relevant"},"1 - Er wordt een uitgifteplan opgesteld wat voldoet aan de in het handboek beschreven eisen. ","- Uitgifteplan, met een aantoonbare ambitie op het gebied van duurzaamheid. ",{"$f":"'Invulscherm 1 - Weging'!F15","v":0.8},null,null,0,{"$f":"J13","v":0},0,0,0,0]
["1-MAN2.3",null,"Gebiedsvisie & duurzaamheidsambitie",{"$f":"'Invulscherm 1 - Weging'!E16","v":"verplicht"},"1 - Er is integraal, met projectmedewerkers en belangrijkste stakeholders, een gebiedsvisie opgesteld gericht op een gebiedsontwikkeling waarin de aanwezige kwaliteiten, bedreigingen, sterkten en zwaktes aan bod komen.\n2 - Er is integraal, met projectmedewerkers en belangrijkste stakeholders, een duurzaamheidsambitie opgesteld waarbij de belangrijkste thema's zichtbaar en communiceerbaar zijn gemaakt.\n3 - De verantwoordelijkheid voor het realiseren van de duurzaamheidsambitie is geborgd (in het projectteam).","- Gebiedsvisie, met bewijsvoering van totstandkoming proces in vorm van notulen en verslagen.\n\n- Duurzaamheidsambitie, met bewijsvoering van totstandkoming proces in vorm van notulen en verslagen.\n\n- Aantoonbare borging van rolverdeling (max 1x A4).",{"$f":"'Invulscherm 1 - Weging'!F16","v":0.8},null,null,0,{"$f":"J14","v":0},0,0,0,0]
["2-MAN2.3",null,null,{"$f":"'Invulscherm 1 - Weging'!H16","v":"verplicht"},"4 - Er vindt regelmatig controle plaats of de gestelde duurzaamheidsambitie voldoende is gebord in het ontwerp.","- Bewijsvoering van cyclische borging duurzaamheidsambitie, in vorm van notulen en verslagen.",{"$f":"'Invulscherm 1 - Weging'!I16","v":0.8},null,null,0,{"$f":"J15","v":0},0,0,0,0]
["MAN3","Draagvlak / Stakeholder management",null,null,null,null,null,null,null,0,{"$f":"J16","v":0},0,0,null,0]
["1-MAN3.1",null,{"$f":"'Invulscherm 1 - Weging'!C18","v":"Stakeholder analyse + herziening ontwerp"},{"$f":"'Invulscherm 1 - Weging'!E18","v":"verplicht"},"1- Er is een stakeholderanalyse, in samenspraak met het projectteam, uitgevoerd.\n2 - Per relevante stakeholder zijn de aan de gebiedsontwikkeling gerelateerde behoeften in kaart zijn gebracht en is aangegeven waar deze gekoppeld zijn aan andere stakeholders die daar een financiële relatie mee hebben.\n3 -  De stakeholderanalyse wordt regelmatig geëvalueerd en geüpdate.","- Stakeholderanalyse\n\n\n\n- Notulen en/of verslaglegging",{"$f":"'Invulscherm 1 - Weging'!F18","v":0.8},null,null,0,{"$f":"J17","v":0},0,0,0,0]
["2-MAN3.1",null,null,{"$f":"'Invulscherm 1 - Weging'!H18","v":"relevant"},"4 - Indien de stakeholderanalyse wordt geüpdate (zie MAN3.1) dan kan worden aangetoond wat de effecten daarvan zijn op het ontwerp.","- Update van stakeholderanalyse",{"$f":"'Invulscherm 1 - Weging'!I18","v":0.8},null,null,{"$f":"IF(O18=1,G18,0)","v":0},0,0,0,{"$f":"IF(R18=1,J18,0)","v":0},0]
["1-MAN3.2",null,"Klantwensen en garanderen van betrokkenheid",{"$f":"'Invulscherm 1 - Weging'!E19","v":"verplicht"},"1 - In een vroeg stadium worden de klantwensen van alle stakeholders verzameld en opgenomen in een klantwensen document.","- Klantwensendocument (in verschillende regio’s kan dit document een andere naam hebben).",{"$f":"'Invulscherm 1 - Weging'!F19","v":0.8},null,null,0,{"$f":"J19","v":0},0,0,0,0]
["2-MAN3.2",null,null,{"$f":"'Invulscherm 1 - Weging'!H19","v":"verplicht"},"2 - Bij aanvang van de ontwerpfase wordt het klantwensendocument opnieuw gereviewd en aangepast waar nodig (zie 1-MAN3.2). Eventuele wijzigingen worden duidelijk gecommuniceerd.","- Verslaglegging van review.",{"$f":"'Invulscherm 1 - Weging'!I19","v":0.8},null,null,0,{"$f":"J20","v":0},0,0,0,0]
["MAN4","Parkmanagement ",null,null,null,null,null,null,null,0,{"$f":"J21","v":0},0,0,null,0]
["1-MAN4.1",null,"Collectieve financiering",{"$f":"'Invulscherm 1 - Weging'!E21","v":"relevant"},"1 - Er is een bestendige samenwerkings- en financieringsconstructie opgesteld ter ondersteuning van de duurzame realisatie van de gebiedsontwikkeling.","- Contract, eventueel aanvullende verslaglegging.",{"$f":"'Invulscherm 1 - Weging'!F21","v":0.8},null,null,0,{"$f":"J22","v":0},0,0,0,0]
["2-MAN4.2",null,"Collectieve energie inkoop",{"$f":"'Invulscherm 1 - Weging'!H22","v":"extra belangrijk"},"1 - Er wordt bestudeerd wat de mogelijkheden en voordelen van collectieve energie-inkoop zijn. Tevens wordt bestudeerd hoe de financiering en organisatie van eventuele collectieve energie opwekking eruit zou kunnen zien.\n2 - Er wordt daadwerkelijk gezamenlijk energie ingekocht.","- Verslaglegging en/of rapportage. Daarin staan beschreven de mogelijkheden en organisatie van collectieve inkoop, en eventueel de organisatie van collectieve opwekking.\n- Energieoverzicht dat aantoont dat, omgerekend per gevestigd bedrijf, minimaal 5% van de energie gezamenlijk wordt ingekocht.",{"$f":"'Invulscherm 1 - Weging'!I22","v":1.2000000000000002},null,null,0,{"$f":"J23","v":0},0,0,0,0]
["1-MAN4.3",null,"Collectief afvalmanagement",{"$f":"'Invulscherm 1 - Weging'!E23","v":"verplicht"},"1 - Er wordt bestudeerd wat de mogelijkheden en voordelen van collectieve afvalmanagement zijn.\n2 - Er wordt tevens bekeken of er een ‘onafhankelijke tussenpersoon’ moet worden aangesteld, om er voor te zorgen dat bedrijven met gevoelige informatie over afval, toch kunnen participeren.\n3 - Indien bij criterium 2 is vastgesteld dat een ‘onafhankelijke tussenpersoon’ wenselijk is, dan is deze ook daadwerkelijk aangesteld.\n4 - Er is een systeem ontworpen/ontwikkeld waarbij daadwerkelijk collectief afval wordt ingezameld.","- Studie/rapport of verslaglegging.\n\n- Contract of verslaglegging.\n\n- Systeemontwerp. Deze bevat minimaal: systeemanalyse, afspraken, verzamelplekken of sorteerstraatjes en contract(en).\n",{"$f":"'Invulscherm 1 - Weging'!F23","v":0.8},null,null,0,{"$f":"J24","v":0},0,0,0,0]
["2-MAN4.4",null,{"$f":"'Invulscherm 1 - Weging'!C24","v":"Collectief beheer van groen"},{"$f":"'Invulscherm 1 - Weging'!H24","v":"extra belangrijk"},"1 - Er wordt bestudeerd wat de mogelijkheden zijn van het gezamenlijk beheren van groen. \n2 - Er worden maatregelen getroffen die collectief beheer van groen stimuleren.","- Studie/rapport of verslaglegging.\n- rapport/Verslaglegging of notulen.",{"$f":"'Invulscherm 1 - Weging'!I24","v":1.2000000000000002},null,null,{"$f":"IF(O25=1,G25,0)","v":0},0,0,0,{"$f":"IF(R25=1,J25,0)","v":0},0]
["2-MAN4.5",null,{"$f":"'Invulscherm 1 - Weging'!C25","v":"Collectieve mobiliteit"},{"$f":"'Invulscherm 1 - Weging'!H25","v":"extra belangrijk"},"1 - Er wordt bestudeerd wat de mogelijkheden zijn van collectieve mobiliteit (eisen zijn beschreven in het handboek)\n2 - Er worden maatregelen getroffen die collectieve mobiliteit stimuleren.","- Studie/rapport of verslaglegging.\n\n- rapport/Verslaglegging of notulen.",{"$f":"'Invulscherm 1 - Weging'!I25","v":1.2000000000000002},null,null,0,{"$f":"J26","v":0},0,0,0,0]
["2-MAN4.6",null,"Beveiliging",{"$f":"'Invulscherm 1 - Weging'!H26","v":"relevant"},"1 - Er wordt bestudeerd wat de mogelijkheden zijn van gezamenlijk beveiligen (eisen zijn beschreven in het handboek).\n2. Er worden collectieve beveiligingsmaatregelen getroffen.","- Studie/rapport of verslaglegging.\n\n- Aankoopbewijs / foto’s van installatie.",{"$f":"'Invulscherm 1 - Weging'!I26","v":0.8},null,null,0,{"$f":"J27","v":0},0,0,0,0]
["2-MAN4.7",null,"Delen/Lenen/ Ruilen",{"$f":"'Invulscherm 1 - Weging'!H27","v":"relevant"},"1 - Er wordt bestudeerd wat de mogelijkheden zijn het delen/lenen of ruilen van individuele bezittingen (eisen zijn beschreven in het handboek).\n2 - Er wordt aantoonbaar gedeeld/geleend of geruild.","- Studie/rapport of verslaglegging.\n\n- Verslaglegging en/of notulen.",{"$f":"'Invulscherm 1 - Weging'!I27","v":0.8},null,null,0,{"$f":"J28","v":0},0,0,0,0]
["2-MAN4.8",null,"Lokaal voedsel",{"$f":"'Invulscherm 1 - Weging'!H28","v":"relevant"},"1 - De mogelijkheden voor het collectief produceren van lokaal voedsel op het terrein zijn bestudeerd (stadslandbouw).\n2 - Daarbij wordt biologisch geproduceerd.\n3 -  Getracht wordt om het lokaal geproduceerde voedsel ook lokaal af te zetten, bijvoorbeeld in bedrijfskantines op het bedrijventerrein (sluiten van lokale voedsel kringloop).","- Studie/rapport of verslaglegging.\n\n- Studie/rapport of verslaglegging.\n- Contract en/of verslaglegging. Indien afzetten op het terrein niet mogelijk blijkt te zijn dan kan worden volstaan met Bewijsvoering daarvan.",{"$f":"'Invulscherm 1 - Weging'!I28","v":0.8},null,null,0,{"$f":"J29","v":0},0,0,0,0]
["2-MAN4.9",null,{"$f":"'Invulscherm 1 - Weging'!C29","v":"Overgang van ontwikkelaar naar beheerder"},{"$f":"'Invulscherm 1 - Weging'!H29","v":"relevant"},"1 - Er is een plan opgesteld hoe het parkmanagement wordt overgedragen van de ontwikkelaar op de beheerder.\n2 - Er is een professionele partij opgericht, of aangesteld, om het parkmanagement te beheren. ","- Studie/rapport of verslaglegging.\n\n- Contract of juridisch bewijs van oprichting. Indien er voor gekozen is om geen professionele partij op te richten, dan wordt onderbouwd waarom dit de meest duurzame keuze is.",{"$f":"'Invulscherm 1 - Weging'!I29","v":0.8},null,null,0,{"$f":"J30","v":0},0,0,0,0]
["SEW","2. SOCIAAL & ECONOMISCH WELZIJN (15%)",null,null,null,null,null,null,null,{"$f":"SUM(J33:J46)","v":0},{"$f":"J31","v":0},0,0,{"$f":"SUM(N33:N46)","v":0},0]
["SEW1","Fysisch Milieu & Gezondheid",null,null,null,null,null,null,null,null,{"$f":"J32","v":0},0,0,null,0]
["2-SEW1.1",null,"Geluidsoverlast ",{"$f":"'Invulscherm 1 - Weging'!H33","v":"extra belangrijk"},"1 - Stel een geluidsbeheerplan op ten behoeve van omgevingslawaai.\n2 - Stel de referentietoestand op ten behoeve van verkeerslawaai.\n3 - Het aantal ernstig gehinderden in de invloedszone blijft gelijk of daalt ten opzichte van de referentietoestand met betrekking op verkeerslawaai.\n4 - In gevoelige gebieden (gebieden van het Vlaams Ecologisch Netwerk (VEN), habitatrichtlijngebieden en vogelrichtlijngebieden) in de invloedssfeer is Lden lager dan 55 dB(A).","- Geluidsbeheerplan conform de richtlijn Europese richtlijn 2002/49/EG en de algemene voorwaarden zoals die omschreven worden in hoofdstuk 4.5. van VLAREM-II. Hierbij wordt conform de norm rekening gehouden met zowel industrielawaai (bron) als omgevingslawaai.\n- Rapportage met onderbouwing van de referentietoestand.\n- Berekening op basis van mobiliteitseffectenrapport dat aantoont dat het aantal ernstige gehinderden niet toeneemt.\n- Rapportage of berekening dat aantoont dat de Lden lager is dan 55 dB(A).",{"$f":"'Invulscherm 1 - Weging'!I33","v":1.7999999999999998},null,null,0,{"$f":"J33","v":0},0,0,{"$f":"IF(O33=1,J33,0)","v":0},0]
["2-SEW1.2",null,"Lichthinder",{"$f":"'Invulscherm 1 - Weging'!H34","v":"relevant"},"1 - Stel een lichtbeheerplan op.\n2 - Voer mitigerende maatregelen uit ter beperking van lichthinder.","- Lichtbeheerplan waarbij de aspecten als beschreven in dit hoofdstuk zijn verwerkt. Daarbij kunnen de VLAREM-voorschriften als richtlijn worden gebruikt.\n- Definitief ontwerp waarin lichthinder mitigerende maatregelen zijn getroffen",{"$f":"'Invulscherm 1 - Weging'!I34","v":1.2},null,null,0,{"$f":"J34","v":0},0,0,0,0]
["2-SEW1.3",null,"Luchtkwaliteit",{"$f":"'Invulscherm 1 - Weging'!H35","v":"extra belangrijk"},"1 - Stel de referentietoestand op ten behoeve van luchtkwaliteit.\n2 - Neem ontwerpmaatregelen zodat de luchtverontreiniging gelijk blijft of daalt ten opzichte van de referentietoestand.","- Rapportage van de referentietoestand conform beschreven aspecten.\n- Definitief ontwerp met de ontwerpmaatregelen en een Rapportage of berekening waaruit blijkt dat deze ontwerpmaatregelen ervoor zorgen dat de luchtverontreiniging gelijk blijft of daalt ten opzichte van de referentietoestand.",{"$f":"'Invulscherm 1 - Weging'!I35","v":1.7999999999999998},null,null,0,{"$f":"J35","v":0},0,0,0,0]
["2-SEW1.4",null,{"$f":"'Invulscherm 1 - Weging'!C36","v":"Geuroverlast"},{"$f":"'Invulscherm 1 - Weging'!H36","v":"extra belangrijk"},"1 - Stel de referentietoestand op ten behoeven van geuroverlast.\n2 - Neem ontwerpmaatregelen zodat de geuroverlast gelijk blijft of daalt ten opzichte van de referentietoestand.","- Rapportage met een onderbouwing van de referentie toestand en hoe de evaluatie daarvan in zijn werk gaat.\n- Rapportage met daarin een evaluatie van de geuroverlast die wordt veroorzaakt naar de omgeving, definitief ontwerp met de ontwerpmaatregelen en een onderbouwing dat de voorgestelde maatregelen in het kader van de gebiedsontwikkeling de negatieve effecten van de ontwikkeling teniet zullen doen.",{"$f":"'Invulscherm 1 - Weging'!I36","v":1.7999999999999998},null,null,0,{"$f":"J36","v":0},0,0,0,0]
["SEW2","Lokale economie",null,null,null,null,null,null,null,null,{"$f":"J37","v":0},0,0,null,0]
["1-SEW2.1",null,"Economische impactstudie",{"$f":"'Invulscherm 1 - Weging'!E38","v":"verplicht"},"1 - Er wordt een economische impact studie uitgevoerd. \n2 - Het economisch welzijn verhoogt doordat er investeringen zijn aangetrokken en netto werkgelegenheid is gecreëerd door de aanleg van het bedrijventerrein.","- Rapportage van de economische impact studie.\n- Rapportage van de economische impact Studie dat aantoont dat Er werkgelegenheid is gecreëerd.",{"$f":"'Invulscherm 1 - Weging'!F38","v":1.2},null,null,0,{"$f":"J38","v":0},0,0,0,0]
["1-SEW2.2",null,"Lokale werkgelegenheid",{"$f":"'Invulscherm 1 - Weging'!E39","v":"relevant"},"1 - Minstens 5% van de opdrachtsom voor zowel de aanleg van het bedrijventerrein als de bouw van de bedrijven op het terrein wordt aan social return besteed.","- Kostenraming/begroting",{"$f":"'Invulscherm 1 - Weging'!F39","v":1.2},null,null,0,{"$f":"J39","v":0},0,0,0,0]
["SEW3","Sociale veiligheid",null,null,null,null,null,null,null,null,{"$f":"J40","v":0},0,0,null,0]
["1-SEW3.1",null,"Nood- en hulpdiensten",{"$f":"'Invulscherm 1 - Weging'!E41","v":"verplicht"},"1 - Overleg met politie, ambulance en brandweer over toegankelijkheid en voorzieningen op het bedrijventerrein.","- Verslag van het overleg",{"$f":"'Invulscherm 1 - Weging'!F41","v":1.2},null,null,0,{"$f":"J41","v":0},0,0,0,0]
["2-SEW3.1",null,null,{"$f":"'Invulscherm 1 - Weging'!H41","v":"relevant"},"2 - Voorzie van een blusbekken met hemelwater voor de brandweer. Het blusbekken is opgenomen in het geïntegreerde watersysteem. De capaciteit van het blusbekken is in overleg met de brandweer bepaald.","- Definitief ontwerp van het watersysteem",{"$f":"'Invulscherm 1 - Weging'!I41","v":1.2},null,null,0,{"$f":"J42","v":0},0,0,0,0]
["2-SEW3.2",null,"Sociale controle",{"$f":"'Invulscherm 1 - Weging'!H42","v":"relevant"},"1 - Er is onderzoek gedaan naar de optimalisaties die mogelijk zijn op het terrein ter bevordering van sociale veiligheid. \n2 - Er is aan 3 van de 5 volgende sociale aspecten voldaan (zie handboek voor deze 5 aspecten)","- Rapportage van onderzoek naar sociale veiligheid\n\n- Definitief ontwerp",{"$f":"'Invulscherm 1 - Weging'!I42","v":1.2},null,null,0,{"$f":"J43","v":0},0,0,0,0]
["SEW4","Voorzieningen",null,null,null,null,null,null,null,null,{"$f":"J44","v":0},0,0,null,0]
["1-SEW4.1","Voorzieningen",null,{"$f":"'Invulscherm 1 - Weging'!E44","v":"verplicht"},"1 - Inventarisatie van aanwezige en benodigde voorzieningen op en rondom het bedrijventerrein.\n2 - Verdere uitwerking van de inventarisatie (bewijs 1), waarbij minimaal een onderscheid wordt gemaakt tussen ‘wenselijke voorzieningen’ en ‘noodzakelijke voorzieningen’ op en rondom het bedrijventerrein inclusief toelichting. ","- Rapportage van de inventarisatie",{"$f":"'Invulscherm 1 - Weging'!F44","v":1.2},null,null,0,{"$f":"J45","v":0},0,0,0,0]
["2-SEW4.1",null,null,{"$f":"'Invulscherm 1 - Weging'!H44","v":"relevant"},"3 - Op basis van de inventarisatie zijn de nodige gezamenlijke voorzieningen voor zowel het bedrijventerrein als de omgeving van het bedrijventerrein opgenomen in het ontwerp.","- Definitief ontwerp",{"$f":"'Invulscherm 1 - Weging'!I44","v":1.2},null,null,0,{"$f":"J46","v":0},0,0,0,0]
["IOR","3. INFRASTRUCTUUR & OPENBARE RUIMTE (15%)",null,null,null,null,null,null,null,{"$f":"SUM(J49:J62)","v":0},{"$f":"J47","v":0},0,0,{"$f":"SUM(N49:N62)","v":0},0]
["IOR1",{"$f":"'Invulscherm 1 - Weging'!B47","v":"Beleving"},null,null,null,null,null,null,null,null,{"$f":"J48","v":0},0,0,null,0]
["1-IOR1.1",null,{"$f":"'Invulscherm 1 - Weging'!C48","v":"Verweving met omgeving"},{"$f":"'Invulscherm 1 - Weging'!E48","v":"verplicht"},"1 - Het inventariseren en evalueren van de relatie tussen de economische hoofdfunctie en andere functies binnen en rondom de site.\n2 - Een onderbouwde visievorming over welke vorm van afstemming tussen de verschillende functies wenselijk is.","- Rapportage van de inventarisatie en de evaluatie\n\n- Rapportage over de visie t.a.v. verweving met de omgeving",{"$f":"'Invulscherm 1 - Weging'!F48","v":1.1538461538461537},null,null,0,{"$f":"J49","v":0},0,0,{"$f":"IF(O49=1,J49,0)","v":0},0]
["2-IOR1.1",null,null,{"$f":"'Invulscherm 1 - Weging'!H48","v":"relevant"},"3 - Op basis van de visievorming is in het ontwerp rekening gehouden met de afstemming tussen de verschillende functies binnen en rondom de site.","- Definitief ontwerp\n",{"$f":"'Invulscherm 1 - Weging'!I48","v":1.1538461538461537},null,null,0,{"$f":"J50","v":0},0,0,{"$f":"IF(O50=1,J50,0)","v":0},0]
["1-IOR1.2",null,{"$f":"'Invulscherm 1 - Weging'!C49","v":"Beeldvorming"},{"$f":"'Invulscherm 1 - Weging'!E49","v":"relevant"},"1 - Het opstellen van een beeldkwaliteitsplan.","- Een beeldkwaliteitsplan dat het bedrijventerrein op verschillende aspecten van ruimtelijke kwaliteit beoordeeld.",{"$f":"'Invulscherm 1 - Weging'!F49","v":1.1538461538461537},null,null,0,{"$f":"J51","v":0},0,0,{"$f":"IF(O51=1,J51,0)","v":0},0]
["2-IOR1.2",null,null,{"$f":"'Invulscherm 1 - Weging'!H49","v":"relevant"},"2 - In het ontwerp is aandacht besteed aan de beleving op het bedrijventerrein, middels het beeldkwaliteitsplan","- Definitief ontwerp wordt getoetst aan de hand van het beeldkwaliteitsplan.",{"$f":"'Invulscherm 1 - Weging'!I49","v":1.1538461538461537},null,null,0,{"$f":"J52","v":0},0,0,{"$f":"IF(O52=1,J52,0)","v":0},0]
["IOR2","Infrastructuur & Gebouwen",null,null,null,null,null,null,null,null,{"$f":"J53","v":0},0,0,null,0]
["1-IOR2.1",null,{"$f":"'Invulscherm 1 - Weging'!C51","v":"Bestaande bebouwing"},{"$f":"'Invulscherm 1 - Weging'!E51","v":"verplicht"},"1 - Bestaande bebouwing wordt geïnventariseerd.\n2 - Er wordt in een maatschappelijke kosten-batenanalyse onderzocht of het de voorkeur heeft om bestaande bebouwing te vervangen voor een tijdshorizon van tenminste 50 jaar. \n3 - De historische waarde wordt in kaart gebracht van aanwezig industrieel erfgoed en hoe dit bij kan dragen aan de culturele beleving van de site.","- GRB (Geopunt) of opmetingsplan bestaande toestand\n- Een MKBA die met de netto contante waarde aangeeft of bestaande bebouwing (in eigendom) vervangen zou moeten worden. Hierbij moet de levensduur van de bebouwing gedefinieerd worden. Let op! Dit hoeft geen uitgebreide MKBA te zijn, maar dient wel volgens de richtlijnen uitgevoerd te worden (zie MAN1.3)\n- Een grafisch of tekstueel overzicht waaruit blijkt welk industrieel erfgoed aanwezig is en een kwalitatieve analyse van hoe dit bijdraagt aan de culturele beleving.",{"$f":"'Invulscherm 1 - Weging'!F51","v":1.1538461538461537},null,null,0,{"$f":"J54","v":0},0,0,{"$f":"IF(O54=1,J54,0)","v":0},0]
["2-IOR2.1",null,{"$f":"'Invulscherm 1 - Weging'!C51","v":"Bestaande bebouwing"},{"$f":"'Invulscherm 1 - Weging'!H51","v":"relevant"},"4 - In het ontwerp van het bedrijventerrein wordt hergebruik van bestaande bebouwing gemaximaliseerd\n5 - De bestaande bebouwing is ten opzichte van nieuwbouw een gelijkwaardig onderdeel van de duurzaamheidsambitie.","- Een definitief ontwerp (DO) waaruit blijkt dat tenminste 50 % van de bestaande bebouwing met een houdbaarheid van 50 jaar of meer hergebruikt wordt.\n- In de duurzaamheidsambitie wordt de bestaande bebouwing tenminste aan de hand van dezelfde aspecten beschreven als de beoogde nieuwbouw.",{"$f":"'Invulscherm 1 - Weging'!I51","v":1.1538461538461537},null,null,0,{"$f":"J55","v":0},0,0,{"$f":"IF(O55=1,J55,0)","v":0},0]
["1-IOR2.2",null,{"$f":"'Invulscherm 1 - Weging'!C52","v":"Bestaande infrastructuur"},{"$f":"'Invulscherm 1 - Weging'!E52","v":"verplicht"},"1 - Bestaande infrastructuur wordt geïnventariseerd.\n2 - Er is onderzocht in welke mate de bestaande wegeninfrastructuur in staat is om een groeiende vervoersvraag op te vangen.\n3 - Er is onderzocht in welke mate ondergrondse infrastructuur ruimte biedt voor wijzigingen van bovengrondse verschuivingen in functionaliteit.\n4 - Er wordt in een financiële analyse onderzocht of het de voorkeur heeft om bestaande infrastructuur te vervangen voor een tijdshorizon van tenminste 50 jaar.","- Een KLIP-KLIM of een opmetingsplan bestaande toestand inclusief ondergrondse infrastructuur.  \n- Een berekening die aantoont hoeveel additionele capaciteit de wegeninfrastructuur heeft.\n- Een korte rapportage waarin wordt getoetst of de  aanwezige ondergrondse vrije ruimte en de aanwezige ongebruikte capaciteit van ondergrondse infrastructuur voldoende is voor de beoogde ontwikkelingen.\n- Een rapportage waarin de levenscycluskosten met behulp van netto constante waarde voor tenminste 10 jaar zijn berekend en afgezet tegen het alternatief om bestaande infrastructuur te vervangen.",{"$f":"'Invulscherm 1 - Weging'!F52","v":1.1538461538461537},null,null,0,{"$f":"J56","v":0},0,0,0,0]
["2-IOR2.2",null,{"$f":"'Invulscherm 1 - Weging'!C52","v":"Bestaande infrastructuur"},{"$f":"'Invulscherm 1 - Weging'!H52","v":"relevant"},"5 - Het bedrijventerrein wordt zodanig ontworpen dat alleen het gedeelte van bestaande infrastructuur dat niet gedurende 50 jaar na de realisatie functioneel in stand kan blijven wordt vervangen.\n6 - In het ontwerp wordt nieuwe infrastructuur geïntegreerd met bestaande infrastructuur.","- Een definitief ontwerp (DO) waaruit blijkt dat tenminste 50 % van de bestaande infrastructuur met een houdbaarheid van 50 jaar of meer hergebruikt wordt.  \n- Een Definitief Ontwerp (DO) waarin is aangegeven hoe de nieuwe infrastructuur fysiek en functioneel aansluit op bestaande infrastructuur.",{"$f":"'Invulscherm 1 - Weging'!I52","v":1.1538461538461537},null,null,0,{"$f":"J57","v":0},0,0,{"$f":"IF(O57=1,J57,0)","v":0},0]
["2-IOR2.3",null,"Nieuwbouw",{"$f":"'Invulscherm 1 - Weging'!H53","v":"relevant"},"1 - Gebouwen worden ontworpen om een zo laag mogelijke CO2-uitstoot ten gevolge van alle typen energieverbruik in de gebruiksfase te hebben.\n2 - In het ontwerp wordt materiaalgebruik aantoonbaar geminimaliseerd.\n3 - Er wordt een zorgvuldige afweging gemaakt tussen het hergebruik van materialen, duurzaamheid in de gebruiksfase en kosten.\n4 - In het ontwerp van de gebouwen wordt rekening gehouden met multi-use en de mogelijkheid voor andere toekomstige functies van het gebouw.","- Een berekening die in aantoont dat de CO2-uitstoot geminimaliseerd is.\n- Een berekening die in aantoont dat het materiaalgebruik voor gebouwen niet verminderd kan worden zonder aan functionaliteit in te boeten.\n- Een overzicht waarin verschillende hergebruik-scenario’s ten aanzien van duurzaamheid (waaronder belasting van het milieu) en kosten worden vergeleken.\n- Het Definitief Ontwerp (DO) geeft specifiek aan waar verschillende functies  vervuld kunnen worden door dezelfde objecten.",{"$f":"'Invulscherm 1 - Weging'!I53","v":1.1538461538461537},null,null,0,{"$f":"J58","v":0},0,0,0,0]
["IOR3","Openbare ruimte",null,null,null,null,null,null,null,null,{"$f":"J59","v":0},0,0,null,0]
["2-IOR3.1",null,"Materiaalgebruik",{"$f":"'Invulscherm 1 - Weging'!H55","v":"extra belangrijk"},"1 - In het ontwerp van de openbare ruimte wordt aandacht besteed aan het gebruik van milieuvriendelijk materiaal, waarbij gekozen is voor materialen met de kleinste milieubelasting.\n2 - In het ontwerp van de openbare ruimte wordt het hergebruik van materialen gemaximaliseerd.","- Een overzicht met de hoeveelheden gebruikte materiaal waaruit blijkt dat de materialen met de laagste totale milieubelasting zijn gekozen.\n- Een berekening die in aantoont dat het materiaalgebruik in de openbare ruimte niet verminderd kan worden zonder aan functionaliteit in te boeten.",{"$f":"'Invulscherm 1 - Weging'!I55","v":1.7307692307692306},null,null,0,{"$f":"J60","v":0},0,0,{"$f":"IF(O60=1,J60,0)","v":0},0]
["2-IOR3.2",null,"Onderhoud",{"$f":"'Invulscherm 1 - Weging'!H56","v":"verplicht"},"1 - Er wordt bij ontwerpkeuzes aantoonbaar rekening gehouden met de gevolgen voor de efficiëntie van de onderhoudsinspanning in de gebruiksfase.\n2 - In het onderhoudsplan van de openbare ruimte van het bedrijventerrein wordt beschreven hoe het gebruik van materiaal en materieel geminimaliseerd kan worden.","- In ontwerpnota’s wordt aangeven of en welke consequenties ontwerpkeuzes hebben voor de gebruiksfase in relatie tot benodigde tijd en middelen.\n- Een onderhoudsplan waarin tenminste is aangegeven hoe onderhoud het meest optimaal kan worden gepleegd, en welke en hoeveel materiaal en materieel er nodig is voor ieder type onderhoud.",{"$f":"'Invulscherm 1 - Weging'!I56","v":1.1538461538461537},null,null,0,{"$f":"J61","v":0},0,0,0,0]
["2-IOR3.3",null,"Kabels & Leidingen / Nutsvoorzieningen",{"$f":"'Invulscherm 1 - Weging'!H57","v":"extra belangrijk"},"1 - Het ondergrondse tracé en ruimtebeslag van kabels en leidingen wordt geminimaliseerd.\n2 - In het ontwerp wordt aantoonbaar rekening gehouden met de impact van kabels en leidingen op andere functionaliteiten van de ondergrondse ruimte en de impact van de andere functionaliteiten op de kabels en leidingen, zoals boomwortelruimte en waterberging.\n3 - In het ontwerp worden kabels en leidingen zodanig gesitueerd dat het graaf- en herbestratingswerk dat benodigd is voor beheer en onderhoud geminimaliseerd wordt.\n4 - Bij de aanleg van kabels en leidingen worden tracés vrijgehouden voor toekomstige collectieve en duurzame energiesystemen die bij aanleg nog niet mogelijk zijn.","- Op het Definitief Ontwerp (DO) staan de kortst mogelijke tracés weergegeven. Indien het tracé of gedeelten van het tracé niet op de kortst mogelijke lijn liggen, dient in een ontwerpnota te worden toegelicht waarom deze keuze wordt gemaakt. Hierbij afstemming plaatst te vinden met de bevoegde instanties. \n- Op het Definitief Ontwerp (DO) staat aangegeven dat het tracé van kabels en leidingen niet binnen de de kruin van de boom valt.\n- Op het Definitief Ontwerp (DO) staat aangegeven dat er voldoende ruimte voorzien voor nutsleidingen en waterberging.\n- Op het Definitief Ontwerp (DO) staat aangegeven dat het tracé van kabels en leidingen toegankelijk is en minimaal herbestratingswerkzaamheden vergt.\n- In het Definitief Ontwerp (DO) zijn tracé reserveringen aangegeven voor toekomstige energiesystemen.",{"$f":"'Invulscherm 1 - Weging'!I57","v":1.7307692307692306},null,null,0,{"$f":"J62","v":0},0,0,0,0]
["BRE","4. BRONNEN & ENERGIE (15%)",null,null,null,null,null,null,null,{"$f":"SUM(J65:J78)","v":0},{"$f":"J63","v":0},0,0,{"$f":"SUM(N69:N78)","v":0},0]
["BRE1","Energie",null,null,null,null,null,null,null,null,{"$f":"J64","v":0},0,0,null,0]
["1-BRE1.1",null,"Rationeel Energie Gebruik (REG)",{"$f":"'Invulscherm 1 - Weging'!E61","v":"extra belangrijk"},"1 - Het inventariseren van de mogelijkheden voor Rationeel Energie Gebruik (REG).","- Een document waaruit blijkt dat er Een inventarisatie van REG-maatregelen heeft plaatsgevonden.",{"$f":"'Invulscherm 1 - Weging'!F61","v":1.6071428571428572},null,null,{"$f":"IF(O65=1,G65,0)","v":0},0,0,0,{"$f":"IF(O65=1,J65,0)","v":0},0]
["2-BRE1.1",null,null,{"$f":"'Invulscherm 1 - Weging'!H61","v":"extra belangrijk"},"2 - Er wordt een basecase opgesteld voor het bedrijventerrein op basis van traditioneel energieverbruik.  \n3 - Op basis van de basecase worden REG-maatregelen opgesteld om 40% reductie van het energieverbruik te realiseren. \n4 - Deze REG-maatregelen worden opgenomen in het ontwerp voor het bedrijventerrein. ","- rapportage met de basecase\n- rapportage met REG-maatregelen en Een berekening van de reductie\n- definitief ontwerp met daarin de REG-maatregelen",{"$f":"'Invulscherm 1 - Weging'!I61","v":1.6071428571428572},null,null,0,0,0,0,0,0]
["1-BRE1.2",null,"Restwarmte en -koude",{"$f":"'Invulscherm 1 - Weging'!E62","v":"extra belangrijk"},"1 - Het inventariseren van de mogelijkheden om restwarmte en -koude binnen en buiten het plangebied te benutten.","- rapportage waaruit blijkt dat de inventarisatie heeft plaatsgevonden",{"$f":"'Invulscherm 1 - Weging'!F62","v":1.6071428571428572},null,null,0,0,0,0,0,0]
["2-BRE1.2",null,null,{"$f":"'Invulscherm 1 - Weging'!H62","v":"relevant"},"2 - De restwarmte en -koude wordt binnen of buiten de site benut. Er kan bijvoorbeeld restwarmte uit koelwater worden gebruikt.","- definitieve kabels- en leidingen tekening met daarin het restwarmte- en koude netwerk",{"$f":"'Invulscherm 1 - Weging'!I62","v":1.0714285714285714},null,null,0,0,0,0,0,0]
["1-BRE1.3",null,"Duurzame energie",{"$f":"'Invulscherm 1 - Weging'!E63","v":"verplicht"},"1 - Het inventariseren van de mogelijkheden om duurzame energie binnen of buiten het plangebied op te wekken.","- Een document waaruit blijkt dat een inventarisatie van duurzame energie is uitgevoerd. Hierbij kan gebruik gemaakt worden van de energiekansenkaarten die door diverse instanties (bijvoorbeeld provincie Vlaams-Brabant en stad Antwerpen) zijn gemaakt.",{"$f":"'Invulscherm 1 - Weging'!F63","v":1.0714285714285714},null,null,0,{"$f":"J69","v":0},0,0,{"$f":"IF(O69=1,J69,0)","v":0},0]
["2-BRE1.3",null,null,{"$f":"'Invulscherm 1 - Weging'!H63","v":"relevant"},"Minimaal het volgende percentage van de energievraag van het gebied wordt ingevuld door het opwekken van duurzame energie binnen of buiten het plangebied. \nStap 1 = 20%\nStap 2 = 40%\nStap 3 = 60%\nStap 4 = 80%\nStap 5 = 100%\nStap 6 = Meer dan 100% (zie toelichting handboek)","- Een document met Een berekening waarin dit wordt aangetoond",{"$f":"'Invulscherm 1 - Weging'!I63","v":1.0714285714285714},"Bewijsvoering:\n1 = 1 stap\n2 = 2 stap\n3 = 3 stap\n4 = 4 stap\n5 = 5 stap\n6 = 6 stap",null,{"$f":"IF(O70=0,0,IF(O70=1,G70*(1/6),IF(O70=2,G70*(2/6),IF(O70=3,G70*(3/6),IF(O70=4,G70*(4/6),IF(O70=5,G70*(5/6),IF(O70=6,G70,0)))))))","v":0},{"$f":"J70","v":0},0,0,{"$f":"IF(O70=1,J70*0.3,IF(O70=2,J70*0.66,IF(O70=3,J70,0)))","v":0},0]
["1-BRE1.4",null,{"$f":"'Invulscherm 1 - Weging'!B64","v":"SMART-Grid"},{"$f":"'Invulscherm 1 - Weging'!E64","v":"verplicht"},"1 - Het inventariseren van de mogelijkheden om een SMART-grid toe te passen.","- rapportage waaruit blijkt dat de inventarisatie heeft plaatsgevonden.",{"$f":"'Invulscherm 1 - Weging'!F64","v":1.0714285714285714},null,null,0,{"$f":"J71","v":0},0,0,{"$f":"IF(O71=1,J71,0)","v":0},0]
["2-BRE1.4",null,null,{"$f":"'Invulscherm 1 - Weging'!H64","v":"relevant"},"2 - In het ontwerp is een SMART-grid voorzien. ","- definitief ontwerp met daarin de SMART-grid",{"$f":"'Invulscherm 1 - Weging'!I64","v":1.0714285714285714},null,null,0,{"$f":"J72","v":0},0,0,0,0]
["BRE2","Afval & Materiaalbeheer",null,null,null,null,null,null,null,null,{"$f":"J73","v":0},0,0,null,0]
["1-BRE2.1","Afval & Materiaalbeheer",null,{"$f":"'Invulscherm 1 - Weging'!E66","v":"extra belangrijk"},"1 - Het inventariseren van inkomende en uitgaande materialen.\n2 - Het inventariseren van mogelijkheden om materiaal- en afvalstromen samen te voegen of uit te wisselen tussen bedrijven (industriële symbiose).","- rapportage met de inventarisatie van inkomende en uitgaande materialen.\n- rapportage met de inventarisatie van de mogelijkheden om materiaal- en afvalstromen samen te voegen of uit te wisselen tussen bedrijven.",{"$f":"'Invulscherm 1 - Weging'!F66","v":1.6071428571428572},null,null,{"$f":"IF(O74=1,G74,0)","v":0},{"$f":"J74","v":0},0,0,0,0]
["2-BRE2.1",null,null,{"$f":"'Invulscherm 1 - Weging'!H66","v":"relevant"},"3 - Ontwerp een materiaal- en afvalsysteem waarbij het hergebruik en de efficiëntie van de stromen van materialen en afval centraal staat.","- definitief ontwerp met daarin het materiaal- en afvalsysteem.",{"$f":"'Invulscherm 1 - Weging'!I66","v":1.0714285714285714},null,null,0,{"$f":"J75","v":0},0,0,0,0]
["BRE3","Water",null,null,null,null,null,null,null,null,{"$f":"J76","v":0},0,0,null,0]
["1-BRE3.1",null,{"$f":"'Invulscherm 1 - Weging'!B68","v":"Water (water als bron)"},{"$f":"'Invulscherm 1 - Weging'!E68","v":"verplicht"},"1 - Voer een wateraudit uit bij de ondernemingen op het bedrijventerrein en stem de verschillende waterstromen op elkaar af.","- rapportage van de wateraudit",{"$f":"'Invulscherm 1 - Weging'!F68","v":1.0714285714285714},null,null,0,{"$f":"J77","v":0},0,0,0,0]
["2-BRE3.1",null,null,{"$f":"'Invulscherm 1 - Weging'!H68","v":"relevant"},"2 - Productiegerichte terreinen: Het gebied maakt voor minimaal 10% gebruik van de toepassing van gebiedseigen water, waardoor er een vermindering is van de vraag van water buiten het systeem.  Alle andere typen terreinen: Het gebied maakt voor minimaal 30% gebruik van de toepassing van gebiedseigen water, waardoor er een vermindering is van de vraag van water buiten het systeem.\n3 - Bij het gebruik van gebiedseigen water moet de natuurlijke waterbalans in stand worden gehouden en mag er geen verslechtering van de waterkwaliteit plaatsvinden.","- berekening van het ontwerp waaruit blijkt dat 10% of 30% van waterverbruik gebiedseigen water is.\n- ontwerp van het watersysteem met een berekening van de waterbalans en een analyse op de waterkwaliteit waaruit blijkt dat het natuurlijke watersysteem van het bedrijventerrein in stand wordt gehouden.",{"$f":"'Invulscherm 1 - Weging'!I68","v":1.0714285714285714},null,null,0,{"$f":"J78","v":0},0,0,0,0]
["EDL","5. ECOLOGIE & DUURZAAM LANDGEBRUIK (20%)",null,null,null,null,null,null,null,{"$f":"SUM(J81:J102)","v":0},{"$f":"J79","v":0},0,0,{"$f":"SUM(N81:N102)","v":0},0]
["EDL1","Karakter",null,null,null,null,null,null,null,null,{"$f":"J80","v":0},0,0,null,0]
["1-EDL1.1","Karakter van het landschap",null,{"$f":"'Invulscherm 1 - Weging'!E72","v":"verplicht"},"1 - Er wordt een volledige inmeting en inventarisatie van de eigenschappen van het terrein uitgevoerd om inzicht te krijgen over het karakter van het gebied en de relatie van het gebied tot zijn omgeving.","- rapportage of tekeningen van de inmeting en inventarisatie (hierbij kan de landschapsatlas geraadpleegd worden)",{"$f":"'Invulscherm 1 - Weging'!F72","v":1.0526315789473684},null,null,0,{"$f":"J81","v":0},0,0,{"$f":"IF(O81=1,J81,0)","v":0},0]
["2-EDL1.2",null,null,{"$f":"'Invulscherm 1 - Weging'!H72","v":"relevant"},"2 - De opmeting en inventarisatie van het karakter van het gebied vormen de basis van het ontwerp van het bedrijventerrein waarbij waardevolle landschapselementen worden geïntegreerd in het landschapsontwerp, zonder de functionaliteit van het bedrijventerrein te hypothekeren.","- definitief ontwerp",{"$f":"'Invulscherm 1 - Weging'!I72","v":1.0526315789473684},null,null,0,0,0,0,{"$f":"IF(O82=1,J82,0)","v":0},0]
["EDL2","Landgebruik",null,null,null,null,null,null,null,null,{"$f":"J83","v":0},0,0,null,0]
["1-EDL2.1",null,"Positionering & landgebruik",{"$f":"'Invulscherm 1 - Weging'!E74","v":"relevant"},"1 - Het bedrijventerrein is gesitueerd op meer dan 50% braakliggend en/of bebouwd terrein (brownfield).\n2 - Er is een zonnestudie uitgevoerd. Daarbij is een optimale positionering van gebouwen ten opzichte van de zonneoriëntatie in kaart gebracht.","- kaart waaruit dit blijkt\n- rapportage van de zonnestudie",{"$f":"'Invulscherm 1 - Weging'!F74","v":1.0526315789473684},null,null,0,{"$f":"J84","v":0},0,0,{"$f":"IF(O84=1,J84,0)","v":0},0]
["2-EDL2.1",null,null,{"$f":"'Invulscherm 1 - Weging'!H74","v":"relevant"},"3 - Stel een berekening op voor de minimaal benodigde ruimte om bedrijfsvoering uit te voeren. \n4 - In het ontwerp wordt maximaal 20% afgeweken van de minimaal benodigde ruimte. \n5 - Bestaande (en nieuwe) waterlopen zijn de basis voor de ontwikkeling van het groen-blauwe netwerk op schaal van het inrichtingsplan.  Het groen-blauwe netwerk wordt daarnaast optimaal geënt op het ontworpen wegenpatroon.","- rapportage met de berekening\n- definitief ontwerp\n- inrichtingsplan of definitief ontwerp waarbij bestaande waterlopen maximaal behouden zijn gebleven.",{"$f":"'Invulscherm 1 - Weging'!I74","v":1.0526315789473684},null,null,0,{"$f":"J85","v":0},0,0,0,0]
["1-EDL2.2",null,"Flexibiliteit in tijdelijke en definitieve inrichting",{"$f":"'Invulscherm 1 - Weging'!E75","v":"verplicht"},"1 - Onderzoek de mogelijkheden van tijdelijke inrichting en tijdelijk gebruik voor percelen en ruimtes die langer dan 6 maanden ongebruikt blijven.","- rapportage van onderzoek naar tijdelijke inrichting en gebruik.",{"$f":"'Invulscherm 1 - Weging'!F75","v":1.0526315789473684},null,null,0,{"$f":"J86","v":0},0,0,0,0]
["2-EDL2.2",null,null,{"$f":"'Invulscherm 1 - Weging'!H75","v":"relevant"},"2 - Het ontwerp maakt toekomstige verschuivingen en veranderingen van functionaliteiten van de openbare ruimte mogelijk in de gebruiksfase.\n3 - Er wordt in het ontwerp extra ruimte gecreëerd voor toekomstige bebouwing.\n4 - Er is voldoende flexibiliteit in het inrichtingsplan zodat kan worden ingespeeld op een veranderende context tijdens de realisatie van het bedrijventerrein.","- Het Definitief Ontwerp (DO) geeft specifiek aan waar verschillende functies  vervuld kunnen worden door dezelfde objecten in de openbare ruimte.\n- Het Definitief Ontwerp (DO) geeft specifiek aan welke ruimtes initieel nog geen functie vervuld.\n- Inrichtingsplan",{"$f":"'Invulscherm 1 - Weging'!I75","v":1.0526315789473684},null,null,0,{"$f":"J87","v":0},0,0,0,0]
["1-EDL2.3",null,{"$f":"'Invulscherm 1 - Weging'!C76","v":"Hittestress"},{"$f":"'Invulscherm 1 - Weging'!E76","v":"relevant"},"1 - Er wordt een studie uitgevoerd waarbij wordt aangetoond of het terrein, inclusief omliggend gebied,  gevoelig is voor hittestress (Urban Island Heat effect)","- Rapportage met een onderzoek naar de gevoeligheid van hittestress op het bedrijventerrein",{"$f":"'Invulscherm 1 - Weging'!F76","v":1.0526315789473684},null,null,0,{"$f":"J88","v":0},0,0,0,0]
["2-EDL2.3",null,null,{"$f":"'Invulscherm 1 - Weging'!H76","v":"relevant"},"2 - Indien uit de studie is gebleken dat het gebied gevoelig is voor hittestress, dan dienen er maatregelen te worden genomen om het effect te reduceren.","- Ontwerp met daarin maatregelen om hittestress tegen te gaan en een onderbouwing van de maatregelen",{"$f":"'Invulscherm 1 - Weging'!I76","v":1.0526315789473684},null,null,0,{"$f":"J89","v":0},0,0,0,0]
["2-EDL2.4","Bouwrijp maken (grondbalans / peilhoogten)",null,{"$f":"'Invulscherm 1 - Weging'!H77","v":"relevant"},"1 - Maken van een gesloten grondbalans (bijvoorbeeld het overschot van ter plaatse gesaneerde grond gebruiken).\n2 - Hou in het ontwerp rekening met het zo min mogelijk onherstelbaar verstoren van de bodem bij het bouwrijp maken en bij ondergrondse interventies (funderingspalen, kelders, pijpen voor WKO e.d.).\n3 - Hou in het ontwerp rekening met het zo min mogelijk verstoren van de grondwaterstroming.\n4 - Volgen van het gemeentelijk erosiebestrijdingplan (indien aanwezig).","- Rapportage van grondbalans\n- Profielen van de ondergrond van de toekomstige situatie\n- Rapportage van de berekening van de effecten op grondwaterstroming\n- Definitief ontwerp",{"$f":"'Invulscherm 1 - Weging'!I77","v":1.0526315789473684},null,null,0,{"$f":"J90","v":0},0,0,{"$f":"IF(O90=1,J90,0)","v":0},0]
["1-EDL2.5","Bodemverontreiniging",null,{"$f":"'Invulscherm 1 - Weging'!E78","v":"relevant"},"1 - Realiseren van het bedrijventerrein op een ernstig verontreinigde bodem.\n2 - In de voorbereidingsfase wordt gebruik gemaakt van de meest duurzame combinatie ‘ontwikkelvariant’ en ‘saneringsvariant’. Daarvoor wordt gebruik gemaakt van de Duurzaamheidsmeter Herontwikkeling Verontreinigde Sites (DZM-HVS) ontwikkeld door OVAM . \n3 - In geval van verontreinigde bodem, wordt de afweging tussen wel of niet saneren en de ingevulde duurzaamheidsmeter van OVAM (zie criterium 2) gecontroleerd door een erkend bodem expert.","- Planstudie rapportage\n- Milieukundig onderzoek\n- Rapportage van de tool DZM-HVS waarbij minimaal de voorbereidingsfase is ingevuld. \n- Notitie van erkend bodemsaneringsdeskundige waarbij deze aangeeft het benodigde bodemonderzoek, de keuze van wel of niet saneren en de ingevulde tool DZM-HVS te hebben bestudeerd. Tevens geeft deze aan dat de gemaakte keuzes vanuit een duurzaamheidoogpunt verantwoord zijn.",{"$f":"'Invulscherm 1 - Weging'!F78","v":1.0526315789473684},null,null,0,{"$f":"J91","v":0},0,0,{"$f":"IF(O91=1,J91,0)","v":0},0]
["2-EDL2.5",null,null,{"$f":"'Invulscherm 1 - Weging'!H78","v":"relevant"},"4 - Voer de bodemsanering uit middels de best beschikbare technieken. In ontwerpfase wordt gebruik gemaakt van de meest duurzame combinatie ‘ontwikkelvariant’ en ‘saneringsvariant’. Daarvoor wordt gebruik gemaakt van de Duurzaamheidsmeter Herontwikkeling Verontreinigde Sites (DZM-HVS) ontwikkeld door OVAM.","- Uitvoeringsontwerp van de sanering\n- Rapportage van de tool DZM-HVS waarbij minimaal de ontwerpfase is ingevuld. Daarbij is een duidelijke onderbouwing waarom keuzes zijn gemaakt. Indien wordt afgeweken van de meest duurzame combinatie (ranking 1) dan dient onderbouwd te worden waarom.",{"$f":"'Invulscherm 1 - Weging'!I78","v":1.0526315789473684},null,null,0,{"$f":"J92","v":0},0,0,{"$f":"IF(O92=1,J92,0)","v":0},0]
["EDL3","Ecologie & biodiversiteit",null,null,null,null,null,null,null,null,{"$f":"J93","v":0},0,0,null,0]
["1-EDL3.1",null,"Ecologie & biodiversiteit",{"$f":"'Invulscherm 1 - Weging'!E80","v":"verplicht"},"1 - Inventariseer en evalueer de ecologische waarden en functies en bepaal de effecten van de voorgenomen ontwikkeling op deze ecologische waarden.","-  Er is een biodiversiteitscan uitgevoerd. \n- Er is een natuurrapport gemaakt door een ecoloog.  ",{"$f":"'Invulscherm 1 - Weging'!F80","v":1.0526315789473684},null,null,0,{"$f":"J94","v":0},0,0,0,0]
["2-EDL3.1",null,null,{"$f":"'Invulscherm 1 - Weging'!H80","v":"relevant"},"2 - Behoudt zoveel mogelijk van de ecologische waarden en functies in het gebied en voorkom, mitigeer of compenseer negatieve effecten\n3 - Optimaliseer binnen het bedrijventerrein de omstandigheden voor ecologische waarden.\n4 - Versterk bijzonder of zeldzame ecologische waarden op regionale schaal.","- Een natuurrapport (zie introductie) met daarin Een plan om de ecologische waarden te behouden.\n- definitief ecologisch ontwerp waarin is aangetoond dat de ecologische omstandigheden worden geoptimaliseerd\n- definitief ecologisch ontwerp waarin is aangetoond dat bijzondere of zeldzame ecologische waarden worden versterkt",{"$f":"'Invulscherm 1 - Weging'!I80","v":1.0526315789473684},null,null,0,{"$f":"J95","v":0},0,0,0,0]
["1-EDL3.2",null,"Abiotische structuren",{"$f":"'Invulscherm 1 - Weging'!E81","v":"verplicht"},"1 - Inventariseer en evalueer de abiotische structuren.","- Inventarisatie en evaluatie van abiotische structuren door een milieudeskundige",{"$f":"'Invulscherm 1 - Weging'!F81","v":1.0526315789473684},null,null,0,{"$f":"J96","v":0},0,0,0,0]
["2-EDL3.2",null,null,{"$f":"'Invulscherm 1 - Weging'!H81","v":"relevant"},"2 - Behoudt de abiotische structuren of onderbouw de keuze om de abiotische structuren niet te behouden en compenseer de ontstane schade.\n3 - Inzetten van abiotische structuren om de kwaliteit van de gebiedsontwikkeling te vergroten.","- rapportage met daarin Een plan om de abiotische structuren te behouden\n- definitief ontwerp waarin onderbouwd is hoe de aanwezige abiotische structuren worden ingezet om de kwaliteit van het gebied te versterken",{"$f":"'Invulscherm 1 - Weging'!I81","v":1.0526315789473684},null,null,0,{"$f":"J97","v":0},0,0,0,0]
["2-EDL3.3",null,"Vergroening",{"$f":"'Invulscherm 1 - Weging'!H82","v":"verplicht"},"1 - Minimaal 50% van het openbaar domein van het bedrijventerrein is onderdeel van een groter overkoepelende blauw-groene zone. \n2 - Koppel het groen aan laagdynamische ontwikkelingen zoals fiets- en voetpaden en lunchlocaties.\n3 - Ontwerp het groen volgens de principes van het Harmonisch Park- en Groenbeheer.","- Overzichtstekening van de bedrijventerrein met daarop de blauw-groene zone\n- Overzichtstekening van de bedrijventerrein met daarop de blauw-groene zone\n- definitief ontwerp",{"$f":"'Invulscherm 1 - Weging'!I82","v":1.0526315789473684},null,null,0,{"$f":"J98","v":0},0,0,0,0]
["EDL4","Water",null,null,null,null,null,null,null,null,0,0,0,null,0]
["1-EDL4.1",null,{"$f":"'Invulscherm 1 - Weging'!C84","v":"Hoogwaterbescherming & klimaatadaptatie"},{"$f":"'Invulscherm 1 - Weging'!E84","v":"verplicht"},"1 - Er is een hemelwatersysteemkaart opgesteld voor het gebied en doorgerekend op een bui van T = 50. \n2 - Er is een hemelwaterplan opgesteld voor het bedrijventerrein en overstromingsgevoelige gebieden op het bedrijventerrein zijn inzichtelijk gemaakt aan de hand van een watertoets.","- Hemelwaterplan\n- Hemelwaterplan,  overstromingskaart en watertoets",{"$f":"'Invulscherm 1 - Weging'!F84","v":1.0526315789473684},null,null,{"$f":"IF(O100=1,G100,0)","v":0},0,0,0,{"$f":"IF(O100=1,J100,0)","v":0},0]
["2-EDL4.1",null,null,{"$f":"'Invulscherm 1 - Weging'!H84","v":"relevant"},"3 - Compenseer alle verhardingen in het openbaar domein en 50% van de maximaal realiseerbare oppervlakte van private daken en verhardingen in het bijkomend grondbeslag met klimaatadaptieve maatregelen in het openbaar domein. \n4 - Er is genoeg waterbergend vermogen in het gebied gecreëerd zodat er geen hemelwateroverlast optreedt bij een T = 50 bui.","- Definitief ontwerp\n- Rapportage met simulatie van een T=50 bui op het definitief ontwerp",{"$f":"'Invulscherm 1 - Weging'!I84","v":1.0526315789473684},null,null,{"$f":"IF(O101=1,G101,0)","v":0},0,0,0,{"$f":"IF(O101=1,J101,0)","v":0},0]
["2-EDL4.2",null,"Waterkwaliteit",{"$f":"'Invulscherm 1 - Weging'!H85","v":"relevant"},"1 - De natuurlijke waterbalans wordt in stand gehouden zonder verslechtering van de waterkwaliteit van het oppervlaktewater.","- Rapportage met het onderzoek waaruit blijkt dat er geen verslechtering van de waterkwaliteit plaatsvindt welke is getoetst welke is getoetst aan de lozingsnormen zoals bepaald in Vlarem II. ",{"$f":"'Invulscherm 1 - Weging'!I85","v":1.0526315789473684},null,null,0,{"$f":"J102","v":0},0,0,{"$f":"IF(O102=1,J102,0)","v":0},0]
["TRA","6. TRANSPORT (15%)",null,null,null,null,null,null,null,{"$f":"SUM(J105:J127)","v":0},{"$f":"J103","v":0},0,0,{"$f":"SUM(N104:N127)","v":0},0]
["TRA1","Non-gemotoriseerd verkeer",null,null,null,null,null,null,null,null,{"$f":"J104","v":0},0,0,null,0]
["1-TRA1.1",null,"Inpassing voor fiets- en voetgangersverkeer",{"$f":"'Invulscherm 1 - Weging'!E89","v":"verplicht"},"1 - Er wordt geïnventariseerd hoe er op het bedrijventerrein maximaal rekening kan worden gehouden met infrastructuur voor fietsers en voetgangers.","- Ruimtelijke analyse van optimale inpassing voor mobiliteit, met daarin benoemd de kansen voor fiets- en voetgangersverkeer. ",{"$f":"'Invulscherm 1 - Weging'!F89","v":0.73170731707317072},null,null,0,{"$f":"J105","v":0},0,0,{"$f":"IF(O105=1,J105,0)","v":0},0]
["2-TRA1.1",null,null,{"$f":"'Invulscherm 1 - Weging'!H89","v":"relevant"},"2 - In het ontwerp wordt er aantoonbaar extra ruimte gecreëerd voor een bereikbare en integrale fiets- en voetgangersinfrastructuur.","- Extra ruimte (meer dan de ontwerpnorm) gemaakt voor fiets- en voetgangersverkeer in het ontwerp.",{"$f":"'Invulscherm 1 - Weging'!I89","v":0.73170731707317072},null,null,0,{"$f":"J106","v":0},0,0,{"$f":"IF(O106=1,J106,0)","v":0},0]
["1-TRA1.2",null,"Stimuleren fiets- en voetgangersverkeer",{"$f":"'Invulscherm 1 - Weging'!E90","v":"verplicht"},"1 - Er wordt geïnventariseerd hoe het gebruik van fiets- en voetgangersinfrastructuur zo aantrekkelijk mogelijk kan worden gemaakt (zie transport 1.2)","- Als toevoeging van de ruimtelijke analyse (TRA 1.1) wordt er een plan opgesteld hoe het gebruik van fiets- en voetgangersinfrastructuur zo aantrekkelijk mogelijk kan worden gemaakt (zie transport 1.2). Daarbij worden minimaal de in de introductie besproken voorbeeldmaatregelen overwogen.",{"$f":"'Invulscherm 1 - Weging'!F90","v":0.73170731707317072},null,null,0,{"$f":"J107","v":0},0,0,{"$f":"IF(O107=1,J107,0)","v":0},0]
["2-TRA1.2",null,null,{"$f":"'Invulscherm 1 - Weging'!H90","v":"relevant"},"2 - De fiets- en voetgangersroutes worden integraal met de omgeving ontworpen, waarbij maatregelen worden geïmplementeerd om het traject zo aantrekkelijk mogelijk te maken.","- De maatregelen als overwogen in criterium 1-TRA1.2 worden aantoonbaar toegepast in het ontwerp. ",{"$f":"'Invulscherm 1 - Weging'!I90","v":0.73170731707317072},null,null,0,{"$f":"J108","v":0},0,0,{"$f":"IF(O108=1,J108,0)","v":0},0]
["TRA2","Openbaar vervoer",null,null,null,null,null,null,null,null,{"$f":"J109","v":0}]
["1-TRA2.1",null,"Stimuleren van openbaar & collectief vervoer",{"$f":"'Invulscherm 1 - Weging'!E92","v":"relevant"},"1 - De mogelijkheden om het gebruik van openbaar vervoer en collectief vervoer te stimuleren zijn in kaart gebracht in een SWOT-analyse. \n2 - Hierbij wordt in ieder geval rekening gehouden met de fysieke ontwerpkansen nu en in de toekomst (positionering van haltes en routes) en overige stimulerende middelen. Er is hierover in een vroege fase  fysiek contact geweest met de openbaar vervoer bedrijven.","- SWOT-analyse waarbij minimaal rekening is gehouden met verschillende typen openbaar en collectief vervoer. Daarbij zijn minimaal overwogen: collectief vervoer, taxi’s, ov-fiets en voor- en natransport (van en naar transportmiddel).  \n- SWOT-analyse.",{"$f":"'Invulscherm 1 - Weging'!F92","v":0.73170731707317072},null,null,0,{"$f":"J110","v":0},0,0,{"$f":"IF(O110=1,J110,0)","v":0},0]
["2-TRA2.1",null,null,{"$f":"'Invulscherm 1 - Weging'!H92","v":"relevant"},"3 - Het gebruik van openbaar vervoer wordt gestimuleerd door de geïdentificeerde kansen maximaal te benutten in het ontwerp.\n4 - Indien er geen openbaar vervoer mogelijkheden zijn (resultaat SWOT) dan wordt er aantoonbaar voor een ‘duurzaam’ alternatief gekozen: taxi, ov-fiets, etc.","- er is Op basis van de SWOT Een vervoersplan met maatregelen uitgevoerd. Daarbij is aangeven welke vervoerstype voor welke vervoersstroom het beste kan worden ingevuld. Tevens is aangegeven welke maatregelen uit het vervoersplan zijn verwerkt in het ontwerp.\n- Indien er geen openbaar vervoer is toegepast. dan is in het vervoersplan onderbouwd aangegeven welk duurzaam alternatief is gekozen en waarom.",{"$f":"'Invulscherm 1 - Weging'!I92","v":0.73170731707317072},null,null,0,{"$f":"J111","v":0},0,0,0,0]
["TRA3","Autoverkeer",null,null,null,null,null,null,null,null,{"$f":"J112","v":0},0,0,null,0]
["1-TRA3.1",null,"Inpassing autoverkeer",{"$f":"'Invulscherm 1 - Weging'!E94","v":"verplicht"},"1 - Er wordt geïnventariseerd hoe er op het bedrijventerrein maximaal rekening kan worden gehouden met infrastructuur voor autoverkeer.","- Ruimtelijke analyse van optimale inpassing voor mobiliteit, met daarin benoemd de kansen voor autoverkeer (zie ook TRA1.1). ",{"$f":"'Invulscherm 1 - Weging'!F94","v":0.73170731707317072},null,null,{"$f":"IF(O113=1,G113,0)","v":0},0,0,0,{"$f":"IF(O113=1,J113,0)","v":0},0]
["2-TRA3.1",null,null,{"$f":"'Invulscherm 1 - Weging'!H94","v":"relevant"},"2 - In het ontwerp wordt er aantoonbaar rekening gehouden met de in de introductie genoemde ontwerpaspecten voor autovervoer.","- Er wordt in het ontwerp aantoonbaar rekening gehouden met doorstroming, hoeveelheid asfalt en multifunctioneel ruimtegebruik. ",{"$f":"'Invulscherm 1 - Weging'!I94","v":0.73170731707317072},null,null,0,0,0,0,0,0]
["1-TRA3.2",null,"Het faciliteren van auto's op alternatieve energiebronnen",{"$f":"'Invulscherm 1 - Weging'!E95","v":"verplicht"},"1 - Er wordt een rapportage opgesteld met maatregelen die autogebruik kunnen ontmoedigen. Hierbij wordt minimaal rekening gehouden met de voorbeelden als beschreven in de introductie.","- rapportage, dit kan eventueel worden geïntegreerd in de SWOT analyse en vervoersplan van TRA2.1.",{"$f":"'Invulscherm 1 - Weging'!F95","v":0.73170731707317072},null,null,0,{"$f":"J115","v":0},0,0,0,0]
["2-TRA3.2",null,null,{"$f":"'Invulscherm 1 - Weging'!H95","v":"relevant"},"2 - Maatregelen om autogebruik te ontmoedigen worden geïmplementeerd in het ontwerp.","- Aantoonbare ontwerpmaatregelen (zowel ‘push’ als ‘pull’) op basis van de kansen uit het rapport 1-TRA3.3.",{"$f":"'Invulscherm 1 - Weging'!I95","v":0.73170731707317072},null,null,0,{"$f":"J116","v":0},0,0,0,0]
["1-TRA3.3",null,"Het reduceren van autogebruik",{"$f":"'Invulscherm 1 - Weging'!E96","v":"verplicht"},"1 - Er wordt onderzocht in welke mate er voor het bedrijventerrein gebruik van emissieloze voertuigen gemaakt kan worden de komende 15 jaar.","- Onderzoek naar alternatieve toepassingen die geschikt zouden kunnen zijn op en voor het bedrijventerrein (nu en in de komende 15 jaar). Daarbij wordt minimaal rekening gehouden met de voorbeelden als beschreven in de inleiding.",{"$f":"'Invulscherm 1 - Weging'!F96","v":0.73170731707317072},null,null,0,{"$f":"J117","v":0},0,0,0,0]
["2-TRA3.3",null,null,{"$f":"'Invulscherm 1 - Weging'!H96","v":"relevant"},"2 - Er worden voldoende voorzieningen voor emissieloze voertuigen opgenomen. Daarbij wordt rekening gehouden met flexibiliteit om in de toekomst nieuwe technologieën niet uit te sluiten. ","- Aantoonbare voorzieningen in het ontwerp, op basis van het onderzoek in 1-TRA3.3.",{"$f":"'Invulscherm 1 - Weging'!I96","v":0.73170731707317072},null,null,0,{"$f":"J118","v":0},0,0,0,0]
["TRA4","Vrachtverkeer",null,null,null,null,null,null,null,null,{"$f":"J119","v":0}]
["1-TRA4.1",null,{"$f":"'Invulscherm 1 - Weging'!B98","v":"Inpassing en doorstroming van vrachtverkeer"},{"$f":"'Invulscherm 1 - Weging'!E98","v":"extra belangrijk"},"1 - Er wordt geïnventariseerd hoe er op het bedrijventerrein maximaal rekening kan worden gehouden met de infrastructuur voor vrachtverkeer.\n2 - De noodzaak voor vrachtwagens om toegang te hebben tot specifieke bestemmingen op het bedrijventerreinen is aangegeven op een plattegrond of overzichtskaart.","- Ruimtelijke analyse van optimale inpassing voor mobiliteit, met daarin benoemd de kansen voor vrachtverkeer (zie ook TRA1.1). Daarbij is het reduceren van het aantal stops (van en naar de bestemming) leidinggevend.\n- Plattegrond en/of overzichtskaart",{"$f":"'Invulscherm 1 - Weging'!F98","v":1.0975609756097562},null,null,{"$f":"IF(O120=1,G120,0)","v":0},0,0,0,{"$f":"IF(O120=1,J120,0)","v":0},0]
["2-TRA4.1",null,null,{"$f":"'Invulscherm 1 - Weging'!H98","v":"relevant"},"3 - In het ontwerp wordt  aantoonbaar rekening gehouden met de in de introductie genoemde ontwerpaspecten voor vrachtvervoer.\n4 - De toegang voor vrachtwagens wordt beperkt tot die wegen die strikt noodzakelijk zijn voor de bevoorrading van bedrijven.","- Er wordt in het ontwerp aantoonbaar rekening gehouden met doorstroming, hoeveelheid asfalt en multifunctioneel ruimtegebruik. \n- In het ontwerp is aantoonbaar rekening onderscheid te maken tussen wegen voor vrachtverkeer (bevoorrading) en andere wegen (woon-werk verkeer etc.).",{"$f":"'Invulscherm 1 - Weging'!I98","v":0.73170731707317072},null,null,0,0,0,0,0,0]
["1-TRA4.2",null,{"$f":"'Invulscherm 1 - Weging'!B99","v":"Maatregelen voor het minimaliseren van hinder door vrachtverkeer"},{"$f":"'Invulscherm 1 - Weging'!E99","v":"extra belangrijk"},"1 - Er wordt een plan opgesteld om hinder ten gevolge van vrachtverkeer te minimaliseren. Het plan bevat tenminste maatregelen ten aanzien van geluidsoverlast, luchtkwaliteit, verkeersveiligheid en trillingen.","- Hinderplan",{"$f":"'Invulscherm 1 - Weging'!F99","v":1.0975609756097562},null,null,0,{"$f":"J122","v":0},0,0,0,0]
["2-TRA4.2",null,null,{"$f":"'Invulscherm 1 - Weging'!H99","v":"relevant"},"2 - Maatregelen die hinder ten gevolge van vrachtverkeer kunnen verminderen worden geïmplementeerd in het ontwerp.","- In het ontwerp zijn aantoonbaar maatregelen genomen uit het hinderplan. ",{"$f":"'Invulscherm 1 - Weging'!I99","v":0.73170731707317072},null,null,0,{"$f":"J123","v":0},0,0,0,0]
["1-TRA4.3",null,{"$f":"'Invulscherm 1 - Weging'!B100","v":"Onderzoeken van alternatieven voor vrachtverkeer"},{"$f":"'Invulscherm 1 - Weging'!E100","v":"extra belangrijk"},"1 - Er wordt een onderzoek gedaan naar de mogelijkheden om vrachtvervoer (gedeeltelijk) te laten vervangen door scheeps- en/of treinvervoer.","- Uit onderzoek blijkt dat de gekozen alternatieven voor wel- of geen vrachtverkeer optimaal zijn gekozen. Daarbij is minimaal rekening gehouden met de voorbeelden als beschreven in de introductie.",{"$f":"'Invulscherm 1 - Weging'!F100","v":1.0975609756097562},null,null,0,{"$f":"J124","v":0},0,0,0,0]
["TRA5","Integratie van transport",null,null,null,null,null,null,null,null,{"$f":"J125","v":0}]
["1-TRA5.1",null,{"$f":"'Invulscherm 1 - Weging'!B102","v":"Integratie van verkeerstromen / Modal Shift"},{"$f":"'Invulscherm 1 - Weging'!E102","v":"verplicht"},"1 - Er wordt een verkeersmodel opgesteld waaruit blijkt wat de te verwachten modal split is op en naar het bedrijventerrein. \n2 - Ontwikkelingen die verkeersstromen (vervoerswijzen, verkeersintensiteiten en modal split) in de toekomst kunnen veranderen zijn onderzocht en in verband gebracht met het bedrijventerrein en de omgeving.\n3 - Er is een inventarisatie uitgevoerd waaruit blijkt hoe de weginfrastructuur rondom het bedrijventerrein eruit ziet.\n4 - Er wordt een inventarisatie gemaakt van de benodigde bebording, bewegwijzering en bebakening om de navigatie van, naar en op het bedrijventerrein te vergemakkelijken.\n5 - De resultaten van het onderzoek worden geïmplementeerd in een plan om de modal shitft te realiseren.","- verkeersmodel\n- onderzoek\n\nminimaal onderzocht: \n- Hoe gaat het transport plaatsvinden?\n- Is mobiliteit überhaupt wel nodig?(bijv. alternatief door bediening op afstand)\n- Lokale oplossingen mogelijk (niet individueel uit verre landen)\n- Is het mogelijk om alleen grondstoffen binnen te halen en assemblage op het terrein te doen?\n- Zijn samenwerkingen op het terrein mogelijk? (afval=voedsel)\n- plan voor realisatie modal shift (lange termijn)",{"$f":"'Invulscherm 1 - Weging'!F102","v":0.73170731707317072},null,null,0,{"$f":"J126","v":0},0,0,0,0]
["2-TRA5.2",null,{"$f":"'Invulscherm 1 - Weging'!B103","v":"Aansluiting infrastructuur op de omgeving"},{"$f":"'Invulscherm 1 - Weging'!H103","v":"relevant"},"1 - De weginfrastructuur wordt zodanig ontworpen dat deze naadloos aansluit op infrastructuur buiten de grenzen van het bedrijventerrein.\n2 - Het ontwerp van weginfrastructuur is erop gericht om gemotoriseerd van non-gemotoriseerd verkeer te scheiden, waarbij autoverkeer (woon-werk) en vrachtverkeer ook waar mogelijk worden gescheiden.\n3 - Het ontwerp van weginfrastructuur houdt rekening met veranderingen in verkeersaanbod op de lange termijn.","- ontwerp",{"$f":"'Invulscherm 1 - Weging'!I103","v":0.73170731707317072},null,null,0,{"$f":"J127","v":0},0,0,0,0]
["TOTAAL SCORE",null,null,null,null,null,null,null,null,null,{"$f":"SUM(K103+K79+K63+K47+K31+K4)/100","v":0}]
[]
[]
[]
[]
[]
[]
[]
[]
[]
[]
[]
[]
[]
[null,null,"- Moet er in hoofdstuk 6 iets bij over parkeren? Of zit dit al in één van de criteria?"]

{"sheet":"BRONNEN","index":4,"n_rows":76,"n_cols":11,"rows_kept":76,"cut":false,"hidden":true,"merged":[]}
[null,null,null,"1 - Voorbereidingsfase","2- Ontwerpfase","3 - CHECK - Realisatie"]
["1. Management",null,"MAN",null,null,null,"Koppeling met:","BREEAM Communities?","Afkorting BREEAM Communities","Aanvulling vereist (andere meters)?","Toelichting"]
["1.1 Markt",null,"MAN1"]
[null,"1.1.1 Marktanalyse (marktvraag & welke eisen stelt markt aan de locatie)","MAN1.1","DZM Gent 1.1.2 d",null,null,null,"nee","-","ja","Ontwikkelen op basis Blue Gate/Logistiek Park Moerdijk/Logistiek Park Schijns"]
[null,"1.1.2 Effect marktanalyse op ruimtelijk ontwerp","MAN1.2",null,null,null,null,"nee","-","ja","Ontwikkelen op basis Blue Gate/Logistiek Park Moerdijk/Logistiek Park Schijns"]
[null,"1.1.3 Duurzaamheidsambitie passend bij markt","MAN1.3",null,null,null,null,"nee","-","ja","Ontwikkelen op basis Blue Gate/Logistiek Park Moerdijk/Logistiek Park Schijns"]
[null,"1.1.4 MVO / CSR (duurzame bedrijfvoering)","MAN1.5","BREEAM-NL Geb MAN6","minder belangrijk","= minder belangrijk","relevant"]
["1.2 Procesaanpak",null,"MAN2","BREEAM-NL Geb MAN1 & MAN5, instr. DZM Scholenb. 1.1a & 1.1b, LNE Wijken BEH 02.01, DZM Gent 1.2 c"]
[null,"1.2.1 Gebiedsvisie & duurzaamheidsambitie","MAN2.1","LNE Wijken BEH 01.02","extra belangrijk","= extra belangrijk","verplicht",null,null,null,"Bij elke fase duurzaamheidsambitie meetbaar testen / communiceren"]
["1.3 Draagvlak / Stakeholder management",null,"MAN3"]
[null,"1.3.1 Stakeholder analyse","MAN3.1","instr. DZM Scholenb. 1.2b, BREEAM-NL Geb SYN4",null,null,null,null,"GO1","nee","-"]
[null,"1.3.2 Klanteisen en garanderen betrokkenheid","MAN3.2",null,null,null,null,null,"GO2","nee","-"]
[null,"1.3.3 Herziening ontwerp aan de hand van stakeholder analyse","MAN3.3",null,null,null,null,null,"GO3","nee","-"]
["1.4 Parkmanagement ",null,"MAN4",null,null,null,null,"nee","-","ja","Ontwikkelen op basis Blue Gate/Logistiek Park Moerdijk/Logistiek Park Schijns"]
[null,"1.4.1 Collectieve financieringsmogelijkheden","MAN4.1","BREEAM-NL GEB SYN4",null,null,null,"nee","-","ja","Ontwikkelen op basis Blue Gate/Logistiek Park Moerdijk/Logistiek Park Schijns"]
[null,"1.4.2 Collectieve energie (inkoop en opwekken)","MAN4.2",null,null,null,"4.1 / 4.3","nee","-","ja"]
[null,"1.4.3 Collectief afvalmanagement","MAN4.3",null,null,null,"4.4","ja","RE06","ja","Niet voldoende gericht op collectief afvalbeheer."]
[null,"1.4.4 Veiligheid","MAN4.4",null,null,null,"5.1","nee","-","ja","Samen regelen / 1 camera --> één centrale beveiliging."]
[null,"1.4.5 Delen/Lenen/ Ruilen / Keten daten","MAN4.5"]
[null,"1.4.6 Lokaal voedsel","MAN4.6",null,null,null,null,"nee","-","ja","Optioneel? / Is opgenomen in BREEAM-NL Gebiedsontwikkeling"]
["1.5 Beheer",null,"MAN5"]
["2. Sociaal en economisch welzijn",null,"SEW"]
["2.1 Gezondheid",null,"SEW1",null,null,null,null,"ja","SE08","ja","onvoldoende belicht in BREEAM Communities"]
[null,"2.1.1 Groen","SEW1.1",null,"2-SEW1.1-1 - zelf\n2-SEW1.1-2 - DESG 4.4 a\n2-SEW1.1-3 - DESG 4.4 b",null,null,"ja","SE11","mogelijk"]
[null,"2.1.2 Klimaat maatregelen","SEW1.2","1SEW1.2-1 - BNLGO RO12","2-SEW1.2-1 - IDS 2.3.2.b\n2-SEW1.2-2 - DESG 4.3.2 a\n2-SEW1.2-3 - BNLGO RO12",null,null,"Ja","SE10 / SE3 / SE13 / LE06","ja","+ waterberging / infiltratie / % verharding etc."]
["2.2 Fysisch Milieu",null,"SEW2"]
[null,"2.2.1 Geluidsoverlast ","SEW2.1",null,"2SEW2.1-1en2 - BNLGO KLI7",null,null,"Ja","SE04","mogelijk","van & naar omgeving!"]
[null,"2.2.2 Lichthinder","SEW2.2",null,"2-SEW2.2 - BNLNR POL7",null,null,"Ja","SE16","mogelijk"]
[null,"2.2.3 Luchtkwaliteit","SEW2.3",null,"2-SEW2.3 - betere formuleren"]
[null,"2.2.4 Overige fysische milieu aspecten","SEW2.4",null,"2-SEW2.4 - DESG 8.1 (windhinder)"]
["2.3 Lokale economie",null,"SEW3"]
[null,"2.3.1 Economische impactstudie / werkgelegenheid","SEW3.1","1-SEW3.1 - BNLGO W&W4 ",null,null,null,"ja","SE01","nee"]
[null,"2.3.2 Social return ","SEW3.2","1-SEW3.2",null,null,"belangrijk??","ja","SE17 / SE01","nee"]
["2.4 Veiligheid",null,"SEW4","1-SEW4","2-SEW4",null,"nood-/hulpdiensten",null,null,null,"Hoe richt je dit in? Voldoet aan politiekeurmerk veilig wonen"]
["2.5 Voorzieningen (gym/kinderdagverblijf/supermarkt, etc.) ",null,"SEW5","1-SEW5",null,null,null,null,null,null,"Niet allemaal langs supermarkt rijden!"]
["2.6 Verweving met omgeving",null,"SEW6"]
["3. Infrastructuur & Openbare ruimte",null,"IOR",null,null,null,null,"ja","RE04"]
["3.1 Infrastructuur en Gebouwen",null,"IOR1"]
[null,"Analyse houdbaarheid bestaande bebouwing","IOR1.1","1-IOR1.1 -1/2/3- zelf bepaald"]
[null,"Analyse houdbaarheid bestaande infrastructuur","IOR1.2","1-IOR1.2 -1/2 - zelf bepaald"]
[null,"Hergebruik bestaande bebouwing","IOR1.3",null,"2-IOR1.3-1  - zelf bepaald\n2-IOR1.3-2 - zelf bepaald"]
[null,"Hergebruik bestaande infrastructuur","IOR1.4",null,"2-IOR-1.4-1  - zelf bepaald\n2-IOR-1.4-2 zelf bepaald "]
[null,"Nieuwbouw","IOR1.5",null,"2-IOR1.1 -1- BNLNR ENE1\n2-IOR1.1-2- IDS 6.1.1.a\n2-IOR1.1-3 IDS 6.1.2.b"]
["3.2 Openbare ruimte",null,"IOR2"]
[null,"Materiaalgebruik","IOR2.1",null,"2-IOR2.1-1/2  BNLGO BR04/05\n"]
[null,"Onderhoud","IOR2.2",null,"2-IOR2.2 zelf bepaald\n3-IOR2.2 zelf bepaald"]
[null,"Kabels & Leidingen / Nutsvoorzieningen","IOR2.3",null,"2-IOR2.3 1/2/3 zelf bepaald"]
[null,"Flexibiliteit","IOR2.4",null,"2-IOR2.4 -1/2- BRNLNR MAT 8"]
["4. Bronnen & Energie (terrein)",null,"BRE"]
["4.1 Energie",null,"BRE1","1-BRE1 - BNLGO BRO 1, DESG 7.2","2-BRE1-1tm5 - BNLGO BRO 2 \n2-BRE1-6 - zelf",null,null,"ja","RE01, RE03","ja","andere meters checken"]
["4.2 Afval & Materiaalbeheer",null,"BRE2",null,"2-BRE1-1 - DESG 4.5 \n2-BRE1-2 - IDS 6.2.3.b"]
["4.3 Water",null,"BRE3","1-BRE3 - DESG 5.3 a, IDS 5.1.a","2-BRE3-1en2 - BNLGO BRO 3 \n2-BRE3-3 - DESG 5.2 a\n2-BRE3-4 - DESG 5.5.1 b\n2-BRE3-5 - DESG 5.5.2 c",null,"2.1.2, (afvalwater / hemelwater / drinkwater)","ja","RE01, LE06","ja","andere meters checken"]
["5. Ecologie & duurzaam landgebruik",null,"EDL"]
["5.1 Karakter van het landschap / Gebiedsentiteit",null,"EDL1","1-EDL1",null,null,null,"ja","LE05 / SE14","nee"]
["5.2 Positionering plots / stedenbouwkundige invulling / Landgebruik",null,"EDL2","1-EDL2",null,null,null,"ja/nee","LE02","ja","Ontwikkelen op basis Blue Gate/Logistiek Park Moerdijk/Logistiek Park Schijns"]
[null,"5.2.1 Overstromingsgevaar","EDL2.1"]
["5.3 Ecologie",null,"EDL3","1-EDL3",null,null,null,"ja","LE01","ja","alleen van toepassing indien niet MER-plichtig / koppelen biodiversiteitstoets"]
[null,"Vergroening","EDL3.1",null,"2-EDL3.2"]
[null,"Biodiversiteit","EDL3.2","1-EDL3.1"]
["5.4 Bouwrijp maken (grondbalans / peilhoogten)",null,"EDL4","1-EDL4","2-EDL4",null,null,"nee","-","ja","Ontwikkelen op basis Blue Gate/Logistiek Park Moerdijk/Logistiek Park Schijns"]
["5.5 Bodemverontreiniging",null,"EDL5","1-EDL5","2-EDL5",null,null,"nee","-","ja","Aansluiten op: OVAM-tool"]
["6. Transport",null,"TRA"]
["6.1 Verkeers- en transportstromingen.","Non-gemotoriseerd verkeer","TRA1","BNLGO RO08\nDESG3.2.1a","BNLGO RO08\nBNLNR TRA3a/TRA4\nIDS3.1.2.1c",null,null,"ja","TM01","ja"]
["6.2","Openbaar vervoer","TRA2","BIUTRA003, IDS3.1.2.1d, DESG3.2.3a","BIUTRA003, IDS3.1.2.1d, DESG3.2.3a"]
["6.3","Autoverkeer","TRA3","BNLNR TRA3a\nBIU TRA102","BNLNR TRA3a\nBIU TRA102",null,null,"ja","TM05","ja"]
["6.4","Vrachtverkeer","TRA4","DESG3.4a\nDESG3.5a\nDESG2.1.f / 3.4a\n","DESG3.4a\nDESG3.5a\nDESG2.1.f / 3.4a\n",null,null,"nee","-","ja","Ontwikkelen op basis Blue Gate/Logistiek Park Moerdijk/Logistiek Park Schijns"]
["6.5","Integratie van transport","TRA5","BCOM TM01\nIDS3.1.1a\nLNE MOB03\nDESG3.2.2a / BIU TRA004\n","BCOM TM01\nIDS3.1.1a\nLNE MOB03\nDESG3.2.2a / BIU TRA004",null,null,"nee","-","ja","Ontwikkelen op basis Blue Gate/Logistiek Park Moerdijk/Logistiek Park Schijns"]
[]
[null,"Legenda:"]
[null,"Duurzaamheidsmeter Economische Sites Gent","DESG"]
[null,"BREEAM-NL Gebiedsontwikkeling","BNLGO"]
[null,"BREEAM-NL Nieuwbouw en Renovatie","BNLNR"]
[null,"Instrument voor Duurzame Scholenbouw","IDS"]
[]
[null,null,null,null,null,null,null,"Dubbeling:"]
[null,null,null,null,null,null,null,"Wel economische sites maar niet in scope:"]

{"sheet":"Blad2","index":5,"n_rows":44,"n_cols":9,"rows_kept":44,"cut":false,"hidden":true,"merged":[]}
["Consultatieplan",null,null,null,null,"Ja","Planfase","Nieuwbouw","Projectgrens"]
["Consultatie en marktbenadering",null,null,null,null,"Nee","Realisatiefase","Renovatie","Systeemgrens"]
["Beoordeling ontwerp",null,null,null,null,"Aangepast","Beide","In-use"]
[null,null,null,null,null,null,null,"Nieuwbouw & Renovatie"]
["Management van faciliteiten",null,null,null,null,null,null,"Alledrie"]
[]
["Economische impact"]
["Lokale demografische samenstelling",null,null,null,null,"Management"]
["Overstromingsrisico",null,null,null,null,"Sociaal en economisch welzijn"]
["Geluidshinder",null,null,null,null,"Bronnen en energie"]
["Voorzieningsniveau",null,null,null,null,"Ggebiedsklimaat (Landgebrui & Ecologie)"]
["Publiek domein",null,null,null,null,"Transport en mobiliteit"]
[null,null,null,null,null,"Gebouwen"]
["Utiliteiten",null,null,null,null,"Overig"]
["Klimaatadaptatie"]
["Groene infrastructuur"]
["Lokaal parkeren"]
["Overstromingsrisicomanagement"]
["Lokale inpassing"]
["Inclusive design"]
["Lichtvervuiling"]
["Arbeid en vaardigheden"]
[]
["Energiestrategie"]
["Bestaande gebouwen en infrastructuur"]
["Waterstrategie"]
["Duurzame gebouwen"]
["Lage impact materialen"]
["Efficiënt gebruik van hulpbronnen"]
["Emissies door verkeer"]
[]
["Ecologische strategie"]
["Ruimtelijke ontwikkeling"]
["Watervervuiling"]
["Verrijking van ecologische waarde"]
["Landschap"]
["Benutting van regenwater"]
[]
["Beoordeling transport"]
["Veilig en aantrekkelijk straatbeeld"]
["Fietsnetwerk"]
["Toegang tot openbaar vervoer"]
["Faciliteiten voor fietsers"]
["Faciliteiten voor OV-reizigers"]

{"sheet":"Criteria-Status-Tabel","index":6,"n_rows":143,"n_cols":12,"rows_kept":143,"cut":false,"hidden":false,"merged":[[45,2,46,2],[2,7,2,10],[2,3,2,6],[19,1,20,1],[19,2,20,2],[41,1,42,1],[41,2,42,2],[17,2,18,2],[11,1,12,1],[11,2,12,2],[14,1,15,1],[14,2,15,2],[96,1,97,1],[96,2,97,2],[84,1,85,1],[84,2,85,2],[86,1,87,1],[86,2,87,2],[67,2,68,2],[51,1,52,1],[74,2,75,2],[81,2,82,2],[91,2,92,2],[51,2,52,2],[54,1,55,1],[54,2,55,2],[56,1,57,1],[56,2,57,2],[1,3,1,10],[88,1,89,1],[88,2,89,2],[94,1,95,1],[94,2,95,2],[65,1,66,1],[65,2,66,2],[77,1,78,1],[77,2,78,2],[69,1,70,1],[69,2,70,2],[71,1,72,1],[71,2,72,2],[67,1,68,1],[49,1,50,1],[49,2,50,2],[105,1,106,2],[107,1,108,2],[110,1,111,2],[100,1,101,1],[100,2,101,2],[113,1,114,2],[115,1,116,2],[117,1,118,2],[120,1,121,2],[122,1,123,2]]}
[]
[null,null,null,"Standaard Status"]
[null,null,null,"Nieuw terrein",null,null,null,"Bestaand terrein"]
[null,null,null,"Productiegericht / gemengd","Kantoor terrein","Vrijetijd terrein","Logistiek","Productiegericht / gemengd","Kantoor terrein","Vrijetijd terrein","Logistiek"]
["MAN","1. MANAGEMENT (20%)",null,11,12,13,14,21,22,23,24]
["MAN1","Markt"]
["1-MAN1.1",null,"Marktanalyse (marktvraag & welke eisen stelt markt aan de locatie)","extra belangrijk","extra belangrijk","extra belangrijk","extra belangrijk","relevant","relevant","relevant","relevant"]
["1-MAN1.2",null,"Effect marktanalyse op ruimtelijk ontwerp","extra belangrijk","extra belangrijk","extra belangrijk","extra belangrijk","relevant","relevant","relevant","relevant"]
["1-MAN1.3",null,"Maatschappelijk kosten baten (MKBA)","extra belangrijk","extra belangrijk","extra belangrijk","extra belangrijk","relevant","relevant","relevant","relevant"]
["2-MAN1.4",null,"Maatschappelijk Verantwoord Ondernemen (MVO)","relevant","relevant","relevant","relevant","relevant","relevant","relevant","relevant"]
["MAN2","Proces"]
["1-MAN2.1",null,"Procesaanpak","verplicht","verplicht","verplicht","verplicht","verplicht","verplicht","verplicht","verplicht"]
["2-MAN2.1",null,null,"relevant","relevant","relevant","relevant","relevant","relevant","relevant","relevant",1]
["1-MAN2.2",null,{"$f":"'Invulscherm 1 - Weging'!C15","v":"Uitgifteproces"},"relevant","relevant","relevant","relevant","minder belangrijk","minder belangrijk","minder belangrijk","minder belangrijk"]
["1-MAN2.3",null,"Gebiedsvisie & duurzaamheidsambitie","verplicht","verplicht","verplicht","verplicht","verplicht","verplicht","verplicht","verplicht"]
["2-MAN2.3",null,null,"verplicht","verplicht","verplicht","verplicht","verplicht","verplicht","verplicht","verplicht"]
["MAN3","Draagvlak / Stakeholder management"]
["1-MAN3.1",null,{"$f":"'Invulscherm 1 - Weging'!C18","v":"Stakeholder analyse + herziening ontwerp"},"verplicht","verplicht","verplicht","verplicht","verplicht","verplicht","verplicht","verplicht"]
["2-MAN3.1",null,null,"relevant","relevant","relevant","relevant","minder belangrijk","minder belangrijk","minder belangrijk","minder belangrijk"]
["1-MAN3.2",null,"Klantwensen en garanderen van betrokkenheid","verplicht","verplicht","verplicht","verplicht","relevant","relevant","relevant","relevant"]
["2-MAN3.2",null,null,"verplicht","verplicht","verplicht","verplicht","relevant","relevant","relevant","relevant"]
["MAN4","Parkmanagement "]
["1-MAN4.1",null,"Collectieve financiering","relevant","relevant","relevant","relevant","relevant","relevant","relevant","relevant"]
["2-MAN4.2",null,"Collectieve energie inkoop","extra belangrijk","relevant","relevant","relevant","relevant","relevant","relevant","relevant"]
["1-MAN4.3",null,"Collectief afvalmanagement","verplicht","verplicht","verplicht","verplicht","relevant","relevant","relevant","relevant"]
["2-MAN4.4",null,{"$f":"'Invulscherm 1 - Weging'!C24","v":"Collectief beheer van groen"},"extra belangrijk","extra belangrijk","extra belangrijk","extra belangrijk","relevant","relevant","relevant","relevant"]
["2-MAN4.5",null,{"$f":"'Invulscherm 1 - Weging'!C25","v":"Collectieve mobiliteit"},"extra belangrijk","extra belangrijk","extra belangrijk","extra belangrijk","relevant","relevant","relevant","relevant"]
["2-MAN4.6",null,"Beveiliging","relevant","relevant","relevant","relevant","relevant","relevant","relevant","relevant"]
["2-MAN4.7",null,"Delen/Lenen/ Ruilen","relevant","relevant","relevant","relevant","relevant","relevant","relevant","relevant"]
["2-MAN4.8",null,"Lokaal voedsel","relevant","relevant","relevant","relevant","relevant","relevant","relevant","relevant"]
["2-MAN4.9",null,{"$f":"'Invulscherm 1 - Weging'!C29","v":"Overgang van ontwikkelaar naar beheerder"},"relevant","relevant","relevant","relevant","relevant","relevant","relevant","relevant"]
["SEW","2. SOCIAAL & ECONOMISCH WELZIJN (15%)"]
["SEW1","Fysisch Milieu & Gezondheid"]
["2-SEW1.1",null,"Geluidsoverlast ","extra belangrijk","relevant","relevant","extra belangrijk","extra belangrijk","relevant","relevant","extra belangrijk"]
["2-SEW1.2",null,"Lichthinder","relevant","relevant","relevant","relevant","minder belangrijk","minder belangrijk","minder belangrijk","minder belangrijk"]
["2-SEW1.3",null,"Luchtkwaliteit","extra belangrijk","relevant","relevant","relevant","extra belangrijk","relevant","relevant","relevant"]
["2-SEW1.4",null,{"$f":"'Invulscherm 1 - Weging'!C36","v":"Geuroverlast"},"extra belangrijk","relevant","relevant","relevant","relevant","relevant","relevant","relevant"]
["SEW2","Lokale economie"]
["1-SEW2.1",null,"Economische impactstudie","verplicht","verplicht","verplicht","verplicht","verplicht","verplicht","verplicht","verplicht"]
["1-SEW2.2",null,"Lokale werkgelegenheid","relevant","relevant","relevant","relevant","relevant","relevant","relevant","relevant"]
["SEW3","Sociale veiligheid"]
["1-SEW3.1",null,"Nood- en hulpdiensten","verplicht","verplicht","verplicht","verplicht","verplicht","verplicht","verplicht","verplicht"]
["2-SEW3.1",null,null,"relevant","relevant","relevant","relevant","relevant","relevant","relevant","relevant"]
["2-SEW3.2",null,"Sociale controle","relevant","relevant","relevant","relevant","relevant","relevant","relevant","relevant"]
["SEW4","Voorzieningen"]
["1-SEW4.1",null,"Voorzieningen","verplicht","verplicht","verplicht","verplicht","verplicht","verplicht","verplicht","verplicht"]
["2-SEW4.1",null,null,"relevant","relevant","extra belangrijk","relevant","relevant","relevant","extra belangrijk","relevant"]
["IOR","3. INFRASTRUCTUUR & OPENBARE RUIMTE (15%)"]
["IOR1",{"$f":"'Invulscherm 1 - Weging'!B47","v":"Beleving"}]
["1-IOR1.1",null,{"$f":"'Invulscherm 1 - Weging'!C48","v":"Verweving met omgeving"},"verplicht","verplicht","verplicht","verplicht","verplicht","verplicht","verplicht","verplicht"]
["2-IOR1.1",null,null,"relevant","relevant","relevant","relevant","relevant","relevant","relevant","relevant"]
["1-IOR1.2",null,{"$f":"'Invulscherm 1 - Weging'!C49","v":"Beeldvorming"},"relevant","relevant","relevant","relevant","minder belangrijk","minder belangrijk","minder belangrijk","minder belangrijk"]
["2-IOR1.2",null,null,"relevant","relevant","relevant","relevant","relevant","relevant","relevant","relevant"]
["IOR2","Infrastructuur & Gebouwen"]
["1-IOR2.1",null,{"$f":"'Invulscherm 1 - Weging'!C51","v":"Bestaande bebouwing"},"verplicht","verplicht","verplicht","verplicht","verplicht","verplicht","verplicht","verplicht"]
["2-IOR2.1",null,{"$f":"'Invulscherm 1 - Weging'!C51","v":"Bestaande bebouwing"},"relevant","relevant","relevant","relevant","relevant","relevant","relevant","relevant"]
["1-IOR2.2",null,{"$f":"'Invulscherm 1 - Weging'!C52","v":"Bestaande infrastructuur"},"verplicht","verplicht","verplicht","verplicht","verplicht","verplicht","verplicht","verplicht"]
["2-IOR2.2",null,{"$f":"'Invulscherm 1 - Weging'!C52","v":"Bestaande infrastructuur"},"relevant","relevant","relevant","relevant","relevant","relevant","relevant","relevant"]
["2-IOR2.3",null,"Nieuwbouw","relevant","relevant","relevant","relevant","relevant","relevant","relevant","relevant"]
["IOR3","Openbare ruimte"]
["2-IOR3.1",null,"Materiaalgebruik","extra belangrijk","extra belangrijk","extra belangrijk","extra belangrijk","relevant","relevant","relevant","relevant"]
["2-IOR3.2",null,"Onderhoud","verplicht","verplicht","verplicht","verplicht","verplicht","verplicht","verplicht","verplicht"]
["2-IOR3.3",null,"Kabels & Leidingen / Nutsvoorzieningen","extra belangrijk","extra belangrijk","extra belangrijk","extra belangrijk","relevant","relevant","relevant","relevant"]
["BRE","4. BRONNEN & ENERGIE (15%)"]
["BRE1","Energie"]
["1-BRE1.1",null,"Rationeel Energie Gebruik (REG)","extra belangrijk","verplicht","verplicht","verplicht","extra belangrijk","verplicht","verplicht","verplicht"]
["2-BRE1.1",null,null,"extra belangrijk","relevant","relevant","relevant","extra belangrijk","relevant","relevant","relevant"]
["1-BRE1.2",null,"Restwarmte en -koude","extra belangrijk","verplicht","verplicht","verplicht","extra belangrijk","verplicht","verplicht","verplicht"]
["2-BRE1.2",null,null,"relevant","relevant","relevant","relevant","relevant","relevant","relevant","relevant"]
["1-BRE1.3",null,"Duurzame energie","verplicht","verplicht","verplicht","verplicht","verplicht","verplicht","verplicht","verplicht"]
["2-BRE1.3",null,null,"relevant","relevant","relevant","relevant","relevant","relevant","relevant","relevant"]
["1-BRE1.4",null,{"$f":"'Invulscherm 1 - Weging'!B64","v":"SMART-Grid"},"verplicht","verplicht","verplicht","verplicht","verplicht","verplicht","verplicht","verplicht"]
["2-BRE1.4",null,null,"relevant","relevant","relevant","relevant","relevant","relevant","relevant","relevant"]
["BRE2","Afval & Materiaalbeheer"]
["1-BRE2.1",null,"Afval & Materiaalbeheer","extra belangrijk","relevant","relevant","relevant","extra belangrijk","relevant","relevant","relevant"]
["2-BRE2.1",null,null,"relevant","relevant","relevant","relevant","relevant","relevant","relevant","relevant"]
["BRE3","Water"]
["1-BRE3.1",null,{"$f":"'Invulscherm 1 - Weging'!B68","v":"Water (water als bron)"},"verplicht","verplicht","verplicht","verplicht","verplicht","verplicht","verplicht","verplicht"]
["2-BRE3.1",null,null,"relevant","relevant","relevant","relevant","relevant","relevant","relevant","relevant"]
["EDL","5. ECOLOGIE & DUURZAAM LANDGEBRUIK (20%)"]
["EDL1","Karakter"]
["1-EDL1.1",null,"Karakter van het landschap","verplicht","verplicht","verplicht","verplicht","verplicht","verplicht","verplicht","verplicht",1]
["2-EDL1.1",null,null,"relevant","relevant","relevant","relevant","minder belangrijk","minder belangrijk","minder belangrijk","minder belangrijk"]
["EDL2","Landgebruik"]
["1-EDL2.1",null,"Positionering & landgebruik","relevant","relevant","relevant","relevant","minder belangrijk","minder belangrijk","minder belangrijk","minder belangrijk"]
["2-EDL2.1",null,null,"relevant","relevant","relevant","relevant","minder belangrijk","minder belangrijk","minder belangrijk","minder belangrijk"]
["1-EDL2.2",null,"Flexibiliteit in tijdelijke en definitieve inrichting","verplicht","verplicht","verplicht","verplicht","verplicht","verplicht","verplicht","verplicht"]
["2-EDL2.2",null,null,"relevant","relevant","relevant","relevant","relevant","relevant","relevant","relevant"]
["1-EDL2.3",null,{"$f":"'Invulscherm 1 - Weging'!C76","v":"Hittestress"},"relevant","relevant","relevant","relevant","relevant","relevant","relevant","relevant"]
["2-EDL2.3",null,null,"relevant","relevant","relevant","relevant","relevant","relevant","relevant","relevant"]
["2-EDL2.4",null,"Bouwrijp maken (grondbalans / peilhoogten)","relevant","relevant","relevant","relevant","minder belangrijk","minder belangrijk","minder belangrijk","minder belangrijk"]
["1-EDL2.5",null,"Bodemverontreiniging","relevant","relevant","relevant","relevant","relevant","relevant","relevant","relevant"]
["2-EDL2.5",null,null,"relevant","relevant","relevant","relevant","relevant","relevant","relevant","relevant"]
["EDL3","Ecologie & biodiversiteit"]
["1-EDL3.1",null,"Ecologie & biodiversiteit","verplicht","verplicht","verplicht","verplicht","verplicht","verplicht","verplicht","verplicht"]
["2-EDL3.1",null,null,"relevant","relevant","relevant","relevant","relevant","relevant","relevant","relevant"]
["1-EDL3.2",null,"Abiotische structuren","verplicht","verplicht","verplicht","verplicht","verplicht","verplicht","verplicht","verplicht"]
["2-EDL3.2",null,null,"relevant","relevant","relevant","relevant","relevant","relevant","relevant","relevant",1]
["2-EDL3.3",null,"Vergroening","verplicht","verplicht","verplicht","verplicht","verplicht","verplicht","verplicht","verplicht"]
["EDL4","Water"]
["1-EDL4.1",null,{"$f":"'Invulscherm 1 - Weging'!C84","v":"Hoogwaterbescherming & klimaatadaptatie"},"verplicht","verplicht","verplicht","verplicht","verplicht","verplicht","verplicht","verplicht"]
["2-EDL4.1",null,null,"relevant","relevant","relevant","relevant","relevant","relevant","relevant","relevant"]
["2-EDL4.2",null,"Waterkwaliteit","relevant","relevant","relevant","relevant","relevant","relevant","relevant","relevant"]
["TRA","6. TRANSPORT (15%)"]
["TRA1","Non-gemotoriseerd verkeer"]
["1-TRA1.1","Inpassing voor fiets- en voetgangersverkeer",null,"verplicht","verplicht","verplicht","verplicht","verplicht","verplicht","verplicht","verplicht"]
["2-TRA1.1",null,null,"relevant","relevant","relevant","relevant","minder belangrijk","minder belangrijk","minder belangrijk","minder belangrijk"]
["1-TRA1.2","Stimuleren fiets- en voetgangersverkeer",null,"verplicht","verplicht","verplicht","verplicht","verplicht","verplicht","verplicht","verplicht"]
["2-TRA1.2",null,null,"relevant","relevant","relevant","relevant","relevant","relevant","relevant","relevant"]
["TRA2","Openbaar vervoer"]
["1-TRA2.1","Stimuleren van openbaar & collectief vervoer",null,"relevant","extra belangrijk","extra belangrijk","relevant","relevant","relevant","relevant","relevant"]
["2-TRA2.1",null,null,"relevant","extra belangrijk","extra belangrijk","relevant","relevant","relevant","relevant","relevant"]
["TRA3","Autoverkeer"]
["1-TRA3.1",{"$f":"'Invulscherm 2 - Scores'!C113","v":"Inpassing autoverkeer"},null,"verplicht","verplicht","verplicht","verplicht","verplicht","verplicht","verplicht","verplicht"]
["2-TRA3.1",null,null,"relevant","relevant","relevant","relevant","relevant","relevant","relevant","relevant"]
["1-TRA3.2","Het reduceren van autogebruik",null,"verplicht","verplicht","verplicht","verplicht","verplicht","verplicht","verplicht","verplicht"]
["2-TRA3.2",null,null,"relevant","relevant","relevant","relevant","relevant","relevant","relevant","relevant"]
["1-TRA3.3","Het faciliteren van auto's op alternatieve energiebronnen",null,"verplicht","verplicht","verplicht","verplicht","verplicht","verplicht","verplicht","verplicht"]
["2-TRA3.3",null,null,"relevant","relevant","relevant","relevant","relevant","relevant","relevant","relevant"]
["TRA4","Vrachtverkeer"]
["1-TRA4.1",{"$f":"'Invulscherm 2 - Scores'!C120","v":"Inpassing en doorstroming van vrachtverkeer"},null,"extra belangrijk","relevant","relevant","extra belangrijk","extra belangrijk","relevant","relevant","extra belangrijk"]
["2-TRA4.1",null,null,"relevant","relevant","relevant","relevant","relevant","relevant","relevant","relevant"]
["1-TRA4.2",{"$f":"'Invulscherm 2 - Scores'!C122","v":"Maatregelen voor het minimaliseren van hinder door vrachtverkeer"},null,"extra belangrijk","relevant","relevant","extra belangrijk","extra belangrijk","relevant","relevant","extra belangrijk"]
["2-TRA4.2",null,null,"relevant","relevant","relevant","relevant","relevant","relevant","relevant","relevant"]
["1-TRA4.3",{"$f":"'Invulscherm 2 - Scores'!C124","v":"Onderzoeken van alternatieven voor vrachtverkeer"},null,"extra belangrijk","relevant","relevant","extra belangrijk","extra belangrijk","relevant","relevant","extra belangrijk"]
["TRA5","Integratie van transport"]
["1-TRA5.1",{"$f":"'Invulscherm 2 - Scores'!C126","v":"Integratie van verkeerstromen / Modal Shift"},null,"verplicht","verplicht","verplicht","verplicht","verplicht","verplicht","verplicht","verplicht"]
["2-TRA5.2",{"$f":"'Invulscherm 2 - Scores'!C127","v":"Aansluiting infrastructuur op de omgeving"},null,"relevant","relevant","relevant","relevant","relevant","relevant","relevant","relevant"]
[]
[]
[]
[]
[]
[]
[]
[]
[]
[]
[]
[]
[]
[]
[null,null,"- Moet er in hoofdstuk 6 iets bij over parkeren? Of zit dit al in één van de criteria?"]

{"sheet":"Blad1","index":7,"n_rows":6,"n_cols":8,"rows_kept":6,"cut":false,"hidden":true,"merged":[]}
[]
[]
[]
[null,null,null,"= niet van toepassing (nvt)",null,null,"relevant","= relevant"]
[]
[null,null,null,"= extra belangrijk",null,null,"verplicht","= verplicht"]